Workbook

Sheet Ohjeistus
B2: Sääntelytaakkalaskuri, versio 2022 (päivitetty 26.1.2022)
B4: Yrityksiin kohdistuvan sääntelytaakan arviointi ja Yksi yhdestä -periaatteen soveltaminen - Miksi ja mitä?
C6: Tarkoituksenmukainen sääntely on välttämätöntä toimivan yhteiskunnan ja kansantalouden turvaamiseksi. Sääntelystä yrityksille aiheutuvat kustannukset voivat kuitenkin heikentää kilpailukykyä ja työllisyyttä.* Siten on tärkeää, että sääntelyä sujuvoitetaan tunnistamalla tarpeettoman raskaita menettelyitä ja sujuvoitetaan niitä. Marinin hallituksen hallitusohjelmassa Osallistava ja osaava Suomi on päätetty Yksi yhdestä -kokeilun laajentamisesta: Kehitetään lainsäädäntöä laajentamalla asteittain Yksi yhdestä -periaatetta painottaen määrällisyyden sijaan kuitenkin lainsäädännön tarkoituksenmukaisuutta. Periaatetta on kokeiltu säännönmukaisesti työ- ja elinkeinoministeriössä vuodesta 2017 alkaen. Yksi yhdestä –kokeilun tavoitteena ensivaiheessa on, että hankkeen myötä uuden sääntelyn vaikutukset yrityksiin kohdistuvaan sääntelytaakkaan arvioidaan kaikissa ministeriöissä yhdenmukaisesti. Vaikutukset arvioidaan myös mahdollisimman pitkälle euromääräisesti, vähintään kuitenkin hallinnollisen taakan osalta. Lisäksi tavoitteena on, että Yksi yhdestä -periaatteen avulla pystytään hillitsemään sääntelytaakan kasvua. Laskemalla euromääräiset arviot sääntelytaakan lisäyksestä tai vähenemisestä* on ainoa keino nähdä sääntelytaakan suuruus ja kehityssuunta.
C14: Yksi yhdestä -periaatteen soveltamiseksi ja euromääräisen sääntelytaakan laskemiseksi TEM:ssä on laadittu tämä laskentapohja ja ohjeistus lainvalmistelijoille sekä vaikutusarviointeja tekeville. Laskurin on tarkoitus helpottaa lainvalmistelijoita vaikutusarvioinnin tekemisessä sekä edesauttaa arviointien yhdenmukaisuutta. Tätä laskuria voi käyttää yrityksiin kohdistuvan sääntelytaakan arviointiin siten kuin OM:n ohjeessa (2007:6) ohjeistetaan riippumatta sovelletaanko Yksi yhdestä -periaatetta.
B18: Laskentapohjan käyttö: Yksityiskohtaisemmat ohjeet tämän laskentapohjan käyttöön ovat seuraavalla välilehdellä. Ohjeita on lisäksi välilehdillä sellaisissa soluissa, joissa on punainen kulma. Vie osoitin hiirellä punakulmasolun päälle, niin näet ohjeen. Kokeile esimerkkiä tässä solussa.
C20: Toimi siis seuraavasti:
B21: 1. | C21: Lue ohjeet ja tee tarvittavat merkinnät tarkistuslistaan välilehdellä "Tarkistuslista"
B22: 2. | C22: Täytä ohjeistuksen mukaisesti tarvittavat tiedot välilehdelle "1_Velvoiteluettelo"
B23: 3. | C23: Täytä ohjeistuksen mukaisesti tarvittavat tiedot välilehdelle "2B_Työkustannus"
B24: 4. | C24: Täytä ohjeistuksen mukaisesti tarvittavat tiedot välilehdelle "3_Muut kustannukset"
B25: 5. | C25: Katso yhteenveto välilehdeltä "5_Yhteenveto"
B26: 6. | C26: Täytä tarvittaessa tietoja välilehdelle "4_Poikkeukset" (vain tarvittaessa)
C28: Tietoja syötetään vain ruskeille välilehdille, ruskeisiin soluihin.
C29: Käytä tarvittaessa apuna välilehtiä "Apu1_ … Apu5_ "
C30: Älä tee mitään punaisille välilehdille "Annualisoitu NPV", "Listat (älä muuta)" ym.
C32: Katso ohjeeksi myös TEM:n Yksi yhdestä -kokeiluhankkeen tiedote ja loppuraportti (19.12.2017)
C33: sekä OM:n ohjeet säädösehdotusten vaikutusten arviointiin (OM:n ohje 2007:6)
C34: Seuraa alla olevaa kaaviota sekä seuraavalla välilehdellä olevia ohjeita ja syötä tarvittavat tiedot tämän laskentapohjan välilehdille 1, 2 ja 3 (sekä tarvittaessa 4)
C87: klikkaa kuvaa tai: http://lainvalmistelu.finlex.fi/
B91: *Lähteitä ja ohjeita
C92: Honkatukia J ja Rauhanen T, 2011, Yritysten hallinnollisen taakan vähentämisen kokonaistaloudelliset vaikutukset. VATT.
C93: Kox H, 2005, Intra-EU differences in regulation-caused administrative burden for companies. CPB Netherlands Bureau for Economic Policy Analysis.
C94: Tang P and Verweij G, 2004, Reducing the administrative burden in the European Union. CPB Netherlands Bureau for Economic Policy Analysis.
C95: OM:n ohjeet säädösehdotusten vaikutusten arviointiin (OM:n ohje 2007:6)
C96: SCM Network, 2005, International Standard Cost Model Manual, SCM Network. Saatavilla OECD:n www-sivustolta http://www.oecd.org/gov/regulatory-policy/34227698.pdf
C97: Lainsäädännön arviointineuvoston lausunnot, http://vnk.fi/arviointineuvosto
C98: Hyytinen A. ja Moisio M., 2017, Lainsäädännön arviointineuvosto – lainvalmistelun vaikutusarviointia, Kansantaloudellinen aikakauskirja, 113. vsk, 2/2017, sivu 211.
C99: Valtiontalouden tarkastusvirasto VTV, 2017, EU-lainsäädännön täytäntöönpano, tarkastuskertomus 12/2017. https://www.vtv.fi/files/5808/12_2017_EU-lainsaadannon_taytantoonpano.pdf
B101: Laskuriversio 2022-1.18 (26.1.2022)
B102: Kehittäjät: Erno Mähönen ja Henrikki Oravainen
B103: Julkaisija: työ- ja elinkeinoministeriö

Sheet Tarkistuslista
B1: Ohje: Yrityksiin kohdistuvien sääntelytaakkavaikutusten arviointi sekä Yksi yhdestä -periaatteen soveltaminen
B3: Yleisiä ohjeita | F3: Ok? | G3: Lähde / lisäohje / tämän taulukon välilehtien käyttö
B4: 1. | C4: Yksi yhdestä -periaatetta sovelletaan TEMissä kansallista alkuperää olevaan ja EU:n minimisääntelyn ylittävään lainsäädäntöön. | G4: Ks. TEM:n tiedote ja loppuraportti (19.12.2017)
B5: 2. | C5: Yritysvaikutukset on arvioitava normaaliin tapaan kaikissa esityksissä, myös niissä, jotka ovat EU:n minimisääntelyä. | G5: Ks. OM:n ohje s. 18-
B6: 3. | C6: Kiinnitä huomiota yritysvaikutusten arviointiin mahdollisimman varhaisessa vaiheessa lain valmisteluprosessia. | G6: Ks. Finlexin ohjeet lainvalmistelun prosessista
B7: 4. | C7: Täytä tietoja vain ruskeaksi maalattuihin soluihin. | G7: Esimerkki ruskeasta täyttösolusta
B8: 5. | C8: Tietoja tarvitsee syöttää vain välilehdille 1, 2 ja 3 (sekä tarvittaessa välilehdelle 4) | G8: Ks. Välilehdet 1, 2 ja 3 sekä tarvittaessa 4
B9: Ks. | C9: välilehti 1_Velvoiteluettelo | E9: ja hae vastauksia seuraaviin kysymyksiin:
B10: 6. | C10: Onko lainsäädännöllä yritysvaikutuksia? Jos on, mitä tietoa vaikutusten tekemiseksi vaaditaan ja mistä saada tietoa? | G10: Ks. välilehti Apu5_Tietolähteitä
B11: 7. | C11: Tunnista ja yksilöi HE:sta yrityksille lisätaakkaa tai kustannussäästöjä aiheuttavat yksittäiset pykälät/menettelyt. | G11: Ks. välilehti 1
B12: 8. | C12: Tunnista, mitkä edellisistä ovat puhtaasti kansallista alkuperää ja mitkä EU-pohjaista. | G12: Ks. välilehti 1, sekä VTV:n tarkastuskeromus 12/2017
B13: 9. | C13: Mitkä ovat kansallisen lainsäädännön yrityksille aiheuttamat taakanlisäykset tai taakankevennykset? | G13: Ks. välilehdet "1_" - "5_".
B14: 10. | C14: Jos kyse on EU-direktiivin implementoinnista, arvioi vaihtoehtoja, joilla direktiivi voitaisiin implementoida.
C15: 10.1 | D15: Aseta vaihtoehdot järjestykseen yrityksille vähiten ja eniten taakkaa aiheuttavan vaihtoehdon mukaan
C16: 10.2 | D16: Mikä vaihtoehdoista valitaan
C17: 10.3 | D17: Valitaanko implementointiin yrityksille vähiten taakkaa aiheuttava vaihtoehto?
C18: 10.4 | D18: Perustele, miksi valitaan juuri kyseinen vaihtoehto.
C19: 10.5 | D19: Jos valitaan vähiten taakkaa aiheuttava vaihtoehto, kyse on niin sanotusta EU-minimisääntelystä
C20: 10.6 | D20: Mitkä ovat EU-minimisääntelyn yrityksille aiheuttamat taakanlisäykset? | G20: Ks. välilehdet "1_" - "5_".
C21: 10.7 | D21: Mitkä ovat taakkavaikutukset, jotka aiheutuvat EU-minimisääntelyn ylittävästä osasta (ns. kansallinen lisä, gold plating)? | G21: Ks. välilehdet "1_" - "5_".
B23: 11. | C23: Nimeä velvoitteet ja täytä niiden voimaantulovuosi ja luonne välilehdelle 1_Velvoiteluettelo | G23: Ks. välilehti 1
B24: Laske edellä olevista velvoitteista aiheutuvat kustannussäästöt tai kustannuslisäykset seuraavasti:
B25: 12. | C25: Selvitä ja/tai arvioi, mitkä taakkavaikutukset ovat kertaluonteisia lain tullessa voimaan ja mitkä toistuvat vuosittain. | G25: Ks. välilehti 2B
B26: 13. | C26: Selvitä toistuvien velvoitteiden osalta, kuinka monta kertaa vuodessa ne toistuvat (frekvenssi) | G26: HE:n sisällön mukaisesti
B27: 14. | C27: Selvitä, kuinka montaa yritystä velvoite koskee (kohdejoukko) | G27: Ks. välilehti Apu5_Tietolähteitä
B28: 15. | C28: Selvitä, onko velvoite osittain (tai jopa kokonaan) yrityksen omaehtoista toimintaa (Business-as-Usual), vai ei
B29: 16. | C29: Selvitä ja/tai arvioi, vaatiiko velvoitteen hoitaminen työpanosta ja kuinka kauan yritykseltä kuluu kyseisen velvoitteen hoitamiseen | G29: Ks. välilehti 2B
B30: 17. | C30: Käytä lähtökohtaisesti velvoitteen suorittajana 'Asiantuntijaa', kk-palkka 3600 eur. Tarvittaessa selvitä ja/tai arvioi, minkä vaativuustason ja palkkaluokan työntekijät suorittavat kyseistä velvoitetta. | G30: Ks. välilehti 2B
B31: 18. | C31: Syötä edelliset tiedot välilehdelle 2B
B32: 19. | C32: Kun kaikki tarvittavat tiedot on täydennetty välilehdelle 2, siirry välilehdelle 3
B33: 20. | C33: Selvitä ja/tai arvioi velvoitteiden lisäyksistä tai niiden purkamisesta yrityksille aiheutuvat muut kustannukset. Sekä säästöt että kustannukset ilmoitetaan positiivisina lukuina. Laskuri muuttaa lopputuloksen etumerkin automaattisesti. | G33: Jos kyse esim, jostain lain edellyttämästä laitehankinnasta katso Apu3
B34: 21. | C34: Syötä tiedot mahdollisista muista kustannuksista välilehdelle 3
B35: 22. | C35: Ts. selvitä ja täytä välilehdille 2 ja 3 tarvittavat tiedot yhtäältä niin sanotun standardikustannusmallin (SCM) avulla ja toisaalta selvitä ja täytä myös kaikki muut lakiehdotuksen kustannuslisäykset (esim. vaadittavat investoinnit tai tietojärjestelmämuutokset) ja/tai -säästöt. | G35: Ks. OM:n ohje s. 18-
B37: Katso yhteenveto ja kirjaa euromääräiset yritysvaikutukset HE:een
B38: 23. | C38: Kun kaikki tarvittavat tiedot on täydennetty välilehdille 2 ja 3, siirry välilehdelle 5, jolla näet yhteenvedon
B39: 24. | C39: Arvioi, näyttävätkö Yhteenvedon tiedot järkeviltä. Tarkista ja muuta tietoja tarvitteassa. Kirjaa yhteenvedosta euromääräiset yritysvaikutukset HE:een. Alustavaa arviota voi ja tulee tarkistaa lausuntokierroksella sidosryhmiltä saatavilla tiedoilla.
B41: 25. | C41: Tarvittaessa täydennä vuosittaiset poikkeamat ja toimialan kasvuennuste välilehdelle 4
B43: Tarvittaessa saat lisätietoja ja -ohjeistusta
C44: Erno Mähönen | E44: Puhelin 029 50 47262, erno.mahonen@gov.fi
C45: työ- ja elinkeinoministeriö

Sheet 1_Velvoiteluettelo
A1: Luettelo uusista velvoitteista, jotka aiheuttavat yrityksille sääntelytaakkaa, tai sellaisten poistamisesta
B5: Erittele muutos yritysten näkökulmasta velvoite kerrallaan. Kirjaa tähän yksittäiset uudet velvoitteet ja poistettavat vanhat velvoitteet. Lisää tarvittaessa Velvoite-rivejä viereisellä painikkeella. Voit myös halutessasi eriyttää tietyn velvoitteen kahdeksi eri velvoitteeksi esim. pienten ja suurten yritysten välille, mikäli yritysvaikutukset ovat merkittävästi erilaiset erikokoisten yritysten välillä, tai eri toimialojen välillä. Kirjoita velvoitteelle 'Nimi' ja 'Kuvaus'. Valitse voimassaolon kesto ja voimaanastumisvuosi. Valitse säädöksen luonne (Kansallinen, EU, lisäys, kevennys).
A8: Ohjeet
B11: Kun olet täyttänyt tiedot, siirry välilehdelle 2B_Työkustannus
A13: Perusvuosi* | B13: 2017 | C13: *) Arvioi kustannukset valmisteluhetken nykyrahassa. Laskuri laskee Yksi yhdestä -kirjanpitoa varten valmisteluvuoden kustannuksista vertailukelpoiset arvot valittuun perusvuoteen.
B14: Lain nimi ja HE-numero: | D14: HE laiksi eräistä paloturvallisuuslaitteista, HE-luonnos 30.5.2022
B15: Koko yrityskentän koko, jota lakimuutos koskee (valinnainen tieto**) | E15: **) Tiedon puuttuminen voi vääristää yrityskohtaisia tuloksia.
B16: Velvoite- numero | C16: Nimi (vapaamuotoinen) | D16: Kuvaus muutoksesta lain yritykselle aiheuttamassa velvoitteessa (vapaamuotoinen) | E16: Voimassaolo-aika Valitse solujen valikosta. | F16: Voimaantulovuosi (ilmoita yhtenä lukuna esim. "2021") | G16: Säädöksen luonne. Valitse ao. solujen valikosta sopiva kuvailu. Sääntelyä vai sääntelyn keventämistä? EU-minimisääntelyä vai ei? | S16: ='Listat (älä muuta)'!G4+23 -> 23
A17: =IF(AND(ISTEXT(C17),ISNUMBER(F17),ISTEXT(G17)),"ok",IF(AND(ISBLANK(C17),ISBLANK(F17),ISBLANK(G17)),"","täydennä!")) -> ok | B17: ="Velvoite"&S17 -> Velvoite1 | C17: Paloilmoitin vastuhenkilön pätevyys | D17: poistetaan nykyinen pätevyystodistuksen uusimisvelvoite kolmen vuoden välein | E17: toistaiseksi | F17: 2024 | G17: Kansallisen tai EU-minimin ylittävän sääntelyn keventämistä | S17: 1
A18: =IF(AND(ISTEXT(C18),ISNUMBER(F18),ISTEXT(G18)),"ok",IF(AND(ISBLANK(C18),ISBLANK(F18),ISBLANK(G18)),"","täydennä!")) -> ok | B18: ="Velvoite"&S18 -> Velvoite2 | C18: Samuutuslaitteisto vastuuuhenkilön pätevyys | D18: poistetaan nykyinen pätevyystodistuksen uusimisvelvoite viiden vuoden välein | E18: toistaiseksi | F18: 2024 | G18: Kansallisen tai EU-minimin ylittävän sääntelyn keventämistä | S18: =S17+1 -> 2
A19: =IF(AND(ISTEXT(C19),ISNUMBER(F19),ISTEXT(G19)),"ok",IF(AND(ISBLANK(C19),ISBLANK(F19),ISBLANK(G19)),"","täydennä!")) -> ok | B19: ="Velvoite"&S19 -> Velvoite3 | C19: Käsisammutinliikkeen toimintailmoitus | D19: poistetaan nykyinen toimintailmoituksen uusimisvelvoite viiden vuoden välein | E19: toistaiseksi | F19: 2024 | G19: Kansallisen tai EU-minimin ylittävän sääntelyn keventämistä | S19: =S18+1 -> 3
A20: =IF(AND(ISTEXT(C20),ISNUMBER(F20),ISTEXT(G20)),"ok",IF(AND(ISBLANK(C20),ISBLANK(F20),ISBLANK(G20)),"","täydennä!")) -> ok | B20: ="Velvoite"&S20 -> Velvoite4 | C20: Käsisammutin vastuuhenkilön pätevyys | D20: poistetaan nykyinen pätevyystodistuksen uusimisvelvoite viiden vuoden välein | E20: toistaiseksi | F20: 2024 | G20: Kansallisen tai EU-minimin ylittävän sääntelyn keventämistä | S20: =S19+1 -> 4
A21: =IF(AND(ISTEXT(C21),ISNUMBER(F21),ISTEXT(G21)),"ok",IF(AND(ISBLANK(C21),ISBLANK(F21),ISBLANK(G21)),"","täydennä!")) ->  | B21: ="Velvoite"&S21 -> Velvoite5 | E21: toistaiseksi | S21: =S20+1 -> 5
S22: =S21+1 -> 6

Sheet 2B_Työkustannus
A1: Palkkaluokat ja velvoitteen vaatima työaika -> Velvoitteiden aiheuttama hallinnollinen taakka
C5: Täytä frekvenssi ja yritysten lukumäärä. | F5: Kirjoita tietoja vain ruskeaksi maalattuihin soluihin
A6: Ohjeet | C6: Täytä arviot vaadittavista työtunneista. Ks. ohjeita soluista, joissa punainen kulma. | F6: Älä muokkaa sinisellä pohjalla olevia soluja
C7: Kun olet täyttänyt tuntitiedot, siirry välilehdelle 3_Muut kustannukset | F7: =IF(ISTEXT(OFFSET('1_Velvoiteluettelo'!B$21,5,0)),OFFSET('1_Velvoiteluettelo'!B$21,5,0),"") ->  | G7: =IF(ISTEXT(OFFSET('1_Velvoiteluettelo'!C$21,5,0)),OFFSET('1_Velvoiteluettelo'!C$21,5,0),"") -> 
B9: Laskentatekijät | E9: Velvoitteen nimi | F9: =IF(ISTEXT(OFFSET('1_Velvoiteluettelo'!$C17,F106,0)),(OFFSET('1_Velvoiteluettelo'!$C17,F106,0)),"Velvoite"&F106+1) -> Paloilmoitin vastuhenkilön pätevyys | G9: =IF(ISTEXT(OFFSET('1_Velvoiteluettelo'!$C17,G106,0)),(OFFSET('1_Velvoiteluettelo'!$C17,G106,0)),"Velvoite"&G106+1) -> Samuutuslaitteisto vastuuuhenkilön pätevyys | H9: =IF(ISTEXT(OFFSET('1_Velvoiteluettelo'!$C17,H106,0)),(OFFSET('1_Velvoiteluettelo'!$C17,H106,0)),"Velvoite"&H106+1) -> Käsisammutinliikkeen toimintailmoitus | I9: =IF(ISTEXT(OFFSET('1_Velvoiteluettelo'!$C17,I106,0)),(OFFSET('1_Velvoiteluettelo'!$C17,I106,0)),"Velvoite"&I106+1) -> Käsisammutin vastuuhenkilön pätevyys | J9: =IF(ISTEXT(OFFSET('1_Velvoiteluettelo'!$C17,J106,0)),(OFFSET('1_Velvoiteluettelo'!$C17,J106,0)),"Velvoite"&J106+1) -> Velvoite5
B11: A1 | C11: Lukumäärä yrityksistä, joita muutos koskee (kohdejoukko) | F11: 258 | G11: 168 | H11: 240 | I11: 411
B12: A2 | C12: Business-as-usual-osuus 0-100 % (oletus: 0 %) | F12: 0.2 | G12: 0 | H12: 0.2 | I12: 0 | J12: 0
B13: A3 | C13: Frekvenssi per vuosi* | F13: 0.33 | G13: 0.2 | H13: 0.2 | I13: 0.2
B15: B1 | C15: TOISTUVA HALLINNOLLINEN TAAKKA (1. VUOSI JA SEN JÄLKEEN)
D16: Palkkaluokka | E16: Kuukausipalkka | F16: Toistuvat työTUNNIT (raportointi, luvat, yms.) per yritys*
D17: Johtaja | E17: =ROUND(E90,-2) -> 7100 | F17: 0 | G17: 0 | H17: 0 | I17: 0 | J17: 0
D18: Ylemmän tason asiantuntija, erityisasiantuntija | E18: =ROUND(E91,-2) -> 4700 | F18: 0 | G18: 0 | H18: 0 | I18: 0 | J18: 0
C19: => | D19: Asiantuntija (oletus) | E19: =ROUND(E92,-2) -> 3700 | F19: 1 | G19: 1 | H19: 1 | I19: 1 | J19: 0
D20: Yleissihteeri, tallentaja, palkanlaskija | E20: =ROUND(E93,-2) -> 2900 | F20: 0 | G20: 0 | H20: 0 | I20: 0 | J20: 0
D21: Toimistoavustaja | E21: =ROUND(E94,-2) -> 2600 | F21: 0 | G21: 0 | H21: 0 | I21: 0 | J21: 0
D22: Muu, mikä? | F22: 0 | G22: 0 | H22: 0 | I22: 0 | J22: 0
D23: =D51 -> Toistuva hallinnollinen taakka yht kohdeyrityksille p.a. | F23: =F51 -> -2397.578679 | G23: =G51 -> -1182.737897 | H23: -1351.700453 | I23: -2893.483783 | J23: =J51 -> 0
D24: Tarkistus | F24: =IF(ISNUMBER(F11),IF(AND(AND(F88>0,ISNUMBER(OFFSET('1_Velvoiteluettelo'!$F17,F106,0))),NOT(F13=0)),"Ok!",IF(AND(AND(F88>0,ISNUMBER(OFFSET('1_Velvoiteluettelo'!$F17,F106,0))),(F13=0)),"Lisää frekvenssi!",IF(AND(F88=0,ISBLANK(OFFSET('1_Velvoiteluettelo'!$F17,F106,0))),"",IF(AND(F88>0,ISBLANK(OFFSET('1_Velvoiteluettelo'!$F17,F106,0))),"Tarkista voimaantulo!","Lisää tunnit (jos tarpeen)")))),IF(ISNUMBER(OFFSET('1_Velvoiteluettelo'!$F17,F106,0)),"Lisää yritysten lukumäärä!","")) -> Ok! | G24: =IF(ISNUMBER(G11),IF(AND(AND(G88>0,ISNUMBER(OFFSET('1_Velvoiteluettelo'!$F17,G106,0))),NOT(G13=0)),"Ok!",IF(AND(AND(G88>0,ISNUMBER(OFFSET('1_Velvoiteluettelo'!$F17,G106,0))),(G13=0)),"Lisää frekvenssi!",IF(AND(G88=0,ISBLANK(OFFSET('1_Velvoiteluettelo'!$F17,G106,0))),"",IF(AND(G88>0,ISBLANK(OFFSET('1_Velvoiteluettelo'!$F17,G106,0))),"Tarkista voimaantulo!","Lisää tunnit (jos tarpeen)")))),IF(ISNUMBER(OFFSET('1_Velvoiteluettelo'!$F17,G106,0)),"Lisää yritysten lukumäärä!","")) -> Ok! | H24: =IF(ISNUMBER(H11),IF(AND(AND(H88>0,ISNUMBER(OFFSET('1_Velvoiteluettelo'!$F17,H106,0))),NOT(H13=0)),"Ok!",IF(AND(AND(H88>0,ISNUMBER(OFFSET('1_Velvoiteluettelo'!$F17,H106,0))),(H13=0)),"Lisää frekvenssi!",IF(AND(H88=0,ISBLANK(OFFSET('1_Velvoiteluettelo'!$F17,H106,0))),"",IF(AND(H88>0,ISBLANK(OFFSET('1_Velvoiteluettelo'!$F17,H106,0))),"Tarkista voimaantulo!","Lisää tunnit (jos tarpeen)")))),IF(ISNUMBER(OFFSET('1_Velvoiteluettelo'!$F17,H106,0)),"Lisää yritysten lukumäärä!","")) -> Ok! | I24: =IF(ISNUMBER(I11),IF(AND(AND(I88>0,ISNUMBER(OFFSET('1_Velvoiteluettelo'!$F17,I106,0))),NOT(I13=0)),"Ok!",IF(AND(AND(I88>0,ISNUMBER(OFFSET('1_Velvoiteluettelo'!$F17,I106,0))),(I13=0)),"Lisää frekvenssi!",IF(AND(I88=0,ISBLANK(OFFSET('1_Velvoiteluettelo'!$F17,I106,0))),"",IF(AND(I88>0,ISBLANK(OFFSET('1_Velvoiteluettelo'!$F17,I106,0))),"Tarkista voimaantulo!","Lisää tunnit (jos tarpeen)")))),IF(ISNUMBER(OFFSET('1_Velvoiteluettelo'!$F17,I106,0)),"Lisää yritysten lukumäärä!","")) -> Ok! | J24: =IF(ISNUMBER(J11),IF(AND(AND(J88>0,ISNUMBER(OFFSET('1_Velvoiteluettelo'!$F17,J106,0))),NOT(J13=0)),"Ok!",IF(AND(AND(J88>0,ISNUMBER(OFFSET('1_Velvoiteluettelo'!$F17,J106,0))),(J13=0)),"Lisää frekvenssi!",IF(AND(J88=0,ISBLANK(OFFSET('1_Velvoiteluettelo'!$F17,J106,0))),"",IF(AND(J88>0,ISBLANK(OFFSET('1_Velvoiteluettelo'!$F17,J106,0))),"Tarkista voimaantulo!","Lisää tunnit (jos tarpeen)")))),IF(ISNUMBER(OFFSET('1_Velvoiteluettelo'!$F17,J106,0)),"Lisää yritysten lukumäärä!","")) -> 
B26: C1 | C26: KERTALUONTEINEN HALLINNOLLINEN TAAKKA (1. VUOSI, sopeutuminen)
D27: Palkkaluokka | E27: Kuukausipalkka | F27: Sopeuttamisesta vain kerran koituvat työTUNNIT per yritys
D28: Johtaja | E28: =E17 -> 7100 | F28: 0 | G28: 0 | H28: 0 | I28: 0 | J28: 0
D29: Ylemmän tason asiantuntija, erityisasiantuntija | E29: =E18 -> 4700 | F29: 0 | G29: 0 | H29: 0 | I29: 0 | J29: 0
C30: => | D30: Asiantuntija (oletus) | E30: 3700 | F30: 0 | G30: 0 | H30: 0 | I30: 0 | J30: 0
D31: Yleissihteeri, tallentaja, palkanlaskija | E31: 2900 | F31: 0 | G31: 0 | H31: 0 | I31: 0 | J31: 0
D32: Toimistoavustaja | E32: 2600 | F32: 0 | G32: 0 | H32: 0 | I32: 0 | J32: 0
D33: Muu, mikä? | F33: 0 | G33: 0 | H33: 0 | I33: 0 | J33: 0
D34: Kertaluonteinen hlöstökustannus yht kohdeyrityksille | F34: =F60 -> 0 | G34: =G60 -> 0 | H34: =H60 -> 0 | I34: =I60 -> 0 | J34: =J60 -> 0
D35: Tarkistus | F35: =IF(AND(F97>0,ISNUMBER(OFFSET('1_Velvoiteluettelo'!$F17,F106,0))),"Ok!",IF(AND(F97=0,ISBLANK(OFFSET('1_Velvoiteluettelo'!$F17,F106,0))),"",IF(AND(F97>0,ISBLANK(OFFSET('1_Velvoiteluettelo'!$F17,F106,0))),"Tarkista voimaantulo!","Lisää tunnit jos tarpeen"))) -> Lisää tunnit jos tarpeen | G35: =IF(AND(G97>0,ISNUMBER(OFFSET('1_Velvoiteluettelo'!$F17,G106,0))),"Ok!",IF(AND(G97=0,ISBLANK(OFFSET('1_Velvoiteluettelo'!$F17,G106,0))),"",IF(AND(G97>0,ISBLANK(OFFSET('1_Velvoiteluettelo'!$F17,G106,0))),"Tarkista voimaantulo!","Lisää tunnit jos tarpeen"))) -> Lisää tunnit jos tarpeen | H35: =IF(AND(H97>0,ISNUMBER(OFFSET('1_Velvoiteluettelo'!$F17,H106,0))),"Ok!",IF(AND(H97=0,ISBLANK(OFFSET('1_Velvoiteluettelo'!$F17,H106,0))),"",IF(AND(H97>0,ISBLANK(OFFSET('1_Velvoiteluettelo'!$F17,H106,0))),"Tarkista voimaantulo!","Lisää tunnit jos tarpeen"))) -> Lisää tunnit jos tarpeen | I35: =IF(AND(I97>0,ISNUMBER(OFFSET('1_Velvoiteluettelo'!$F17,I106,0))),"Ok!",IF(AND(I97=0,ISBLANK(OFFSET('1_Velvoiteluettelo'!$F17,I106,0))),"",IF(AND(I97>0,ISBLANK(OFFSET('1_Velvoiteluettelo'!$F17,I106,0))),"Tarkista voimaantulo!","Lisää tunnit jos tarpeen"))) -> Lisää tunnit jos tarpeen | J35: =IF(AND(J97>0,ISNUMBER(OFFSET('1_Velvoiteluettelo'!$F17,J106,0))),"Ok!",IF(AND(J97=0,ISBLANK(OFFSET('1_Velvoiteluettelo'!$F17,J106,0))),"",IF(AND(J97>0,ISBLANK(OFFSET('1_Velvoiteluettelo'!$F17,J106,0))),"Tarkista voimaantulo!","Lisää tunnit jos tarpeen"))) -> 
D37: Kirjoita tähän perustelut ja kuinka tiedot on hankittu, lähdeviittaukset.
D38: Vastuuhenkilöiden määrät Tukesin rekisteri 1/2022, liikkeiden määrä arvio. Uusimisilmoituksen tekemisen työmääräksi arvioitu yksi tunti, oletuksena että tarvittavien selvitysten laatiminen ei työlästä
C43: Taustalaskuja - nämä tiedoksi ja nähtäväksi, ei vaadi valmistelijalta toimenpiteitä. Jos yllä olevat tiedot täytetty, siirry seuraaville välilehdille.
C45: B1 | D45: Toistuvat henkilöstökulut tai -säästöt | F45: =F9 -> Paloilmoitin vastuhenkilön pätevyys | G45: =G9 -> Samuutuslaitteisto vastuuuhenkilön pätevyys | H45: =H9 -> Käsisammutinliikkeen toimintailmoitus | I45: =I9 -> Käsisammutin vastuuhenkilön pätevyys | J45: =J9 -> Velvoite5
D46: Käytetty keskipalkka (€/kk) | F46: =IF(ISNUMBER($E$22),F90*$E$90+F91*$E$91+F92*$E$92+F93*$E$93+F94*$E$94+F95*$E$22,F90*$E$90+F91*$E$91+F92*$E$92+F93*$E$93+F94*$E$94) -> 3677 | G46: =IF(ISNUMBER($E$22),G90*$E$90+G91*$E$91+G92*$E$92+G93*$E$93+G94*$E$94+G95*$E$22,G90*$E$90+G91*$E$91+G92*$E$92+G93*$E$93+G94*$E$94) -> 3677 | H46: 3677 | I46: 3677 | J46: 0
D47: Kk-työkustannus ml. palkan sivukulu ja yleiskulu | F47: =(1+$E$70)*F46 -> 5868.492 | G47: =(1+$E$70)*G46 -> 5868.492 | H47: 5868.492 | I47: 5868.492 | J47: 0
D48: Tuntitaksa sivu- ja yleiskuluineen (€/h) | F48: =F47/$E$79 -> 35.20053264 | G48: =G47/$E$79 -> 35.20053264 | H48: 35.20053264 | I48: 35.20053264 | J48: 0
D49: Tehtävään käytettävät tunnit p.a. | F49: =F88*F13 -> 0.33 | G49: =G88*G13 -> 0.2 | H49: =H88*H13 -> 0.2 | I49: =I88*I13 -> 0.2 | J49: =J88*J13 -> 0
D50: Kustannukset vuodessa per yritys | F50: =IF(OR(OFFSET('1_Velvoiteluettelo'!$G$17,F106,0)="EU-minimisääntelyä",OFFSET('1_Velvoiteluettelo'!$G$17,F106,0)="Kansallista tai EU-minimin ylittävää lisäsääntelyä"),F49*F48,IF(AND(ISBLANK(OFFSET('1_Velvoiteluettelo'!$G$17,F106,0)),F49>0),"Täydennä sivu 1",(-F49*F48))) -> -11.61617577 | G50: =IF(OR(OFFSET('1_Velvoiteluettelo'!$G$17,G106,0)="EU-minimisääntelyä",OFFSET('1_Velvoiteluettelo'!$G$17,G106,0)="Kansallista tai EU-minimin ylittävää lisäsääntelyä"),G49*G48,IF(AND(ISBLANK(OFFSET('1_Velvoiteluettelo'!$G$17,G106,0)),G49>0),"Täydennä sivu 1",(-G49*G48))) -> -7.040106528 | H50: =IF(OR(OFFSET('1_Velvoiteluettelo'!$G$17,H106,0)="EU-minimisääntelyä",OFFSET('1_Velvoiteluettelo'!$G$17,H106,0)="Kansallista tai EU-minimin ylittävää lisäsääntelyä"),H49*H48,IF(AND(ISBLANK(OFFSET('1_Velvoiteluettelo'!$G$17,H106,0)),H49>0),"Täydennä sivu 1",(-H49*H48))) -> -7.040106528 | I50: =IF(OR(OFFSET('1_Velvoiteluettelo'!$G$17,I106,0)="EU-minimisääntelyä",OFFSET('1_Velvoiteluettelo'!$G$17,I106,0)="Kansallista tai EU-minimin ylittävää lisäsääntelyä"),I49*I48,IF(AND(ISBLANK(OFFSET('1_Velvoiteluettelo'!$G$17,I106,0)),I49>0),"Täydennä sivu 1",(-I49*I48))) -> -7.040106528 | J50: =IF(OR(OFFSET('1_Velvoiteluettelo'!$G$17,J106,0)="EU-minimisääntelyä",OFFSET('1_Velvoiteluettelo'!$G$17,J106,0)="Kansallista tai EU-minimin ylittävää lisäsääntelyä"),J49*J48,IF(AND(ISBLANK(OFFSET('1_Velvoiteluettelo'!$G$17,J106,0)),J49>0),"Täydennä sivu 1",(-J49*J48))) -> 0
D51: Toistuva hallinnollinen taakka yht kohdeyrityksille p.a. | F51: =F11*F50*(1-F12) -> -2397.578679 | G51: =G11*G50*(1-G12) -> -1182.737897 | H51: -1351.700453 | I51: -2893.483783 | J51: =J11*J50*(1-J12) -> 0
C54: C1 | D54: Kertaluontoiset henkilöstökulut | F54: =F9 -> Paloilmoitin vastuhenkilön pätevyys | G54: =G9 -> Samuutuslaitteisto vastuuuhenkilön pätevyys | H54: =H9 -> Käsisammutinliikkeen toimintailmoitus | I54: =I9 -> Käsisammutin vastuuhenkilön pätevyys | J54: =J9 -> Velvoite5
D55: Henkilöstökulut per yritys | F55: =F58*F59 -> 0 | G55: =G58*G59 -> 0 | H55: 0 | I55: 0 | J55: 0
D56: Käytetty keskipalkka (€/kk) | F56: =IF(ISNUMBER($E$33),F99*$E$90+F100*$E$91+F101*$E$92+F102*$E$93+F103*$E$94+F104*$E$33,F99*$E$90+F100*$E$91+F101*$E$92+F102*$E$93+F103*$E$94) -> 0 | G56: =IF(ISNUMBER($E$33),G99*$E$90+G100*$E$91+G101*$E$92+G102*$E$93+G103*$E$94+G104*$E$33,G99*$E$90+G100*$E$91+G101*$E$92+G102*$E$93+G103*$E$94) -> 0 | H56: 0 | I56: 0 | J56: 0
D57: Kk-työkustannus ml. palkan sivukulu ja yleiskulu | F57: =(1+$E$70)*F56 -> 0 | G57: =(1+$E$70)*G56 -> 0 | H57: 0 | I57: 0 | J57: 0
D58: Tuntitaksa sivu- ja yleiskuluineen (€/h) | F58: =F57/$E$79 -> 0 | G58: =G57/$E$79 -> 0 | H58: 0 | I58: 0 | J58: 0
D59: Tehtävään käytettävät tunnit vuodessa | F59: =F97 -> 0 | G59: =G97 -> 0 | H59: 0 | I59: 0 | J59: 0
D60: Kertaluonteinen hallinnollinen taakka yht. kohdeyrityksille | F60: =F55*F11*(1-F12) -> 0 | G60: =G55*G11*(1-G12) -> 0 | H60: 0 | I60: 0 | J60: 0
C64: Palkan sivukulu ja yleiskulu
C65: Palkan sivukulu ja yleiskulu perustuvat … Tähän ei tarvitse syöttää tietoa, eikä tätä tarvitse kopioida. Tämä on vain tiedoksi kertoimesta, joka on valmiina laskukaavassa.
D68: Palkkojen sivukulu-% | E68: 0.346
D69: Yleiskulu-% | E69: 0.25
D70: Yhteensä | E70: =E69+E68 -> 0.596 | F70: Palkka kerrotaan kertoimella 1+(tämä %-luku)
C75: Työtunnit (yksityinen sektori)
C76: Tähän ei tarvitse syöttää tietoa, eikä tätä tarvitse kopioida. Tämä on vain tiedoksi jakajasta, joka on valmiina laskukaavassa.
E78: Työtuntia
D79: Kuukaudessa | E79: =E81*22 -> 166.716 | F79: Kuukausipalkka jaetaan tällä tuntimäärällä tuntipalkan laskemiseksi
D80: Viikossa | E80: 37.89
D81: Päivässä | E81: =E80/5 -> 7.578
D87: Tarkat palkkasummat 2017 (säännöllisen työajan keskiansio) | F87: Taustalaskuja, älä muuta alla olevien solujen tietoja
F88: =IF(ISNUMBER($E$22),SUM(F17:F22),SUM(F17:F21)) -> 1 | G88: =IF(ISNUMBER($E$22),SUM(G17:G22),SUM(G17:G21)) -> 1 | H88: =IF(ISNUMBER($E$22),SUM(H17:H22),SUM(H17:H21)) -> 1 | I88: =IF(ISNUMBER($E$22),SUM(I17:I22),SUM(I17:I21)) -> 1 | J88: =IF(ISNUMBER($E$22),SUM(J17:J22),SUM(J17:J21)) -> 0
D89: Palkkaluokka
D90: Johtaja (1 AML 2010) | E90: ='Taustatietoa palkat am lk'!B5 -> 7093 | F90: =IF((F$88>0),(F17/F$88),0) -> 0 | G90: 0 | H90: 0 | I90: 0 | J90: 0
D91: Erityisasiantuntijat (2 AML 2010) | E91: ='Taustatietoa palkat am lk'!B51 -> 4677 | F91: =IF((F$88>0),(F18/F$88),0) -> 0 | G91: 0 | H91: 0 | I91: 0 | J91: 0
D92: Asiantuntija (3 AML 2010) | E92: ='Taustatietoa palkat am lk'!B193 -> 3677 | F92: 1 | G92: 1 | H92: 1 | I92: 1 | J92: 0
D93: Yleissihteeri, tallentaja, palkanlaskija (412, 4132, 431 AML 2010) | E93: ='Taustatietoa palkat am lk'!B594 -> 2874.666667 | F93: 0 | G93: 0 | H93: 0 | I93: 0 | J93: 0
D94: Toimistoavustaja (411 AML 2010) | E94: ='Taustatietoa palkat am lk'!B316 -> 2636 | F94: 0 | G94: 0 | H94: 0 | I94: 0 | J94: 0
F95: =IF((F$88>0),(F22/F$88),0) -> 0 | G95: 0 | H95: 0 | I95: 0 | J95: 0
D96: Lähde: Tilastokeskus, palkat ja työvoimakustannukset yksityisellä sektorilla
D97: Ks. välilehti Taustatietoa palkat am lk | F97: =IF(ISNUMBER($E$33),SUM(F28:F33),SUM(F28:F32)) -> 0 | G97: =IF(ISNUMBER($E$33),SUM(G28:G33),SUM(G28:G32)) -> 0 | H97: =IF(ISNUMBER($E$33),SUM(H28:H33),SUM(H28:H32)) -> 0 | I97: =IF(ISNUMBER($E$33),SUM(I28:I33),SUM(I28:I32)) -> 0 | J97: =IF(ISNUMBER($E$33),SUM(J28:J33),SUM(J28:J32)) -> 0
F99: =IF((F$97>0),(F28/F$97),0) -> 0 | G99: =IF((G$97>0),(G28/G$97),0) -> 0 | H99: 0 | I99: 0 | J99: 0
F100: 0 | G100: 0 | H100: 0 | I100: 0 | J100: 0
F101: 0 | G101: 0 | H101: 0 | I101: 0 | J101: 0
F102: 0 | G102: 0 | H102: 0 | I102: 0 | J102: 0
F103: 0 | G103: 0 | H103: 0 | I103: 0 | J103: 0
F104: 0 | G104: 0 | H104: 0 | I104: 0 | J104: 0
D106: Sarakelaskuri: | E106: ='Listat (älä muuta)'!G4+12 -> 12 | F106: 0 | G106: =F106+1 -> 1 | H106: =G106+1 -> 2 | I106: =H106+1 -> 3 | J106: =I106+1 -> 4 | K106: =J106+1 -> 5 | L106: 4
F109: 0

Sheet 3_Muut kustannukset
A1: Muut toistuvat ja kertaluonteiset kustannuserät -> Kaikki kustannukset yhteensä
B5: Tällä taulukon välilehdellä lasketaan sääntelytaakka kokonaisuudessaan yritys- ja tehtäväkohtaisesti sekä samalla koskien koko kohdejoukkoa.
A6: Ohjeet | B6: Täydennä alla laskentataulukkoon keltaisella pohjalla olevat kohdat B2 (toistuvat) ja C2 (kertaluonteiset) tarpeen mukaan. Ks. ohjeita soluista, joissa punainen kulma.
B7: Kun olet täyttänyt tiedot, siirry joko välilehdelle | I7: "4_Poikkeukset" | J7: tai | K7: "5_Yhteenveto"
I10: =IF(ISTEXT(OFFSET('1_Velvoiteluettelo'!$C17,I74,0)),(OFFSET('1_Velvoiteluettelo'!$C17,I74,0)),"Velvoite"&I74+1) -> Paloilmoitin vastuhenkilön pätevyys | J10: =IF(ISTEXT(OFFSET('1_Velvoiteluettelo'!$C17,J74,0)),(OFFSET('1_Velvoiteluettelo'!$C17,J74,0)),"Velvoite"&J74+1) -> Samuutuslaitteisto vastuuuhenkilön pätevyys | K10: =IF(ISTEXT(OFFSET('1_Velvoiteluettelo'!$C17,K74,0)),(OFFSET('1_Velvoiteluettelo'!$C17,K74,0)),"Velvoite"&K74+1) -> Käsisammutinliikkeen toimintailmoitus | L10: =IF(ISTEXT(OFFSET('1_Velvoiteluettelo'!$C17,L74,0)),(OFFSET('1_Velvoiteluettelo'!$C17,L74,0)),"Velvoite"&L74+1) -> Käsisammutin vastuuhenkilön pätevyys | M10: =IF(ISTEXT(OFFSET('1_Velvoiteluettelo'!$C17,M74,0)),(OFFSET('1_Velvoiteluettelo'!$C17,M74,0)),"Velvoite"&M74+1) -> Velvoite5
D11: A. | E11: Perustiedot, eli kohdejoukko ja frekvenssi (tiedot siirtyy välilehdeltä 2B_työkustannus. Täydennä ja korjaa nämä tarvittaessa edelliselle välilehdelle.)
F13: A1 | G13: Kohdejoukko (yritysten lukumäärä) | I13: =OFFSET('2B_Työkustannus'!$F11,0,1*I74) -> 258 | J13: =OFFSET('2B_Työkustannus'!$F11,0,1*J74) -> 168 | K13: =OFFSET('2B_Työkustannus'!$F11,0,1*K74) -> 240 | L13: =OFFSET('2B_Työkustannus'!$F11,0,1*L74) -> 411 | M13: =OFFSET('2B_Työkustannus'!$F11,0,1*M74) -> 0
F14: A3 | G14: Business-as-Usual-osuus | I14: =OFFSET('2B_Työkustannus'!$F12,0,1*I74) -> 0.2 | J14: =OFFSET('2B_Työkustannus'!$F12,0,1*J74) -> 0 | K14: =OFFSET('2B_Työkustannus'!$F12,0,1*K74) -> 0.2 | L14: =OFFSET('2B_Työkustannus'!$F12,0,1*L74) -> 0 | M14: =OFFSET('2B_Työkustannus'!$F12,0,1*M74) -> 0
F15: A3 | G15: Frekvenssi per vuosi | I15: =OFFSET('2B_Työkustannus'!$F13,0,1*I74) -> 0.33 | J15: =OFFSET('2B_Työkustannus'!$F13,0,1*J74) -> 0.2 | K15: =OFFSET('2B_Työkustannus'!$F13,0,1*K74) -> 0.2 | L15: =OFFSET('2B_Työkustannus'!$F13,0,1*L74) -> 0.2 | M15: =OFFSET('2B_Työkustannus'!$F13,0,1*M74) -> 0
D17: B. | E17: Toistuvat taakkavaikutukset (1. vuosi ja sen jälkeen)
I18: Lain yritykselle aiheuttamat velvoitteet, joista suoria kustannuslisäyksiä tai velvoitteet, joiden purusta kustannussäästöjä
F20: B1 | G20: Toistuvat henkilöstökustannukset tai -säästöt | P20: Yhteensä
G21: Toistuva hallinnollinen taakka yht kohdeyrityksille p.a. | I21: =OFFSET('2B_Työkustannus'!$F23,0,1*I74) -> -2397.578679 | J21: =OFFSET('2B_Työkustannus'!$F23,0,1*J74) -> -1182.737897 | K21: =OFFSET('2B_Työkustannus'!$F23,0,1*K74) -> -1351.700453 | L21: =OFFSET('2B_Työkustannus'!$F23,0,1*L74) -> -2893.483783 | M21: =OFFSET('2B_Työkustannus'!$F23,0,1*M74) -> 0 | P21: =SUM(I21:N21) -> -7825.500813
F23: B2 | G23: Muut toistuvat kustannukset velvoitteista tai säästöt velvoitteiden purusta
H24: Hankintakustannukset per frekvenssi | I24: 0 | J24: 0 | K24: 0 | L24: 0 | M24: 0
H25: Välinekustannukset per frekvenssi | I25: 0 | J25: 0 | K25: 0 | L25: 0 | M25: 0
H26: Muut kustannukset per frekvenssi | I26: 60 | J26: 60 | K26: 60 | L26: 60 | M26: 0
H27: Kustannukset yhteensä per yritys p.a. | I27: =IF(OR(OFFSET('1_Velvoiteluettelo'!$G$17,I74,0)="EU-minimisääntelyä",OFFSET('1_Velvoiteluettelo'!$G$17,I74,0)="Kansallista tai EU-minimin ylittävää lisäsääntelyä"),SUM(I24:I26)*I15,IF(AND(ISBLANK(OFFSET('1_Velvoiteluettelo'!$G$17,I74,0)),I24+I25+I26>0),"Täydennä sivu 1",(-SUM(I24:I26)*I15*(1-I14)))) -> -15.84 | J27: =IF(OR(OFFSET('1_Velvoiteluettelo'!$G$17,J74,0)="EU-minimisääntelyä",OFFSET('1_Velvoiteluettelo'!$G$17,J74,0)="Kansallista tai EU-minimin ylittävää lisäsääntelyä"),SUM(J24:J26)*J15,IF(AND(ISBLANK(OFFSET('1_Velvoiteluettelo'!$G$17,J74,0)),J24+J25+J26>0),"Täydennä sivu 1",(-SUM(J24:J26)*J15*(1-J14)))) -> -12 | K27: =IF(OR(OFFSET('1_Velvoiteluettelo'!$G$17,K74,0)="EU-minimisääntelyä",OFFSET('1_Velvoiteluettelo'!$G$17,K74,0)="Kansallista tai EU-minimin ylittävää lisäsääntelyä"),SUM(K24:K26)*K15,IF(AND(ISBLANK(OFFSET('1_Velvoiteluettelo'!$G$17,K74,0)),K24+K25+K26>0),"Täydennä sivu 1",(-SUM(K24:K26)*K15*(1-K14)))) -> -9.6 | L27: =IF(OR(OFFSET('1_Velvoiteluettelo'!$G$17,L74,0)="EU-minimisääntelyä",OFFSET('1_Velvoiteluettelo'!$G$17,L74,0)="Kansallista tai EU-minimin ylittävää lisäsääntelyä"),SUM(L24:L26)*L15,IF(AND(ISBLANK(OFFSET('1_Velvoiteluettelo'!$G$17,L74,0)),L24+L25+L26>0),"Täydennä sivu 1",(-SUM(L24:L26)*L15*(1-L14)))) -> -12 | M27: =IF(OR(OFFSET('1_Velvoiteluettelo'!$G$17,M74,0)="EU-minimisääntelyä",OFFSET('1_Velvoiteluettelo'!$G$17,M74,0)="Kansallista tai EU-minimin ylittävää lisäsääntelyä"),SUM(M24:M26)*M15,IF(AND(ISBLANK(OFFSET('1_Velvoiteluettelo'!$G$17,M74,0)),M24+M25+M26>0),"Täydennä sivu 1",(-SUM(M24:M26)*M15*(1-M14)))) -> 0 | P27: =SUM(I27:N27) -> -49.44
G28: Muut toistuvat kustannukset yht kohdeyrityksille p.a. | I28: =IF(OR(OFFSET('1_Velvoiteluettelo'!$G$17,I74,0)="EU-minimisääntelyä",OFFSET('1_Velvoiteluettelo'!$G$17,I74,0)="Kansallista tai EU-minimin ylittävää lisäsääntelyä"),(I24+I25+I26)*I13*I15*(1-I14),IF(AND(ISBLANK(OFFSET('1_Velvoiteluettelo'!$G$17,I74,0)),I24+I25+I26>0),"Täydennä sivu 1",(-(I24+I25+I26)*I13*I15*(1-I14)))) -> -4086.72 | J28: =IF(OR(OFFSET('1_Velvoiteluettelo'!$G$17,J74,0)="EU-minimisääntelyä",OFFSET('1_Velvoiteluettelo'!$G$17,J74,0)="Kansallista tai EU-minimin ylittävää lisäsääntelyä"),(J24+J25+J26)*J13*J15*(1-J14),IF(AND(ISBLANK(OFFSET('1_Velvoiteluettelo'!$G$17,J74,0)),J24+J25+J26>0),"Täydennä sivu 1",(-(J24+J25+J26)*J13*J15*(1-J14)))) -> -2016 | K28: =IF(OR(OFFSET('1_Velvoiteluettelo'!$G$17,K74,0)="EU-minimisääntelyä",OFFSET('1_Velvoiteluettelo'!$G$17,K74,0)="Kansallista tai EU-minimin ylittävää lisäsääntelyä"),(K24+K25+K26)*K13*K15*(1-K14),IF(AND(ISBLANK(OFFSET('1_Velvoiteluettelo'!$G$17,K74,0)),K24+K25+K26>0),"Täydennä sivu 1",(-(K24+K25+K26)*K13*K15*(1-K14)))) -> -2304 | L28: =IF(OR(OFFSET('1_Velvoiteluettelo'!$G$17,L74,0)="EU-minimisääntelyä",OFFSET('1_Velvoiteluettelo'!$G$17,L74,0)="Kansallista tai EU-minimin ylittävää lisäsääntelyä"),(L24+L25+L26)*L13*L15*(1-L14),IF(AND(ISBLANK(OFFSET('1_Velvoiteluettelo'!$G$17,L74,0)),L24+L25+L26>0),"Täydennä sivu 1",(-(L24+L25+L26)*L13*L15*(1-L14)))) -> -4932 | M28: =IF(OR(OFFSET('1_Velvoiteluettelo'!$G$17,M74,0)="EU-minimisääntelyä",OFFSET('1_Velvoiteluettelo'!$G$17,M74,0)="Kansallista tai EU-minimin ylittävää lisäsääntelyä"),(M24+M25+M26)*M13*M15*(1-M14),IF(AND(ISBLANK(OFFSET('1_Velvoiteluettelo'!$G$17,M74,0)),M24+M25+M26>0),"Täydennä sivu 1",(-(M24+M25+M26)*M13*M15*(1-M14)))) -> 0 | P28: =SUM(I28:N28) -> -13338.72
F30: B Yht | G30: Toistuvat kustannukset yht kohdeyrityksille | I30: =I21+I28 -> -6484.298679 | J30: =J21+J28 -> -3198.737897 | K30: =K21+K28 -> -3655.700453 | L30: =L21+L28 -> -7825.483783 | M30: =M21+M28 -> 0 | P30: =SUM(I30:N30) -> -21164.22081
D32: C. | E32: Kertaluonteiset taakkavaikutukset (1. vuosi)
I33: Lain yritykselle aiheuttamat velvoitteet, joista suoria kustannuslisäyksiä tai velvoitteet, joiden purusta kustannussäästöjä
F35: C1 | G35: Kertaluonteiset henkilöstökustannukset | P35: Yhteensä
G36: Kertaluontoinen henkilöstökustannus kaikille yrityksille yhteensä | I36: =OFFSET('2B_Työkustannus'!$F60,0,1*I74) -> 0 | J36: =OFFSET('2B_Työkustannus'!$F60,0,1*J74) -> 0 | K36: =OFFSET('2B_Työkustannus'!$F60,0,1*K74) -> 0 | L36: =OFFSET('2B_Työkustannus'!$F60,0,1*L74) -> 0 | M36: =OFFSET('2B_Työkustannus'!$F60,0,1*M74) -> 0 | P36: =SUM(I36:N36) -> 0
F38: C2 | G38: Sääntelyn yritykselle aiheuttamat muut Kertaluonteiset kustannukset
H39: Hankintakustannukset | I39: 0 | J39: 0 | K39: 0 | L39: 0 | M39: 0 | P39: =SUM(I39:N39) -> 0
H40: Välinekustannukset | I40: 0 | J40: 0 | K40: 0 | L40: 0 | M40: 0 | P40: =SUM(I40:N40) -> 0
H41: Muut kustannukset | I41: 0 | J41: 0 | K41: 0 | L41: 0 | M41: 0 | P41: =SUM(I41:N41) -> 0
H42: Kustannukset yhteensä per yritys | I42: =SUM(I39:I41) -> 0 | J42: =SUM(J39:J41) -> 0 | K42: =SUM(K39:K41) -> 0 | L42: =SUM(L39:L41) -> 0 | M42: =SUM(M39:M41) -> 0 | P42: =SUM(I42:N42) -> 0
G43: Kertaluonteiset muut kust. yht. kohdeyrityksille | I43: =IF(AND(ISBLANK(OFFSET('1_Velvoiteluettelo'!$G$17,I74,0)),I39+I40+I41>0),"Täydennä sivu 1",(SUM(I39:I41)))*I13*(1-I14) -> 0 | J43: =IF(AND(ISBLANK(OFFSET('1_Velvoiteluettelo'!$G$17,J74,0)),J39+J40+J41>0),"Täydennä sivu 1",(SUM(J39:J41)))*J13*(1-J14) -> 0 | K43: =IF(AND(ISBLANK(OFFSET('1_Velvoiteluettelo'!$G$17,K74,0)),K39+K40+K41>0),"Täydennä sivu 1",(SUM(K39:K41)))*K13*(1-K14) -> 0 | L43: =IF(AND(ISBLANK(OFFSET('1_Velvoiteluettelo'!$G$17,L74,0)),L39+L40+L41>0),"Täydennä sivu 1",(SUM(L39:L41)))*L13*(1-L14) -> 0 | M43: =IF(AND(ISBLANK(OFFSET('1_Velvoiteluettelo'!$G$17,M74,0)),M39+M40+M41>0),"Täydennä sivu 1",(SUM(M39:M41)))*M13*(1-M14) -> 0 | P43: =SUM(I43:N43) -> 0
F45: C Yht | G45: Kertaluonteiset kust. yht. kohdeyrityksille | I45: =I43+I36 -> 0 | J45: =J43+J36 -> 0 | K45: =K43+K36 -> 0 | L45: =L43+L36 -> 0 | M45: =M43+M36 -> 0 | P45: =SUM(I45:N45) -> 0
G48: Kirjoita tähän perustelut ja kuinka tiedot on hankittu, lähdeviittaukset.
G49: Liikkeen toimintailmoituksen muutos 60 e, vastuuhenkilön pätevyystodistus 60 e. Tukesin maksuasetus (1283/2021) vuosina 2022–2024.
I73: Apuruutuja, älä muuta | J73: ='Listat (älä muuta)'!G4+15 -> 15
I74: 0 | J74: =I74+1 -> 1 | K74: =J74+1 -> 2 | L74: =K74+1 -> 3 | M74: =L74+1 -> 4 | N74: =M74+1 -> 5

Sheet 4_Poikkeukset
B2: POIKKEUS: kasvava tai supistuva yritysjoukko
B4: Käytä VAIN, mikäli on uskottavasti odotettavissa, että yritysjoukko, jota sääntely koskee, on merkittävästi joko kasvamassa tai supistumassa tulevaisuudessa | V4: ='Listat (älä muuta)'!G4+14 -> 14
C6: Yritysjoukon kasvunopeus (%) | E6: Yritysten lukumäärä | H6: =IF(AND(SUM(C8:C13)=0,SUM(E8:E13)=SUM(F8:F13)),"",IF(ISBLANK(B16),"Kirjoita perustelut!","Ok!")) -> 
C7: Vuodessa (täytä) | D7: Kymmenessä vuodessa | E7: Yrityksiä perusvuonna | F7: Yrityksiä 10 vuoden päästä
B8: =IF(ISTEXT('1_Velvoiteluettelo'!C17),'1_Velvoiteluettelo'!C17,'1_Velvoiteluettelo'!B17) -> Paloilmoitin vastuhenkilön pätevyys | C8: 0 | D8: =((C8+1)^10)-1 -> 0 | E8: =OFFSET('3_Muut kustannukset'!$I$13,0,'1_Velvoiteluettelo'!S17-1) -> 258 | F8: =E8+D8*E8 -> 258
B9: =IF(ISTEXT('1_Velvoiteluettelo'!C18),'1_Velvoiteluettelo'!C18,'1_Velvoiteluettelo'!B18) -> Samuutuslaitteisto vastuuuhenkilön pätevyys | C9: 0 | D9: =((C9+1)^10)-1 -> 0 | E9: =OFFSET('3_Muut kustannukset'!$I$13,0,'1_Velvoiteluettelo'!S18-1) -> 168 | F9: =E9+D9*E9 -> 168
B10: =IF(ISTEXT('1_Velvoiteluettelo'!C19),'1_Velvoiteluettelo'!C19,'1_Velvoiteluettelo'!B19) -> Käsisammutinliikkeen toimintailmoitus | C10: 0 | D10: =((C10+1)^10)-1 -> 0 | E10: =OFFSET('3_Muut kustannukset'!$I$13,0,'1_Velvoiteluettelo'!S19-1) -> 240 | F10: =E10+D10*E10 -> 240
B11: =IF(ISTEXT('1_Velvoiteluettelo'!C20),'1_Velvoiteluettelo'!C20,'1_Velvoiteluettelo'!B20) -> Käsisammutin vastuuhenkilön pätevyys | C11: 0 | D11: =((C11+1)^10)-1 -> 0 | E11: =OFFSET('3_Muut kustannukset'!$I$13,0,'1_Velvoiteluettelo'!S20-1) -> 411 | F11: =E11+D11*E11 -> 411
B12: =IF(ISTEXT('1_Velvoiteluettelo'!C21),'1_Velvoiteluettelo'!C21,'1_Velvoiteluettelo'!B21) -> Velvoite5 | C12: 0 | D12: =((C12+1)^10)-1 -> 0 | E12: =OFFSET('3_Muut kustannukset'!$I$13,0,'1_Velvoiteluettelo'!S21-1) -> 0 | F12: =E12+D12*E12 -> 0
B15: Perustelut (Miksi uskot yritysjoukon koon muuttuvan, lähdeviittaukset):
C25: Palaa takaisin tai siirry
C26: Ohjeisiin
C27: Tarkistuslistaan | D27: Ohjeet ja tarkistuslista
C28: Välilehdelle 1 | D28: Velvoiteluettelo
C29: Välilehdelle 2 | D29: Työkustannukset
C30: Välilehdelle 3 | D30: Muut kustannuksen ja kustannukset yhteensä
C31: Välilehdelle 5 | D31: Yhteenveto
C32: Apu2 | D32: Tehtäväkohtainen aika - apu hahmottamiseen
C33: Apu3 | D33: Laite tms kustannuksista
C34: Apu4 | D34: Yksinkertainen esimerkkilaskelma
C35: Apu5 | D35: Tietolähteitä

Sheet 5_Yhteenveto
A1: Yhteenveto ja tiedot, jotka tulee kirjata hallituksen esitykseen
B5: Tälle välilehdelle ei täytetä mitään tietoja. Tämä välilehti kerää muilta välilehdiltä yhteenvedon kaikista velvoitteiden aiheuttamista kustannuslisäyksistä ja -säästöistä. Välilehdellä on myös eriteltynä nettokustannukset EU-sääntelystä ja kansallisesta sääntelystä. Katso kohdat, joihin on merkitty "Kirjaa nämä hallituksen esitykseen" ja kirjoita nämä auki HE:n yritysvaikutusarvioinnin alle. Huom. ao. luvut pyöristettyjä. Kirjoita HE:een noin numeroarvon eteen. Katso tarvittaessa myös oikeusminiteriön ohje vaikutusarvioinnin laatimisesta sekä TEM:n laatima ohjeistus. (Linkit ohessa) | H5: Lisäohjeita:
H6: Oikeusministeriön ohje (2007:6) vaikutusarvioinnin laatimisesta
H7: Työ- ja elinkeinoministeriön raportit ja ohjeet
A8: Ohjeet
H9: *Nettonykyarvo = Sääntelyn taakkavaikutus yrityskentälle nykyhetkestä tulevaisuuteen mitattuna perusvuoden rahassa (rahan arvo laskee 4 % vuosivauhtia)
B10: Lopuksi, lähetä laskelma tarkistettavaksi ja tallennettavaksi (koskee TEMiä). | H10: *Nettonykyarvo vuositasolla = Sääntelyn keskimääräinen taakkavaikutus vuositasolla lain voimassaolon ajan (oletus: 10 vuotta)
A12: Yhteenveto velvoitekohtaisesti | E12: Kirjaa nämä hallituksen esitykseen! | H12: Laskennallisia eriä | L12: Kustannukset per yritys | P12: Tarkat, ei pyöristetyt arvot | U12: per yritys, tarkat, ei pyöristetyt arvot | AA12: Apulaskuruutu: EU-sääntelyosan ja kansallisen osan erottaminen | AH12: Rivejä lisätty: | AI12: ='Listat (älä muuta)'!G4 -> 0
A13: Velvoite-numero | B13: Velvoitteen nimi | C13: Sääntelyn luonne | D13: Kuinka kauan voimassa? | E13: Yritysten määrä (A) | F13: Kertakustannus nykyrahassa (C) | G13: Toistuvat kustannukset (+) / säästöt (-) nykyrahassa (B) | H13: Kustannusten ja säästöjen kokonaissumman nettonykyarvo* | I13: Nettonykyarvo vuositasolla* | J13: Kannustin lainvalmistelijalle | L13: Velvoitteen nimi | M13: Kertakustannus nykyrahassa | N13: Toistuvat kustannukset (+) / säästöt (-) nykyrahassa vuosittain | P13: Kertakustannus nykyrahassa (C) | Q13: Toistuvat kustannukset (+) / säästöt (-) nykyrahassa (B) | R13: Kustannusten ja säästöjen kokonaissumman nettonykyarvo* | S13: Nettonykyarvo vuositasolla* | U13: Velvoitteen nimi | V13: Kertakustannus nykyrahassa | W13: Toistuvat kustannukset (+) / säästöt (-) nykyrahassa vuosittain | AA13: NPV:n EU-osuus | AB13: NPV:n Kansallinen osuus | AC13: Jos EU, arvo=1 | AD13: Jos kans., arvo=1 | AF13: Kerta- kustannusten EU-osuus | AG13: Toistuvien kustannusten EU-osuus | AH13: Kerta- kustannusten kans. osuus | AI13: Toistuvien kustannusten kans. osuus
A14: ='1_Velvoiteluettelo'!B17 -> Velvoite1 | B14: =IF(ISTEXT('1_Velvoiteluettelo'!C17),'1_Velvoiteluettelo'!C17,"") -> Paloilmoitin vastuhenkilön pätevyys | C14: =IF(ISTEXT('1_Velvoiteluettelo'!G17),'1_Velvoiteluettelo'!G17,"") -> Kansallisen tai EU-minimin ylittävän sääntelyn keventämistä | D14: ='1_Velvoiteluettelo'!E17 -> toistaiseksi | E14: =IF(ISNUMBER(OFFSET('3_Muut kustannukset'!$I$13,0,AE14)),OFFSET('3_Muut kustannukset'!$I$13,0,AE14),("-")) -> 258 | F14: =IF(P14>0,IF(OR((P14=1000000),(P14<1000000)),MROUND(P14,1000),IF(P14<10000000,MROUND(P14,10000),MROUND(P14,100000))),IF(OR((ABS(P14)=1000000),(ABS(P14)<1000000)),MROUND(P14,-1000),IF(ABS(P14)<10000000,MROUND(P14,-10000),MROUND(P14,-100000)))) -> 0 | G14: =IF(Q14>0,IF(OR((Q14=1000000),(Q14<1000000)),MROUND(Q14,1000),IF(Q14<10000000,MROUND(Q14,10000),MROUND(Q14,100000))),IF(OR((ABS(Q14)=1000000),(ABS(Q14)<1000000)),MROUND(Q14,-1000),IF(ABS(Q14)<10000000,MROUND(Q14,-10000),MROUND(Q14,-100000)))) -> -6000 | H14: =IF(R14>0,IF(OR((R14=100000),(R14<100000)),MROUND(R14,1000),IF(R14<1000000,MROUND(R14,10000),MROUND(R14,100000))),IF(OR((ABS(R14)=100000),(ABS(R14)<100000)),MROUND(R14,-1000),IF(ABS(R14)<1000000,MROUND(R14,-10000),MROUND(R14,-100000)))) -> -39000 | I14: =IF(S14>0,IF(OR((S14=100000),(S14<100000)),MROUND(S14,1000),IF(S14<1000000,MROUND(S14,10000),MROUND(S14,100000))),IF(OR((ABS(S14)=100000),(ABS(S14)<100000)),MROUND(S14,-1000),IF(ABS(S14)<1000000,MROUND(S14,-10000),MROUND(S14,-100000)))) -> -5000 | J14: =IF(ISBLANK('1_Velvoiteluettelo'!G17),"",IF(S14>0,"Voiko sääntelyä sujuvoittaa?",IF(S14=0,"","Hyvä, sääntelytaakka kevenee!"))) -> Hyvä, sääntelytaakka kevenee! | L14: =IF(ISTEXT('1_Velvoiteluettelo'!C17),'1_Velvoiteluettelo'!C17,"") -> Paloilmoitin vastuhenkilön pätevyys | M14: =IF(V14>0,IF(OR((V14=1000),(V14<1000)),MROUND(V14,10),IF(V14<100000,MROUND(V14,100),MROUND(V14,1000))),IF(OR((ABS(V14)=1000),(ABS(V14)<1000)),MROUND(V14,-10),IF(ABS(V14)<100000,MROUND(V14,-100),MROUND(V14,-1000)))) -> 0 | N14: =IF(W14>0,IF(OR((W14=1000),(W14<1000)),MROUND(W14,10),IF(W14<100000,MROUND(W14,100),MROUND(W14,1000))),IF(OR((ABS(W14)=1000),(ABS(W14)<1000)),MROUND(W14,-10),IF(ABS(W14)<100000,MROUND(W14,-100),MROUND(W14,-1000)))) -> -30 | P14: =OFFSET('3_Muut kustannukset'!I$45,0,AE14) -> 0 | Q14: =OFFSET('3_Muut kustannukset'!I$30,0,AE14) -> -6484.298679 | R14: =OFFSET('Annualisoitu NPV'!$D$38,0,AE14) -> -38783.29223 | S14: =OFFSET('Annualisoitu NPV'!$D$40,0,AE14) -> -4781.628723 | U14: =IF(ISTEXT('1_Velvoiteluettelo'!C17),'1_Velvoiteluettelo'!C17,"") -> Paloilmoitin vastuhenkilön pätevyys | V14: =IF(AND(NOT(E14=0),(ISNUMBER(E14))),P14/E14,"0") -> 0 | W14: =IF(AND(NOT(E14=0),(ISNUMBER(E14))),Q14/E14,"0") -> -25.13294062 | AA14: =R14*AC14 -> 0 | AB14: =R14*AD14 -> -38783.29223 | AC14: =IF(OR(C14="EU-minimisääntelyä",C14="EU:n velvoittamaa sääntelyn keventämistä"),1,IF(ISBLANK(C14),"",0)) -> 0 | AD14: =IF(OR(C14="EU-minimisääntelyä",C14="EU:n velvoittamaa sääntelyn keventämistä"),0,IF(ISBLANK(C14),"",1)) -> 1 | AE14: 0 | AF14: =P14*$AC14 -> 0 | AG14: =Q14*$AC14 -> 0 | AH14: =P14*$AD14 -> 0 | AI14: =Q14*$AD14 -> -6484.298679
A15: ='1_Velvoiteluettelo'!B18 -> Velvoite2 | B15: =IF(ISTEXT('1_Velvoiteluettelo'!C18),'1_Velvoiteluettelo'!C18,"") -> Samuutuslaitteisto vastuuuhenkilön pätevyys | C15: =IF(ISTEXT('1_Velvoiteluettelo'!G18),'1_Velvoiteluettelo'!G18,"") -> Kansallisen tai EU-minimin ylittävän sääntelyn keventämistä | D15: ='1_Velvoiteluettelo'!E18 -> toistaiseksi | E15: =IF(ISNUMBER(OFFSET('3_Muut kustannukset'!$I$13,0,AE15)),OFFSET('3_Muut kustannukset'!$I$13,0,AE15),("-")) -> 168 | F15: =IF(P15>0,IF(OR((P15=1000000),(P15<1000000)),MROUND(P15,1000),IF(P15<10000000,MROUND(P15,10000),MROUND(P15,100000))),IF(OR((ABS(P15)=1000000),(ABS(P15)<1000000)),MROUND(P15,-1000),IF(ABS(P15)<10000000,MROUND(P15,-10000),MROUND(P15,-100000)))) -> 0 | G15: =IF(Q15>0,IF(OR((Q15=1000000),(Q15<1000000)),MROUND(Q15,1000),IF(Q15<10000000,MROUND(Q15,10000),MROUND(Q15,100000))),IF(OR((ABS(Q15)=1000000),(ABS(Q15)<1000000)),MROUND(Q15,-1000),IF(ABS(Q15)<10000000,MROUND(Q15,-10000),MROUND(Q15,-100000)))) -> -3000 | H15: =IF(R15>0,IF(OR((R15=100000),(R15<100000)),MROUND(R15,1000),IF(R15<1000000,MROUND(R15,10000),MROUND(R15,100000))),IF(OR((ABS(R15)=100000),(ABS(R15)<100000)),MROUND(R15,-1000),IF(ABS(R15)<1000000,MROUND(R15,-10000),MROUND(R15,-100000)))) -> -19000 | I15: =IF(S15>0,IF(OR((S15=100000),(S15<100000)),MROUND(S15,1000),IF(S15<1000000,MROUND(S15,10000),MROUND(S15,100000))),IF(OR((ABS(S15)=100000),(ABS(S15)<100000)),MROUND(S15,-1000),IF(ABS(S15)<1000000,MROUND(S15,-10000),MROUND(S15,-100000)))) -> -2000 | J15: =IF(ISBLANK('1_Velvoiteluettelo'!G18),"",IF(S15>0,"Voiko sääntelyä sujuvoittaa?",IF(S15=0,"","Hyvä, sääntelytaakka kevenee!"))) -> Hyvä, sääntelytaakka kevenee! | L15: =IF(ISTEXT('1_Velvoiteluettelo'!C18),'1_Velvoiteluettelo'!C18,"") -> Samuutuslaitteisto vastuuuhenkilön pätevyys | M15: =IF(V15>0,IF(OR((V15=1000),(V15<1000)),MROUND(V15,10),IF(V15<100000,MROUND(V15,100),MROUND(V15,1000))),IF(OR((ABS(V15)=1000),(ABS(V15)<1000)),MROUND(V15,-10),IF(ABS(V15)<100000,MROUND(V15,-100),MROUND(V15,-1000)))) -> 0 | N15: =IF(W15>0,IF(OR((W15=1000),(W15<1000)),MROUND(W15,10),IF(W15<100000,MROUND(W15,100),MROUND(W15,1000))),IF(OR((ABS(W15)=1000),(ABS(W15)<1000)),MROUND(W15,-10),IF(ABS(W15)<100000,MROUND(W15,-100),MROUND(W15,-1000)))) -> -20 | P15: =OFFSET('3_Muut kustannukset'!I$45,0,AE15) -> 0 | Q15: =OFFSET('3_Muut kustannukset'!I$30,0,AE15) -> -3198.737897 | R15: =OFFSET('Annualisoitu NPV'!$D$38,0,AE15) -> -19131.99758 | S15: =OFFSET('Annualisoitu NPV'!$D$40,0,AE15) -> -2358.802048 | U15: =IF(ISTEXT('1_Velvoiteluettelo'!C18),'1_Velvoiteluettelo'!C18,"") -> Samuutuslaitteisto vastuuuhenkilön pätevyys | V15: =IF(AND(NOT(E15=0),(ISNUMBER(E15))),P15/E15,"0") -> 0 | W15: =IF(AND(NOT(E15=0),(ISNUMBER(E15))),Q15/E15,"0") -> -19.04010653 | AA15: =R15*AC15 -> 0 | AB15: =R15*AD15 -> -19131.99758 | AC15: =IF(OR(C15="EU-minimisääntelyä",C15="EU:n velvoittamaa sääntelyn keventämistä"),1,IF(ISBLANK(C15),"",0)) -> 0 | AD15: =IF(OR(C15="EU-minimisääntelyä",C15="EU:n velvoittamaa sääntelyn keventämistä"),0,IF(ISBLANK(C15),"",1)) -> 1 | AE15: =AE14+1 -> 1 | AF15: =P15*$AC15 -> 0 | AG15: =Q15*$AC15 -> 0 | AH15: =P15*$AD15 -> 0 | AI15: =Q15*$AD15 -> -3198.737897
A16: ='1_Velvoiteluettelo'!B19 -> Velvoite3 | B16: =IF(ISTEXT('1_Velvoiteluettelo'!C19),'1_Velvoiteluettelo'!C19,"") -> Käsisammutinliikkeen toimintailmoitus | C16: =IF(ISTEXT('1_Velvoiteluettelo'!G19),'1_Velvoiteluettelo'!G19,"") -> Kansallisen tai EU-minimin ylittävän sääntelyn keventämistä | D16: ='1_Velvoiteluettelo'!E19 -> toistaiseksi | E16: =IF(ISNUMBER(OFFSET('3_Muut kustannukset'!$I$13,0,AE16)),OFFSET('3_Muut kustannukset'!$I$13,0,AE16),("-")) -> 240 | F16: 0 | G16: -4000 | H16: -22000 | I16: -3000 | J16: =IF(ISBLANK('1_Velvoiteluettelo'!G19),"",IF(S16>0,"Voiko sääntelyä sujuvoittaa?",IF(S16=0,"","Hyvä, sääntelytaakka kevenee!"))) -> Hyvä, sääntelytaakka kevenee! | L16: =IF(ISTEXT('1_Velvoiteluettelo'!C19),'1_Velvoiteluettelo'!C19,"") -> Käsisammutinliikkeen toimintailmoitus | M16: 0 | N16: -20 | P16: =OFFSET('3_Muut kustannukset'!I$45,0,AE16) -> 0 | Q16: =OFFSET('3_Muut kustannukset'!I$30,0,AE16) -> -3655.700453 | R16: =OFFSET('Annualisoitu NPV'!$D$38,0,AE16) -> -21865.14009 | S16: =OFFSET('Annualisoitu NPV'!$D$40,0,AE16) -> -2695.773769 | U16: =IF(ISTEXT('1_Velvoiteluettelo'!C19),'1_Velvoiteluettelo'!C19,"") -> Käsisammutinliikkeen toimintailmoitus | V16: 0 | W16: -15.23208522 | AA16: 0 | AB16: -21865.14009 | AC16: 0 | AD16: 1 | AE16: =AE15+1 -> 2 | AF16: 0 | AG16: 0 | AH16: 0 | AI16: -3655.700453
A17: ='1_Velvoiteluettelo'!B20 -> Velvoite4 | B17: =IF(ISTEXT('1_Velvoiteluettelo'!C20),'1_Velvoiteluettelo'!C20,"") -> Käsisammutin vastuuhenkilön pätevyys | C17: =IF(ISTEXT('1_Velvoiteluettelo'!G20),'1_Velvoiteluettelo'!G20,"") -> Kansallisen tai EU-minimin ylittävän sääntelyn keventämistä | D17: ='1_Velvoiteluettelo'!E20 -> toistaiseksi | E17: =IF(ISNUMBER(OFFSET('3_Muut kustannukset'!$I$13,0,AE17)),OFFSET('3_Muut kustannukset'!$I$13,0,AE17),("-")) -> 411 | F17: 0 | G17: -8000 | H17: -47000 | I17: -6000 | J17: =IF(ISBLANK('1_Velvoiteluettelo'!G20),"",IF(S17>0,"Voiko sääntelyä sujuvoittaa?",IF(S17=0,"","Hyvä, sääntelytaakka kevenee!"))) -> Hyvä, sääntelytaakka kevenee! | L17: =IF(ISTEXT('1_Velvoiteluettelo'!C20),'1_Velvoiteluettelo'!C20,"") -> Käsisammutin vastuuhenkilön pätevyys | M17: 0 | N17: -20 | P17: =OFFSET('3_Muut kustannukset'!I$45,0,AE17) -> 0 | Q17: =OFFSET('3_Muut kustannukset'!I$30,0,AE17) -> -7825.483783 | R17: =OFFSET('Annualisoitu NPV'!$D$38,0,AE17) -> -46805.0655 | S17: =OFFSET('Annualisoitu NPV'!$D$40,0,AE17) -> -5770.640725 | U17: =IF(ISTEXT('1_Velvoiteluettelo'!C20),'1_Velvoiteluettelo'!C20,"") -> Käsisammutin vastuuhenkilön pätevyys | V17: 0 | W17: -19.04010653 | AA17: 0 | AB17: -46805.0655 | AC17: 0 | AD17: 1 | AE17: =AE16+1 -> 3 | AF17: 0 | AG17: 0 | AH17: 0 | AI17: -7825.483783
A18: ='1_Velvoiteluettelo'!B21 -> Velvoite5 | B18: =IF(ISTEXT('1_Velvoiteluettelo'!C21),'1_Velvoiteluettelo'!C21,"") ->  | C18: =IF(ISTEXT('1_Velvoiteluettelo'!G21),'1_Velvoiteluettelo'!G21,"") ->  | D18: ='1_Velvoiteluettelo'!E21 -> toistaiseksi | E18: =IF(ISNUMBER(OFFSET('3_Muut kustannukset'!$I$13,0,AE18)),OFFSET('3_Muut kustannukset'!$I$13,0,AE18),("-")) -> 0 | F18: =IF(P18>0,IF(OR((P18=1000000),(P18<1000000)),MROUND(P18,1000),IF(P18<10000000,MROUND(P18,10000),MROUND(P18,100000))),IF(OR((ABS(P18)=1000000),(ABS(P18)<1000000)),MROUND(P18,-1000),IF(ABS(P18)<10000000,MROUND(P18,-10000),MROUND(P18,-100000)))) -> 0 | G18: 0 | H18: 0 | I18: 0 | J18: =IF(ISBLANK('1_Velvoiteluettelo'!G21),"",IF(S18>0,"Voiko sääntelyä sujuvoittaa?",IF(S18=0,"","Hyvä, sääntelytaakka kevenee!"))) ->  | L18: =IF(ISTEXT('1_Velvoiteluettelo'!C21),'1_Velvoiteluettelo'!C21,"") ->  | M18: =IF(V18>0,IF(OR((V18=1000),(V18<1000)),MROUND(V18,10),IF(V18<100000,MROUND(V18,100),MROUND(V18,1000))),IF(OR((ABS(V18)=1000),(ABS(V18)<1000)),MROUND(V18,-10),IF(ABS(V18)<100000,MROUND(V18,-100),MROUND(V18,-1000)))) -> 0 | N18: 0 | P18: =OFFSET('3_Muut kustannukset'!I$45,0,AE18) -> 0 | Q18: =OFFSET('3_Muut kustannukset'!I$30,0,AE18) -> 0 | R18: =OFFSET('Annualisoitu NPV'!$D$38,0,AE18) -> 0 | S18: =OFFSET('Annualisoitu NPV'!$D$40,0,AE18) -> 0 | U18: =IF(ISTEXT('1_Velvoiteluettelo'!C21),'1_Velvoiteluettelo'!C21,"") ->  | V18: =IF(AND(NOT(E18=0),(ISNUMBER(E18))),P18/E18,"0") -> 0 | W18: 0 | AA18: 0 | AB18: 0 | AC18: 0 | AD18: 1 | AE18: =AE17+1 -> 4 | AF18: 0 | AG18: 0 | AH18: 0 | AI18: 0
AE19: =AE18+1 -> 5
A20: Yhteensä | E20: =IF(ISNUMBER('1_Velvoiteluettelo'!D15),'1_Velvoiteluettelo'!D15,MAX(E14:E19)) -> 411 | F20: =IF(P20>0,IF(OR((P20=1000000),(P20<1000000)),MROUND(P20,1000),IF(P20<10000000,MROUND(P20,10000),MROUND(P20,100000))),IF(OR((ABS(P20)=1000000),(ABS(P20)<1000000)),MROUND(P20,-1000),IF(ABS(P20)<10000000,MROUND(P20,-10000),MROUND(P20,-100000)))) -> 0 | G20: =IF(Q20>0,IF(OR((Q20=1000000),(Q20<1000000)),MROUND(Q20,1000),IF(Q20<10000000,MROUND(Q20,10000),MROUND(Q20,100000))),IF(OR((ABS(Q20)=1000000),(ABS(Q20)<1000000)),MROUND(Q20,-1000),IF(ABS(Q20)<10000000,MROUND(Q20,-10000),MROUND(Q20,-100000)))) -> -21000 | H20: =IF(R20>0,IF(OR((R20=1000000),(R20<1000000)),MROUND(R20,1000),IF(R20<10000000,MROUND(R20,10000),MROUND(R20,100000))),IF(OR((ABS(R20)=1000000),(ABS(R20)<1000000)),MROUND(R20,-1000),IF(ABS(R20)<10000000,MROUND(R20,-10000),MROUND(R20,-100000)))) -> -127000 | I20: =IF(S20>0,IF(OR((S20=1000000),(S20<1000000)),MROUND(S20,1000),IF(S20<10000000,MROUND(S20,10000),MROUND(S20,100000))),IF(OR((ABS(S20)=1000000),(ABS(S20)<1000000)),MROUND(S20,-1000),IF(ABS(S20)<10000000,MROUND(S20,-10000),MROUND(S20,-100000)))) -> -16000 | J20: =IF(NOT(S20=0),IF(S20>0,"VOISIKO SÄÄNTELYÄ SUJUVOITTAA?","HYVÄ, SÄÄNTELYTAAKKA KEVENEE!"),"") -> HYVÄ, SÄÄNTELYTAAKKA KEVENEE! | L20: Yht. keskimäärin | M20: =IF(V20>0,IF(OR((V20=1000),(V20<1000)),MROUND(V20,10),IF(V20<100000,MROUND(V20,100),MROUND(V20,1000))),IF(OR((ABS(V20)=1000),(ABS(V20)<1000)),MROUND(V20,-10),IF(ABS(V20)<100000,MROUND(V20,-100),MROUND(V20,-1000)))) -> 0 | N20: =IF(W20>0,IF(OR((W20=1000),(W20<1000)),MROUND(W20,10),IF(W20<100000,MROUND(W20,100),MROUND(W20,1000))),IF(OR((ABS(W20)=1000),(ABS(W20)<1000)),MROUND(W20,-10),IF(ABS(W20)<100000,MROUND(W20,-100),MROUND(W20,-1000)))) -> -50 | P20: =SUM(P14:P19) -> 0 | Q20: =SUM(Q14:Q19) -> -21164.22081 | R20: ='Annualisoitu NPV'!$J$38 -> -126585.4954 | S20: ='Annualisoitu NPV'!$J$40 -> -15606.84527 | U20: Yht. keskimäärin | V20: =IF(AND(NOT(E20=0),(ISNUMBER(E20))),F20/E20,"0") -> 0 | W20: =IF(AND(NOT(E20=0),(ISNUMBER(E20))),G20/E20,"0") -> -51.09489051 | AA20: =SUM(AA14:AA19) -> 0 | AB20: =SUM(AB14:AB19) -> -126585.4954 | AF20: =SUM(AF14:AF19) -> 0 | AG20: =SUM(AG14:AG19) -> 0 | AH20: =SUM(AH14:AH19) -> 0 | AI20: =SUM(AI14:AI19) -> -21164.22081
B22: Kustannuslisäyksen / -säästön erittely EU-sääntelyn osalta ja kansallisen sääntelyn osalta | P22: Tarkat, ei pyöristetyt arvot
F23: Kertakustannus nykyrahassa | G23: Toistuvat kustannukset (+) / säästöt (-) nykyrahassa | H23: Kustannusten ja säästöjen kokonaissumman nettonykyarvo* | I23: Nettonykyarvo vuositasolla* | J23: Kustannus vai kustannussäästö? | R23: Kustannusten ja säästöjen kokonaissumman nettonykyarvo* | S23: Nettonykyarvo vuositasolla*
B24: EU-sääntelyn taakkavaikutus yrityksille: | F24: =IF(AF20>0,IF(OR((AF20=100000),(AF20<100000)),MROUND(AF20,1000),IF(AF20<10000000,MROUND(AF20,10000),MROUND(AF20,100000))),IF(OR((ABS(AF20)=1000000),(ABS(AF20)<1000000)),MROUND(AF20,-1000),IF(ABS(AF20)<10000000,MROUND(AF20,-10000),MROUND(AF20,-100000)))) -> 0 | G24: =IF(AG20>0,IF(OR((AG20=100000),(AG20<100000)),MROUND(AG20,1000),IF(AG20<10000000,MROUND(AG20,10000),MROUND(AG20,100000))),IF(OR((ABS(AG20)=1000000),(ABS(AG20)<1000000)),MROUND(AG20,-1000),IF(ABS(AG20)<10000000,MROUND(AG20,-10000),MROUND(AG20,-100000)))) -> 0 | H24: =IF(R24>0,IF(OR((R24=100000),(R24<100000)),MROUND(R24,1000),IF(R24<1000000,MROUND(R24,10000),MROUND(R24,100000))),IF(OR((ABS(R24)=100000),(ABS(R24)<100000)),MROUND(R24,-1000),IF(ABS(R24)<1000000,MROUND(R24,-10000),MROUND(R24,-100000)))) -> 0 | I24: =IF(S24>0,IF(OR((S24=100000),(S24<100000)),MROUND(S24,1000),IF(S24<1000000,MROUND(S24,10000),MROUND(S24,100000))),IF(OR((ABS(S24)=100000),(ABS(S24)<100000)),MROUND(S24,-1000),IF(ABS(S24)<1000000,MROUND(S24,-10000),MROUND(S24,-100000)))) -> 0 | J24: =IF(H24>0,"KUSTANNUS YRITYKSILLE",IF(H24<0,"SÄÄSTÖÄ YRITYKSILLE","")) ->  | P24: EU-sääntely | R24: =AA20 -> 0 | S24: =(AA20*'Annualisoitu NPV'!$D$24)/(1-(1+'Annualisoitu NPV'!$D$24)^(-10)) -> 0
B25: Kansallisen sääntelyn taakkavaikutus yrityksille: | F25: =IF(AH20>0,IF(OR((AH20=100000),(AH20<100000)),MROUND(AH20,1000),IF(AH20<10000000,MROUND(AH20,10000),MROUND(AH20,100000))),IF(OR((ABS(AH20)=1000000),(ABS(AH20)<1000000)),MROUND(AH20,-1000),IF(ABS(AH20)<10000000,MROUND(AH20,-10000),MROUND(AH20,-100000)))) -> 0 | G25: =IF(AI20>0,IF(OR((AI20=100000),(AI20<100000)),MROUND(AI20,1000),IF(AI20<1000000,MROUND(AI20,10000),MROUND(AI20,100000))),IF(OR((ABS(AI20)=1000000),(ABS(AI20)<1000000)),MROUND(AI20,-1000),IF(ABS(AI20)<1000000,MROUND(AI20,-10000),MROUND(AI20,-100000)))) -> -21000 | H25: =IF(R25>0,IF(OR((R25=100000),(R25<100000)),MROUND(R25,1000),IF(R25<1000000,MROUND(R25,10000),MROUND(R25,100000))),IF(OR((ABS(R25)=100000),(ABS(R25)<100000)),MROUND(R25,-1000),IF(ABS(R25)<1000000,MROUND(R25,-10000),MROUND(R25,-100000)))) -> -130000 | I25: =IF(S25>0,IF(OR((S25=100000),(S25<100000)),MROUND(S25,1000),IF(S25<1000000,MROUND(S25,10000),MROUND(S25,100000))),IF(OR((ABS(S25)=100000),(ABS(S25)<100000)),MROUND(S25,-1000),IF(ABS(S25)<1000000,MROUND(S25,-10000),MROUND(S25,-100000)))) -> -16000 | J25: =IF(H25>0,"KUSTANNUS YRITYKSILLE",IF(H25<0,"SÄÄSTÖÄ YRITYKSILLE","")) -> SÄÄSTÖÄ YRITYKSILLE | P25: Kansallinen | R25: =AB20 -> -126585.4954 | S25: =(AB20*'Annualisoitu NPV'!$D$24)/(1-(1+'Annualisoitu NPV'!$D$24)^(-10)) -> -15606.84527
F26: Kirjaa nämä hallituksen esitykseen!

Sheet Apu1_Yritystilastot
A1: Yritykset toimialoittain muuttujina Tilastovuosi, Toimiala (TOL 2008) ja Tiedot
A2: Tiedot vuodelta: 2020
A4: Tämä apusivu sisältää Tilastokeskuksen toimialoittaiset yritystilastot. Niiden avulla voidaan arvioida, paljonko milläkin toimialalla on yrityksiä. Toimialaluokituksen selityksen (mm. esimerkkejä kuhunkin toimialaan kuuluvista yrityksistä) oheisesta linkistä. Lisäksi Tilastokeskuksen internet-sivuilta (linkki ohessa) voi tehdä tarkempia tilastohakuja mm. henkilöstön koon tai omistajatyypin mukaan.
B5: Linkki yritysten rakenne- ja tilinpäätöstietojen tietokantaan (Tilastokeskus) | C5: Toimialaluokitus 2008
A7: OHJE: | B7: Käytä alla olevaa suodatintoimintoa haluttujen toimialojen valitsemiseen! Suodatin sisältää myös hakukentän.
C9: Yritysten lukumäärä (Y-tunnus) | D9: Yritysten lukumäärä (yritysyksikkö) | E9: Liikevaihto yhteensä, 1000 eur | F9: Henkilöstön lkm yhteensä | H9: Yritysten lukumäärä (Y-tunnus) henkilöstön koon mukaan
B10: Toimiala | H10: 1-4 hlö | I10: 5-9 hlö | J10: 10-19 hlö | K10: 20-49 hlö | L10: 50-99 hlö | M10: 100-249 hlö | N10: 250-499 hlö | O10: 500-999 hlö | P10: yli 1000 hlö
B11: Toimialat yhteensä | C11: 368949 | D11: 368622 | E11: 427868434 | F11: 1503663 | H11: 329023 | I11: 18990 | J11: 10747 | K11: 6380 | L11: 2132 | M11: 1013 | N11: 367 | O11: 180 | P11: 117
B12: A Maatalous, metsätalous ja kalatalous (01-03) | C12: 73984 | D12: 74001 | E12: 2644425 | F12: 54715 | H12: 72478 | I12: 973 | J12: 348 | K12: 147 | L12: 32 | M12: 4 | N12: 2 | O12: . | P12: .
B13: 01 Kasvinviljely ja kotieläintalous, riistatalous ja niihin liittyvät palvelut | C13: 42385 | D13: 42392 | E13: 0 | F13: 39246 | H13: 41437 | I13: 668 | J13: 186 | K13: 72 | L13: 18 | M13: 3 | N13: 1 | O13: . | P13: .
B14: 011 Yksivuotisten kasvien viljely | C14: 23141 | D14: 23146 | E14: .. | F14: 18308 | H14: Tietoja ei ole saatavilla tällä toimialan tarkkuustasolla
B15: 0111 Viljakasvien (pl. riisin), palkokasvien ja öljysiemenkasvien viljely | C15: 19116 | D15: 19121 | E15: .. | F15: 10333 | H15: Tietoja ei ole saatavilla tällä toimialan tarkkuustasolla
B16: 01110 Viljakasvien (pl. riisin), palkokasvien ja öljysiemenkasvien viljely | C16: 19116 | D16: 19121 | E16: .. | F16: 10333 | H16: Tietoja ei ole saatavilla tällä toimialan tarkkuustasolla
B17: 0112 Riisin viljely | C17: . | D17: . | E17: . | F17: . | H17: Tietoja ei ole saatavilla tällä toimialan tarkkuustasolla
B18: 01120 Riisin viljely | C18: . | D18: . | E18: . | F18: . | H18: Tietoja ei ole saatavilla tällä toimialan tarkkuustasolla
B19: 0113 Vihannesten ja melonien, juuresten ja mukulakasvien viljely | C19: 1545 | D19: 1545 | E19: .. | F19: 5637 | H19: Tietoja ei ole saatavilla tällä toimialan tarkkuustasolla
B20: 01131 Vihannesten viljely avomaalla (pl. peruna ja sokerijuurikas) | C20: 910 | D20: 910 | E20: .. | F20: 2948 | H20: Tietoja ei ole saatavilla tällä toimialan tarkkuustasolla
B21: 01132 Vihannesten viljely kasvihuoneessa | C21: 417 | D21: 417 | E21: .. | F21: 2453 | H21: Tietoja ei ole saatavilla tällä toimialan tarkkuustasolla
B22: 01133 Perunan viljely | C22: 209 | D22: 209 | E22: .. | F22: 230 | H22: Tietoja ei ole saatavilla tällä toimialan tarkkuustasolla
B23: 01134 Sokerijuurikkaan viljely | C23: 9 | D23: 9 | E23: .. | F23: 6 | H23: Tietoja ei ole saatavilla tällä toimialan tarkkuustasolla
B24: 0114 Sokeriruo'on viljely | C24: . | D24: . | E24: . | F24: . | H24: Tietoja ei ole saatavilla tällä toimialan tarkkuustasolla
B25: 01140 Sokeriruo'on viljely | C25: . | D25: . | E25: . | F25: . | H25: Tietoja ei ole saatavilla tällä toimialan tarkkuustasolla
B26: 0115 Tupakan viljely | C26: . | D26: . | E26: . | F26: . | H26: Tietoja ei ole saatavilla tällä toimialan tarkkuustasolla
B27: 01150 Tupakan viljely | C27: . | D27: . | E27: . | F27: . | H27: Tietoja ei ole saatavilla tällä toimialan tarkkuustasolla
B28: 0116 Kuitukasvien viljely | C28: 1 | D28: 1 | E28: .. | F28: 0 | H28: Tietoja ei ole saatavilla tällä toimialan tarkkuustasolla
B29: 01160 Kuitukasvien viljely | C29: 1 | D29: 1 | E29: .. | F29: 0 | H29: Tietoja ei ole saatavilla tällä toimialan tarkkuustasolla
B30: 0119 Muu yksivuotisten ja koristekasvien viljely | C30: 2479 | D30: 2479 | E30: .. | F30: 2338 | H30: Tietoja ei ole saatavilla tällä toimialan tarkkuustasolla
B31: 01191 Koristekasvien viljely | C31: 160 | D31: 160 | E31: .. | F31: 998 | H31: Tietoja ei ole saatavilla tällä toimialan tarkkuustasolla
B32: 01199 Muiden yksivuotisten kasvien viljely | C32: 2319 | D32: 2319 | E32: .. | F32: 1340 | H32: Tietoja ei ole saatavilla tällä toimialan tarkkuustasolla
B33: 012 Monivuotisten kasvien viljely | C33: 824 | D33: 824 | E33: .. | F33: 1015 | H33: Tietoja ei ole saatavilla tällä toimialan tarkkuustasolla
B34: 0121 Rypäleiden viljely | C34: . | D34: . | E34: . | F34: . | H34: Tietoja ei ole saatavilla tällä toimialan tarkkuustasolla
B35: 01210 Rypäleiden viljely | C35: . | D35: . | E35: . | F35: . | H35: Tietoja ei ole saatavilla tällä toimialan tarkkuustasolla
B36: 0122 Trooppisten ja subtrooppisten hedelmien viljely | C36: . | D36: . | E36: . | F36: . | H36: Tietoja ei ole saatavilla tällä toimialan tarkkuustasolla
B37: 01220 Trooppisten ja subtrooppisten hedelmien viljely | C37: . | D37: . | E37: . | F37: . | H37: Tietoja ei ole saatavilla tällä toimialan tarkkuustasolla
B38: 0123 Sitrushedelmien viljely | C38: 1 | D38: 1 | E38: .. | F38: 2 | H38: Tietoja ei ole saatavilla tällä toimialan tarkkuustasolla
B39: 01230 Sitrushedelmien viljely | C39: 1 | D39: 1 | E39: .. | F39: 2 | H39: Tietoja ei ole saatavilla tällä toimialan tarkkuustasolla
B40: 0124 Omenoiden, kirsikoiden, luumujen ym. kota- ja kivihedelmien viljely | C40: 15 | D40: 15 | E40: .. | F40: 8 | H40: Tietoja ei ole saatavilla tällä toimialan tarkkuustasolla
B41: 01240 Omenoiden, kirsikoiden, luumujen ym. kota- ja kivihedelmien viljely | C41: 15 | D41: 15 | E41: .. | F41: 8 | H41: Tietoja ei ole saatavilla tällä toimialan tarkkuustasolla
B42: 0125 Marjojen, pähkinöiden ja muiden puissa ja pensaissa kasvavien hedelmien viljely | C42: 183 | D42: 183 | E42: .. | F42: 774 | H42: Tietoja ei ole saatavilla tällä toimialan tarkkuustasolla
B43: 01250 Marjojen, pähkinöiden ja muiden puissa ja pensaissa kasvavien hedelmien viljely | C43: 183 | D43: 183 | E43: .. | F43: 774 | H43: Tietoja ei ole saatavilla tällä toimialan tarkkuustasolla
B44: 0126 Öljyä sisältävien hedelmien viljely | C44: . | D44: . | E44: . | F44: . | H44: Tietoja ei ole saatavilla tällä toimialan tarkkuustasolla
B45: 01260 Öljyä sisältävien hedelmien viljely | C45: . | D45: . | E45: . | F45: . | H45: Tietoja ei ole saatavilla tällä toimialan tarkkuustasolla
B46: 0127 Juomakasvien viljely | C46: . | D46: . | E46: . | F46: . | H46: Tietoja ei ole saatavilla tällä toimialan tarkkuustasolla
B47: 01270 Juomakasvien viljely | C47: . | D47: . | E47: . | F47: . | H47: Tietoja ei ole saatavilla tällä toimialan tarkkuustasolla
B48: 0128 Mauste-, aromi-, rohdos- ja lääkekasvien viljely | C48: 14 | D48: 14 | E48: .. | F48: 16 | H48: Tietoja ei ole saatavilla tällä toimialan tarkkuustasolla
B49: 01280 Mauste-, aromi-, rohdos- ja lääkekasvien viljely | C49: 14 | D49: 14 | E49: .. | F49: 16 | H49: Tietoja ei ole saatavilla tällä toimialan tarkkuustasolla
B50: 0129 Muu monivuotisten kasvien viljely | C50: 611 | D50: 611 | E50: .. | F50: 215 | H50: Tietoja ei ole saatavilla tällä toimialan tarkkuustasolla
B51: 01290 Muu monivuotisten kasvien viljely | C51: 611 | D51: 611 | E51: .. | F51: 215 | H51: Tietoja ei ole saatavilla tällä toimialan tarkkuustasolla
B52: 013 Taimien kasvatus ja muu kasvien lisääminen | C52: 75 | D52: 75 | E52: .. | F52: 467 | H52: Tietoja ei ole saatavilla tällä toimialan tarkkuustasolla
B53: 0130 Taimien kasvatus ja muu kasvien lisääminen | C53: 75 | D53: 75 | E53: .. | F53: 467 | H53: Tietoja ei ole saatavilla tällä toimialan tarkkuustasolla
B54: 01300 Taimien kasvatus ja muu kasvien lisääminen | C54: 75 | D54: 75 | E54: .. | F54: 467 | H54: Tietoja ei ole saatavilla tällä toimialan tarkkuustasolla
B55: 014 Kotieläintalous | C55: 12345 | D55: 12346 | E55: .. | F55: 15540 | H55: Tietoja ei ole saatavilla tällä toimialan tarkkuustasolla
B56: 0141 Lypsykarjan kasvatus | C56: 6109 | D56: 6110 | E56: .. | F56: 8635 | H56: Tietoja ei ole saatavilla tällä toimialan tarkkuustasolla
B57: 01410 Lypsykarjan kasvatus | C57: 6109 | D57: 6110 | E57: .. | F57: 8635 | H57: Tietoja ei ole saatavilla tällä toimialan tarkkuustasolla
B58: 0142 Muun nautakarjan ja puhvelien kasvatus | C58: 2657 | D58: 2658 | E58: .. | F58: 2796 | H58: Tietoja ei ole saatavilla tällä toimialan tarkkuustasolla
B59: 01420 Muun nautakarjan ja puhvelien kasvatus | C59: 2657 | D59: 2658 | E59: .. | F59: 2796 | H59: Tietoja ei ole saatavilla tällä toimialan tarkkuustasolla
B60: 0143 Hevosten ja muiden hevoseläinten kasvatus | C60: 711 | D60: 711 | E60: .. | F60: 531 | H60: Tietoja ei ole saatavilla tällä toimialan tarkkuustasolla
B61: 01430 Hevosten ja muiden hevoseläinten kasvatus | C61: 711 | D61: 711 | E61: .. | F61: 531 | H61: Tietoja ei ole saatavilla tällä toimialan tarkkuustasolla
B62: 0144 Kamelien ja kamelieläinten kasvatus | C62: 2 | D62: 2 | E62: .. | F62: 0 | H62: Tietoja ei ole saatavilla tällä toimialan tarkkuustasolla
B63: 01440 Kamelien ja kamelieläinten kasvatus | C63: 2 | D63: 2 | E63: .. | F63: 0 | H63: Tietoja ei ole saatavilla tällä toimialan tarkkuustasolla
B64: 0145 Lampaiden ja vuohien kasvatus | C64: 446 | D64: 446 | E64: .. | F64: 326 | H64: Tietoja ei ole saatavilla tällä toimialan tarkkuustasolla
B65: 01450 Lampaiden ja vuohien kasvatus | C65: 446 | D65: 446 | E65: .. | F65: 326 | H65: Tietoja ei ole saatavilla tällä toimialan tarkkuustasolla
B66: 0146 Sikojen kasvatus | C66: 792 | D66: 792 | E66: .. | F66: 1384 | H66: Tietoja ei ole saatavilla tällä toimialan tarkkuustasolla
B67: 01461 Porsastuotanto | C67: 346 | D67: 346 | E67: .. | F67: 704 | H67: Tietoja ei ole saatavilla tällä toimialan tarkkuustasolla
B68: 01462 Lihasikojen kasvatus | C68: 446 | D68: 446 | E68: .. | F68: 679 | H68: Tietoja ei ole saatavilla tällä toimialan tarkkuustasolla
B69: 0147 Siipikarjan kasvatus | C69: 507 | D69: 506 | E69: .. | F69: 788 | H69: Tietoja ei ole saatavilla tällä toimialan tarkkuustasolla
B70: 01471 Kananmunien tuotanto | C70: 250 | D70: 249 | E70: .. | F70: 374 | H70: Tietoja ei ole saatavilla tällä toimialan tarkkuustasolla
B71: 01472 Broilerien tuotanto | C71: 184 | D71: 184 | E71: .. | F71: 292 | H71: Tietoja ei ole saatavilla tällä toimialan tarkkuustasolla
B72: 01479 Muu siipikarjatalous | C72: 73 | D72: 73 | E72: .. | F72: 122 | H72: Tietoja ei ole saatavilla tällä toimialan tarkkuustasolla
B73: 0149 Muiden eläinten kasvatus | C73: 1121 | D73: 1121 | E73: .. | F73: 1081 | H73: Tietoja ei ole saatavilla tällä toimialan tarkkuustasolla
B74: 01491 Turkistarhaus | C74: 750 | D74: 750 | E74: .. | F74: 950 | H74: Tietoja ei ole saatavilla tällä toimialan tarkkuustasolla
B75: 01492 Poronhoito | C75: 24 | D75: 24 | E75: .. | F75: 12 | H75: Tietoja ei ole saatavilla tällä toimialan tarkkuustasolla
B76: 01499 Muu eläinten hoito | C76: 347 | D76: 347 | E76: .. | F76: 119 | H76: Tietoja ei ole saatavilla tällä toimialan tarkkuustasolla
B77: 015 Yhdistetty kasvinviljely ja kotieläintalous (sekatilat) | C77: 4763 | D77: 4764 | E77: .. | F77: 2741 | H77: Tietoja ei ole saatavilla tällä toimialan tarkkuustasolla
B78: 0150 Yhdistetty kasvinviljely ja kotieläintalous (sekatilat) | C78: 4763 | D78: 4764 | E78: .. | F78: 2741 | H78: Tietoja ei ole saatavilla tällä toimialan tarkkuustasolla
B79: 01500 Yhdistetty kasvinviljely ja kotieläintalous (sekatilat) | C79: 4763 | D79: 4764 | E79: .. | F79: 2741 | H79: Tietoja ei ole saatavilla tällä toimialan tarkkuustasolla
B80: 016 Maataloutta palveleva toiminta | C80: 1215 | D80: 1215 | E80: .. | F80: 1154 | H80: Tietoja ei ole saatavilla tällä toimialan tarkkuustasolla
B81: 0161 Kasvinviljelyä palveleva toiminta | C81: 587 | D81: 587 | E81: .. | F81: 384 | H81: Tietoja ei ole saatavilla tällä toimialan tarkkuustasolla
B82: 01611 Kasvinviljelyn tukipalvelut | C82: 482 | D82: 482 | E82: .. | F82: 371 | H82: Tietoja ei ole saatavilla tällä toimialan tarkkuustasolla
B83: 01612 Maatalousmaan pitäminen viljelykelpoisena | C83: 105 | D83: 105 | E83: .. | F83: 13 | H83: Tietoja ei ole saatavilla tällä toimialan tarkkuustasolla
B84: 0162 Kotieläintaloutta palveleva toiminta | C84: 584 | D84: 584 | E84: .. | F84: 720 | H84: Tietoja ei ole saatavilla tällä toimialan tarkkuustasolla
B85: 01620 Kotieläintaloutta palveleva toiminta | C85: 584 | D85: 584 | E85: .. | F85: 720 | H85: Tietoja ei ole saatavilla tällä toimialan tarkkuustasolla
B86: 0163 Sadon jatkokäsittely | C86: 22 | D86: 22 | E86: .. | F86: 30 | H86: Tietoja ei ole saatavilla tällä toimialan tarkkuustasolla
B87: 01630 Sadon jatkokäsittely | C87: 22 | D87: 22 | E87: .. | F87: 30 | H87: Tietoja ei ole saatavilla tällä toimialan tarkkuustasolla
B88: 0164 Siementen käsittely kasvinviljelyä varten | C88: 22 | D88: 22 | E88: .. | F88: 19 | H88: Tietoja ei ole saatavilla tällä toimialan tarkkuustasolla
B89: 01640 Siementen käsittely kasvinviljelyä varten | C89: 22 | D89: 22 | E89: .. | F89: 19 | H89: Tietoja ei ole saatavilla tällä toimialan tarkkuustasolla
B90: 017 Metsästys ja sitä palveleva toiminta | C90: 22 | D90: 22 | E90: .. | F90: 22 | H90: Tietoja ei ole saatavilla tällä toimialan tarkkuustasolla
B91: 0170 Metsästys ja sitä palveleva toiminta | C91: 22 | D91: 22 | E91: .. | F91: 22 | H91: Tietoja ei ole saatavilla tällä toimialan tarkkuustasolla
B92: 01700 Metsästys ja sitä palveleva toiminta | C92: 22 | D92: 22 | E92: .. | F92: 22 | H92: Tietoja ei ole saatavilla tällä toimialan tarkkuustasolla
B93: 02 Metsätalous ja puunkorjuu | C93: 30786 | D93: 30796 | E93: 2511218 | F93: 14734 | H93: 30252 | I93: 293 | J93: 154 | K93: 71 | L93: 14 | M93: 1 | N93: 1 | O93: . | P93: .
B94: 021 Metsänhoito | C94: 23144 | D94: 23154 | E94: 864283 | F94: 5319 | H94: Tietoja ei ole saatavilla tällä toimialan tarkkuustasolla
B95: 0210 Metsänhoito | C95: 23144 | D95: 23154 | E95: 864283 | F95: 5319 | H95: Tietoja ei ole saatavilla tällä toimialan tarkkuustasolla
B96: 02100 Metsänhoito | C96: 23144 | D96: 23154 | E96: 864283 | F96: 5319 | H96: Tietoja ei ole saatavilla tällä toimialan tarkkuustasolla
B97: 022 Puunkorjuu | C97: 6261 | D97: 6261 | E97: 1190990 | F97: 7222 | H97: Tietoja ei ole saatavilla tällä toimialan tarkkuustasolla
B98: 0220 Puunkorjuu | C98: 6261 | D98: 6261 | E98: 1190990 | F98: 7222 | H98: Tietoja ei ole saatavilla tällä toimialan tarkkuustasolla
B99: 02200 Puunkorjuu | C99: 6261 | D99: 6261 | E99: 1190990 | F99: 7222 | H99: Tietoja ei ole saatavilla tällä toimialan tarkkuustasolla
B100: 023 Luonnon tuotteiden keruu (pl. polttopuu) | C100: 225 | D100: 225 | E100: 8008 | F100: 73 | H100: Tietoja ei ole saatavilla tällä toimialan tarkkuustasolla
B101: 0230 Luonnon tuotteiden keruu (pl. polttopuu) | C101: 225 | D101: 225 | E101: 8008 | F101: 73 | H101: Tietoja ei ole saatavilla tällä toimialan tarkkuustasolla
B102: 02300 Luonnon tuotteiden keruu (pl. polttopuu) | C102: 225 | D102: 225 | E102: 8008 | F102: 73 | H102: Tietoja ei ole saatavilla tällä toimialan tarkkuustasolla
B103: 024 Metsätaloutta palveleva toiminta | C103: 1156 | D103: 1156 | E103: 447938 | F103: 2120 | H103: Tietoja ei ole saatavilla tällä toimialan tarkkuustasolla
B104: 0240 Metsätaloutta palveleva toiminta | C104: 1156 | D104: 1156 | E104: 447938 | F104: 2120 | H104: Tietoja ei ole saatavilla tällä toimialan tarkkuustasolla
B105: 02400 Metsätaloutta palveleva toiminta | C105: 1156 | D105: 1156 | E105: 447938 | F105: 2120 | H105: Tietoja ei ole saatavilla tällä toimialan tarkkuustasolla
B106: 03 Kalastus ja vesiviljely | C106: 813 | D106: 813 | E106: 133206 | F106: 734 | H106: 789 | I106: 12 | J106: 8 | K106: 4 | L106: . | M106: . | N106: . | O106: . | P106: .
B107: 031 Kalastus | C107: 656 | D107: 656 | E107: 51887 | F107: 329 | H107: Tietoja ei ole saatavilla tällä toimialan tarkkuustasolla
B108: 0311 Merikalastus | C108: 366 | D108: 366 | E108: 35237 | F108: 214 | H108: Tietoja ei ole saatavilla tällä toimialan tarkkuustasolla
B109: 03110 Merikalastus | C109: 366 | D109: 366 | E109: 35237 | F109: 214 | H109: Tietoja ei ole saatavilla tällä toimialan tarkkuustasolla
B110: 0312 Sisävesikalastus | C110: 290 | D110: 290 | E110: 16650 | F110: 115 | H110: Tietoja ei ole saatavilla tällä toimialan tarkkuustasolla
B111: 03120 Sisävesikalastus | C111: 290 | D111: 290 | E111: 16650 | F111: 115 | H111: Tietoja ei ole saatavilla tällä toimialan tarkkuustasolla
B112: 032 Vesiviljely | C112: 157 | D112: 157 | E112: 81319 | F112: 405 | H112: Tietoja ei ole saatavilla tällä toimialan tarkkuustasolla
B113: 0321 Kalanviljely meressä | C113: 59 | D113: 59 | E113: 44087 | F113: 135 | H113: Tietoja ei ole saatavilla tällä toimialan tarkkuustasolla
B114: 03210 Kalanviljely meressä | C114: 59 | D114: 59 | E114: 44087 | F114: 135 | H114: Tietoja ei ole saatavilla tällä toimialan tarkkuustasolla
B115: 0322 Kalanviljely sisävesissä | C115: 98 | D115: 98 | E115: 37232 | F115: 270 | H115: Tietoja ei ole saatavilla tällä toimialan tarkkuustasolla
B116: 03220 Kalanviljely sisävesissä | C116: 98 | D116: 98 | E116: 37232 | F116: 270 | H116: Tietoja ei ole saatavilla tällä toimialan tarkkuustasolla
B117: B Kaivostoiminta ja louhinta (05-09) | C117: 888 | D117: 887 | E117: 2250032 | F117: 6219 | H117: 720 | I117: 92 | J117: 40 | K117: 22 | L117: 4 | M117: 5 | N117: 1 | O117: 4 | P117: .
B118: 05 Kivihiilen ja ruskohiilen kaivu | C118: . | D118: . | E118: . | F118: . | H118: Tietoja ei ole saatavilla tällä toimialan tarkkuustasolla
B119: 051 Kivihiilen kaivu | C119: . | D119: . | E119: . | F119: . | H119: Tietoja ei ole saatavilla tällä toimialan tarkkuustasolla
B120: 0510 Kivihiilen kaivu | C120: . | D120: . | E120: . | F120: . | H120: Tietoja ei ole saatavilla tällä toimialan tarkkuustasolla
B121: 05100 Kivihiilen kaivu | C121: . | D121: . | E121: . | F121: . | H121: Tietoja ei ole saatavilla tällä toimialan tarkkuustasolla
B122: 052 Ruskohiilen kaivu | C122: . | D122: . | E122: . | F122: . | H122: Tietoja ei ole saatavilla tällä toimialan tarkkuustasolla
B123: 0520 Ruskohiilen kaivu | C123: . | D123: . | E123: . | F123: . | H123: Tietoja ei ole saatavilla tällä toimialan tarkkuustasolla
B124: 05200 Ruskohiilen kaivu | C124: . | D124: . | E124: . | F124: . | H124: Tietoja ei ole saatavilla tällä toimialan tarkkuustasolla
B125: 06 Raakaöljyn ja maakaasun tuotanto | C125: . | D125: . | E125: . | F125: . | H125: Tietoja ei ole saatavilla tällä toimialan tarkkuustasolla
B126: 061 Raakaöljyn tuotanto | C126: . | D126: . | E126: . | F126: . | H126: Tietoja ei ole saatavilla tällä toimialan tarkkuustasolla
B127: 0610 Raakaöljyn tuotanto | C127: . | D127: . | E127: . | F127: . | H127: Tietoja ei ole saatavilla tällä toimialan tarkkuustasolla
B128: 06100 Raakaöljyn tuotanto | C128: . | D128: . | E128: . | F128: . | H128: Tietoja ei ole saatavilla tällä toimialan tarkkuustasolla
B129: 062 Maakaasun tuotanto | C129: . | D129: . | E129: . | F129: . | H129: Tietoja ei ole saatavilla tällä toimialan tarkkuustasolla
B130: 0620 Maakaasun tuotanto | C130: . | D130: . | E130: . | F130: . | H130: Tietoja ei ole saatavilla tällä toimialan tarkkuustasolla
B131: 06200 Maakaasun tuotanto | C131: . | D131: . | E131: . | F131: . | H131: Tietoja ei ole saatavilla tällä toimialan tarkkuustasolla
B132: 07 Metallimalmien louhinta | C132: 29 | D132: 29 | E132: 1131630 | F132: 2251 | H132: 17 | I132: 2 | J132: 3 | K132: 2 | L132: 1 | M132: 1 | N132: . | O132: 3 | P132: .
B133: 071 Rautamalmien louhinta | C133: 1 | D133: 1 | E133: ... | F133: 2 | H133: Tietoja ei ole saatavilla tällä toimialan tarkkuustasolla
B134: 0710 Rautamalmien louhinta | C134: 1 | D134: 1 | E134: ... | F134: 2 | H134: Tietoja ei ole saatavilla tällä toimialan tarkkuustasolla
B135: 07100 Rautamalmien louhinta | C135: 1 | D135: 1 | E135: ... | F135: 2 | H135: Tietoja ei ole saatavilla tällä toimialan tarkkuustasolla
B136: 072 Värimetallimalmien louhinta | C136: 28 | D136: 28 | E136: ... | F136: 2249 | H136: Tietoja ei ole saatavilla tällä toimialan tarkkuustasolla
B137: 0721 Uraani- ja toriummalmien louhinta | C137: . | D137: . | E137: . | F137: . | H137: Tietoja ei ole saatavilla tällä toimialan tarkkuustasolla
B138: 07210 Uraani- ja toriummalmien louhinta | C138: . | D138: . | E138: . | F138: . | H138: Tietoja ei ole saatavilla tällä toimialan tarkkuustasolla
B139: 0729 Muiden värimetallimalmien louhinta | C139: 28 | D139: 28 | E139: ... | F139: 2249 | H139: Tietoja ei ole saatavilla tällä toimialan tarkkuustasolla
B140: 07290 Muiden värimetallimalmien louhinta | C140: 28 | D140: 28 | E140: ... | F140: 2249 | H140: Tietoja ei ole saatavilla tällä toimialan tarkkuustasolla
B141: 08 Muu kaivostoiminta ja louhinta | C141: 793 | D141: 792 | E141: 934412 | F141: 2833 | H141: 653 | I141: 87 | J141: 32 | K141: 16 | L141: 2 | M141: 2 | N141: 1 | O141: . | P141: .
B142: 081 Kiven louhinta, hiekan ja saven otto | C142: 342 | D142: 341 | E142: 382803 | F142: 1297 | H142: Tietoja ei ole saatavilla tällä toimialan tarkkuustasolla
B143: 0811 Koriste- ja rakennuskiven, kalkkikiven, kipsin, liidun ja liuskekiven louhinta | C143: 49 | D143: 49 | E143: 36463 | F143: 177 | H143: Tietoja ei ole saatavilla tällä toimialan tarkkuustasolla
B144: 08111 Koriste- ja rakennuskiven louhinta | C144: 41 | D144: 41 | E144: 32939 | F144: 156 | H144: Tietoja ei ole saatavilla tällä toimialan tarkkuustasolla
B145: 08112 Kalkkikiven, kipsin, liidun ja dolomiitin louhinta | C145: 4 | D145: 4 | E145: 2632 | F145: 14 | H145: Tietoja ei ole saatavilla tällä toimialan tarkkuustasolla
B146: 08113 Liuskekiven louhinta | C146: 4 | D146: 4 | E146: 893 | F146: 7 | H146: Tietoja ei ole saatavilla tällä toimialan tarkkuustasolla
B147: 0812 Soran, hiekan, saven ja kaoliinin otto | C147: 293 | D147: 292 | E147: 346341 | F147: 1121 | H147: Tietoja ei ole saatavilla tällä toimialan tarkkuustasolla
B148: 08120 Soran, hiekan, saven ja kaoliinin otto | C148: 293 | D148: 292 | E148: 346341 | F148: 1121 | H148: Tietoja ei ole saatavilla tällä toimialan tarkkuustasolla
B149: 089 Muu mineraalien kaivu | C149: 451 | D149: 451 | E149: 551609 | F149: 1536 | H149: Tietoja ei ole saatavilla tällä toimialan tarkkuustasolla
B150: 0891 Kemiallisten ja lannoitemineraalien louhinta | C150: . | D150: . | E150: . | F150: . | H150: Tietoja ei ole saatavilla tällä toimialan tarkkuustasolla
B151: 08910 Kemiallisten ja lannoitemineraalien louhinta | C151: . | D151: . | E151: . | F151: . | H151: Tietoja ei ole saatavilla tällä toimialan tarkkuustasolla
B152: 0892 Turpeen nosto | C152: 433 | D152: 433 | E152: 460590 | F152: 1316 | H152: Tietoja ei ole saatavilla tällä toimialan tarkkuustasolla
B153: 08920 Turpeen nosto | C153: 433 | D153: 433 | E153: 460590 | F153: 1316 | H153: Tietoja ei ole saatavilla tällä toimialan tarkkuustasolla
B154: 0893 Suolan tuotanto | C154: . | D154: . | E154: . | F154: . | H154: Tietoja ei ole saatavilla tällä toimialan tarkkuustasolla
B155: 08930 Suolan tuotanto | C155: . | D155: . | E155: . | F155: . | H155: Tietoja ei ole saatavilla tällä toimialan tarkkuustasolla
B156: 0899 Muualla luokittelematon kaivostoiminta ja louhinta | C156: 18 | D156: 18 | E156: 91019 | F156: 220 | H156: Tietoja ei ole saatavilla tällä toimialan tarkkuustasolla
B157: 08990 Muualla luokittelematon kaivostoiminta ja louhinta | C157: 18 | D157: 18 | E157: 91019 | F157: 220 | H157: Tietoja ei ole saatavilla tällä toimialan tarkkuustasolla
B158: 09 Kaivostoimintaa palveleva toiminta | C158: 66 | D158: 66 | E158: 183990 | F158: 1135 | H158: 50 | I158: 3 | J158: 5 | K158: 4 | L158: 1 | M158: 2 | N158: . | O158: 1 | P158: .
B159: 091 Raakaöljyn ja maakaasun tuotantoa palveleva toiminta | C159: . | D159: . | E159: . | F159: . | H159: Tietoja ei ole saatavilla tällä toimialan tarkkuustasolla
B160: 0910 Raakaöljyn ja maakaasun tuotantoa palveleva toiminta | C160: . | D160: . | E160: . | F160: . | H160: Tietoja ei ole saatavilla tällä toimialan tarkkuustasolla
B161: 09100 Raakaöljyn ja maakaasun tuotantoa palveleva toiminta | C161: . | D161: . | E161: . | F161: . | H161: Tietoja ei ole saatavilla tällä toimialan tarkkuustasolla
B162: 099 Muuta kaivostoimintaa ja louhintaa palveleva toiminta | C162: 66 | D162: 66 | E162: 183990 | F162: 1135 | H162: Tietoja ei ole saatavilla tällä toimialan tarkkuustasolla
B163: 0990 Muuta kaivostoimintaa ja louhintaa palveleva toiminta | C163: 66 | D163: 66 | E163: 183990 | F163: 1135 | H163: Tietoja ei ole saatavilla tällä toimialan tarkkuustasolla
B164: 09900 Muuta kaivostoimintaa ja louhintaa palveleva toiminta | C164: 66 | D164: 66 | E164: 183990 | F164: 1135 | H164: Tietoja ei ole saatavilla tällä toimialan tarkkuustasolla
B165: C Teollisuus (10-33) | C165: 19954 | D165: 19885 | E165: 137100104 | F165: 301092 | H165: 14556 | I165: 1886 | J165: 1376 | K165: 1157 | L165: 507 | M165: 278 | N165: 112 | O165: 52 | P165: 30
B166: 10 Elintarvikkeiden valmistus | C166: 1612 | D166: 1589 | E166: 10127040 | F166: 31451 | H166: 1067 | I166: 191 | J166: 134 | K166: 110 | L166: 62 | M166: 27 | N166: 14 | O166: 3 | P166: 4
B167: 101 Teurastus, lihan säilyvyyskäsittely ja lihatuotteiden valmistus | C167: 192 | D167: 175 | E167: 2644998 | F167: 8235 | H167: Tietoja ei ole saatavilla tällä toimialan tarkkuustasolla
B168: 1011 Teurastus ja lihan säilyvyyskäsittely (pl. siipikarja) | C168: 46 | D168: 39 | E168: 199865 | F168: 1147 | H168: Tietoja ei ole saatavilla tällä toimialan tarkkuustasolla
B169: 10110 Teurastus ja lihan säilyvyyskäsittely (pl. siipikarja) | C169: 46 | D169: 39 | E169: 199865 | F169: 1147 | H169: Tietoja ei ole saatavilla tällä toimialan tarkkuustasolla
B170: 1012 Siipikarjan teurastus ja lihan säilyvyyskäsittely | C170: 3 | D170: 2 | E170: 93164 | F170: 460 | H170: Tietoja ei ole saatavilla tällä toimialan tarkkuustasolla
B171: 10120 Siipikarjan teurastus ja lihan säilyvyyskäsittely | C171: 3 | D171: 2 | E171: 93164 | F171: 460 | H171: Tietoja ei ole saatavilla tällä toimialan tarkkuustasolla
B172: 1013 Liha- ja siipikarjatuotteiden valmistus | C172: 143 | D172: 134 | E172: 2351970 | F172: 6629 | H172: Tietoja ei ole saatavilla tällä toimialan tarkkuustasolla
B173: 10130 Liha- ja siipikarjatuotteiden valmistus | C173: 143 | D173: 134 | E173: 2351970 | F173: 6629 | H173: Tietoja ei ole saatavilla tällä toimialan tarkkuustasolla
B174: 102 Kalan, äyriäisten ja nilviäisten jalostus ja säilöntä | C174: 121 | D174: 120 | E174: 430580 | F174: 1047 | H174: Tietoja ei ole saatavilla tällä toimialan tarkkuustasolla
B175: 1020 Kalan, äyriäisten ja nilviäisten jalostus ja säilöntä | C175: 121 | D175: 120 | E175: 430580 | F175: 1047 | H175: Tietoja ei ole saatavilla tällä toimialan tarkkuustasolla
B176: 10200 Kalan, äyriäisten ja nilviäisten jalostus ja säilöntä | C176: 121 | D176: 120 | E176: 430580 | F176: 1047 | H176: Tietoja ei ole saatavilla tällä toimialan tarkkuustasolla
B177: 103 Hedelmien ja kasvisten jalostus ja säilöntä | C177: 158 | D177: 158 | E177: 461431 | F177: 1727 | H177: Tietoja ei ole saatavilla tällä toimialan tarkkuustasolla
B178: 1031 Perunoiden jalostus ja säilöntä | C178: 39 | D178: 39 | E178: 68408 | F178: 291 | H178: Tietoja ei ole saatavilla tällä toimialan tarkkuustasolla
B179: 10310 Perunoiden jalostus ja säilöntä | C179: 39 | D179: 39 | E179: 68408 | F179: 291 | H179: Tietoja ei ole saatavilla tällä toimialan tarkkuustasolla
B180: 1032 Hedelmä-, marja- ja kasvismehujen valmistus | C180: 38 | D180: 38 | E180: 156799 | F180: 329 | H180: Tietoja ei ole saatavilla tällä toimialan tarkkuustasolla
B181: 10320 Hedelmä-, marja- ja kasvismehujen valmistus | C181: 38 | D181: 38 | E181: 156799 | F181: 329 | H181: Tietoja ei ole saatavilla tällä toimialan tarkkuustasolla
B182: 1039 Muu hedelmien, marjojen ja kasvisten jalostus ja säilöntä | C182: 81 | D182: 81 | E182: 236224 | F182: 1108 | H182: Tietoja ei ole saatavilla tällä toimialan tarkkuustasolla
B183: 10390 Muu hedelmien, marjojen ja kasvisten jalostus ja säilöntä | C183: 81 | D183: 81 | E183: 236224 | F183: 1108 | H183: Tietoja ei ole saatavilla tällä toimialan tarkkuustasolla
B184: 104 Kasvi- ja eläinöljyjen ja -rasvojen valmistus | C184: 14 | D184: 14 | E184: 58348 | F184: 156 | H184: Tietoja ei ole saatavilla tällä toimialan tarkkuustasolla
B185: 1041 Kasvi- ja eläinperäisten öljyjen ja -rasvojen valmistus (pl. ravintorasvat) | C185: 13 | D185: 13 | E185: ... | F185: 66 | H185: Tietoja ei ole saatavilla tällä toimialan tarkkuustasolla
B186: 10410 Kasvi- ja eläinperäisten öljyjen ja -rasvojen valmistus (pl. ravintorasvat) | C186: 13 | D186: 13 | E186: ... | F186: 66 | H186: Tietoja ei ole saatavilla tällä toimialan tarkkuustasolla
B187: 1042 Margariinin ja sen kaltaisten ravintorasvojen valmistus | C187: 1 | D187: 1 | E187: ... | F187: 91 | H187: Tietoja ei ole saatavilla tällä toimialan tarkkuustasolla
B188: 10420 Margariinin ja sen kaltaisten ravintorasvojen valmistus | C188: 1 | D188: 1 | E188: ... | F188: 91 | H188: Tietoja ei ole saatavilla tällä toimialan tarkkuustasolla
B189: 105 Maitotaloustuotteiden valmistus | C189: 69 | D189: 69 | E189: 2309847 | F189: 4942 | H189: Tietoja ei ole saatavilla tällä toimialan tarkkuustasolla
B190: 1051 Maitotaloustuotteiden ja juuston valmistus | C190: 48 | D190: 48 | E190: 2204309 | F190: 4605 | H190: Tietoja ei ole saatavilla tällä toimialan tarkkuustasolla
B191: 10510 Maitotaloustuotteiden ja juuston valmistus | C191: 48 | D191: 48 | E191: 2204309 | F191: 4605 | H191: Tietoja ei ole saatavilla tällä toimialan tarkkuustasolla
B192: 1052 Jäätelön valmistus | C192: 21 | D192: 21 | E192: 105538 | F192: 337 | H192: Tietoja ei ole saatavilla tällä toimialan tarkkuustasolla
B193: 10520 Jäätelön valmistus | C193: 21 | D193: 21 | E193: 105538 | F193: 337 | H193: Tietoja ei ole saatavilla tällä toimialan tarkkuustasolla
B194: 106 Mylly- ja tärkkelystuotteiden valmistus | C194: 58 | D194: 58 | E194: 460384 | F194: 969 | H194: Tietoja ei ole saatavilla tällä toimialan tarkkuustasolla
B195: 1061 Myllytuotteiden valmistus | C195: 51 | D195: 51 | E195: 371144 | F195: 854 | H195: Tietoja ei ole saatavilla tällä toimialan tarkkuustasolla
B196: 10610 Myllytuotteiden valmistus | C196: 51 | D196: 51 | E196: 371144 | F196: 854 | H196: Tietoja ei ole saatavilla tällä toimialan tarkkuustasolla
B197: 1062 Tärkkelyksen ja tärkkelystuotteiden valmistus | C197: 7 | D197: 7 | E197: 89240 | F197: 115 | H197: Tietoja ei ole saatavilla tällä toimialan tarkkuustasolla
B198: 10620 Tärkkelyksen ja tärkkelystuotteiden valmistus | C198: 7 | D198: 7 | E198: 89240 | F198: 115 | H198: Tietoja ei ole saatavilla tällä toimialan tarkkuustasolla
B199: 107 Leipomotuotteiden, makaronien yms. valmistus | C199: 621 | D199: 621 | E199: 1136095 | F199: 7003 | H199: Tietoja ei ole saatavilla tällä toimialan tarkkuustasolla
B200: 1071 Leivän valmistus; tuoreiden leivonnaisten ja kakkujen valmistus | C200: 596 | D200: 596 | E200: 1045500 | F200: 6605 | H200: Tietoja ei ole saatavilla tällä toimialan tarkkuustasolla
B201: 10710 Leivän valmistus; tuoreiden leivonnaisten ja kakkujen valmistus | C201: 596 | D201: 596 | E201: 1045500 | F201: 6605 | H201: Tietoja ei ole saatavilla tällä toimialan tarkkuustasolla
B202: 1072 Näkkileivän ja keksien valmistus; säilyvien leivonnaisten ja kakkujen valmistus | C202: 21 | D202: 21 | E202: 89499 | F202: 389 | H202: Tietoja ei ole saatavilla tällä toimialan tarkkuustasolla
B203: 10720 Näkkileivän ja keksien valmistus; säilyvien leivonnaisten ja kakkujen valmistus | C203: 21 | D203: 21 | E203: 89499 | F203: 389 | H203: Tietoja ei ole saatavilla tällä toimialan tarkkuustasolla
... 1587 more rows

Sheet Apu2_Aika per tehtävä
A1: Aputaulukko 2 - lain edellyttämän tehtävän suorittamiseen kuluva aika vuodessa
A2: Perustuu standardikustannusmallin (SCM) mukaiseen arviointiin (ks. OM 2007:6 ja SCM Network)
A3: Ohjeet:
A4: 1 ) | B4: Sääntelytaakan laskennan perustekijänä on se työaika, jonka joku tai jotkut yrityksen työntekijöistä joutuu/joutuvat käyttämään lain edellyttämän tehtävän suorittamiseen (esim. jonkin asian ilmoittaminen viranomaiselle). Vaihtoehtoisesti yritys voi myös ulkoistaa jonkin tehtävän (esim. tilintarkastus), jolloin ulkoistuskustannus lasketaan muiden kustannusten yhteydessä (välilehti 3_Muut kustannukset).
A5: 2 ) | B5: Tätä välilehteä voit käyttää apuna arvioidessasi lain edellyttämään tehtävään käytettävää kokonaisaikaa.
A6: 3 ) | B6: Tietoa tai arviota lain edellyttämän tehtävän vaatimasta työajasta voi kysyä esimerkiksi lakia valmistelevan työryhmän jäseniltä, toimialayhdistyksiltä, toimialan sääntelyviranomaiselta tai suoraan yrityksiltä.
A7: 4 ) | B7: Ensin voi arvioida paljonko käytetty aika on tehtäväkohtaisesti (tehtävän kesto per yksi tehtäväkerta) ja tämän jälkeen taulukosta voi katsoa kokonaisajan riippuen siitä, kuinka monta kertaa vuodessa laki edellyttää tehtävän suorittamisen (frekvenssi).
A8: 5 ) | B8: Alla olevan taulukon avulla voi myös arvioida sitä, 1) kuinka paljon suurempi kustannus yrityksille aiheutuu, jos esim. jokin ilmoitusvelvollisuus on neljästi vuodessa sen sijaan, että se olisi vain kerran vuodessa tai 2) onko jokin ilmoitusvelvollisuus ylipäätään tarpeen lain tavoitteiden saavuttamiseksi (kustannus-hyöty-analyysi per lain yrityksille asettama velvoite).
A9: 6 ) | B9: Tieto tai paras mahdollinen arvio tehtävään käytettävästä ajasta syötetään laskelmaan tämän taulukon välilehdelle 2B_Työkustannus.
B12: Kuinka usein lain edellyttämä tehtävä tulee suorittaa | C12: Kuinka monta kertaa vuodessa tehtävä suoritetaan (frekvenssi) | D12: Aika tunteina | E12: Tehtävän kesto per yksi tehtäväkerta
E13: 1 min | F13: 15 min | G13: 30 min | H13: 1 tunti | I13: 2 tuntia | J13: 3 tuntia | K13: … | L13: 1 työpäivää | M13: 2 työpäivää | N13: 3 työpäivää | O13: 4 työpäivää | P13: 5 työpäivää
E14: =1/60 -> 0.01666666667 | F14: 0.25 | G14: 0.5 | H14: 1 | I14: 2 | J14: 3 | L14: ='2B_Työkustannus'!E81 -> 7.578 | M14: =2*L14 -> 15.156 | N14: =3*$L$14 -> 22.734 | O14: =4*$L$14 -> 30.312 | P14: =5*$L$14 -> 37.89
B15: joka päivä | C15: 365 | E15: =$C15*E$14 -> 6.083333333 | F15: =$C15*F$14 -> 91.25 | G15: 182.5 | H15: 365 | I15: 730 | J15: 1095 | L15: =$C15*L$14 -> 2765.97 | M15: - | N15: - | O15: - | P15: -
B16: joka viikko | C16: 52 | E16: 0.8666666667 | F16: 13 | G16: 26 | H16: 52 | I16: 104 | J16: 156 | L16: =$C16*L$14 -> 394.056 | M16: 788.112 | N16: 1182.168 | O16: 1576.224 | P16: 1970.28
B17: kerran kuukaudessa | C17: 12 | E17: 0.2 | F17: 3 | G17: 6 | H17: 12 | I17: 24 | J17: 36 | L17: 90.936 | M17: 181.872 | N17: 272.808 | O17: 363.744 | P17: 454.68
B18: neljä kertaa vuodessa | C18: 4 | E18: 0.06666666667 | F18: 1 | G18: 2 | H18: 4 | I18: 8 | J18: 12 | L18: 30.312 | M18: 60.624 | N18: 90.936 | O18: 121.248 | P18: 151.56
B19: kaksi kertaa vuodessa | C19: 2 | E19: 0.03333333333 | F19: 0.5 | G19: 1 | H19: 2 | I19: 4 | J19: 6 | L19: 15.156 | M19: 30.312 | N19: 45.468 | O19: 60.624 | P19: 75.78
B20: kerran vuodessa | C20: 1 | E20: 0.01666666667 | F20: 0.25 | G20: 0.5 | H20: 1 | I20: 2 | J20: 3 | L20: 7.578 | M20: 15.156 | N20: 22.734 | O20: 30.312 | P20: 37.89
B23: Alla esimerkki, jossa
B24: yrityksen työntekijät laativat ja toimittavat TUKESille kaivoslain edellyttämän kaivoskartan. Oletuksena on, että yrityksiltä saatujen tietojen mukaan keskimäärin | K24: Tämä vain esimerkinomaisesti.
B25: - asiantuntijalta kuluu kartan laatimiseen 2 työpäivää (15,16 tuntia) ja | K25: Tämä vain esimerkinomaisesti.
B26: - asiantuntijan apuna on avustaja, joka käyttää tehtävään puoli tuntia (0,5 h) ja | K26: Tämä vain esimerkinomaisesti.
B27: - johtaja tarkistaa ja hyväksyy laaditun kartan, johon kuluu 15 minuttia (0,25 h) | K27: Tämä vain esimerkinomaisesti.
B28: Lain mukaan kartta pitää toimittaa TUKESille kahdesti vuodessa (2 kertaa) | K28: Tämä vain esimerkinomaisesti.
B29: Siten laskelmaan merkittäisiin välilehdelle "2B_Työkustannus", Frekvenssi = 2, Johtajalle 0,25 tuntia, Asiantuntijalle 15,16 tuntia ja Avustajalle 0,5 tuntia | K29: Tämä vain esimerkinomaisesti.
B30: Laskentapohja laskee näistä keskimääräisen tuntipalkan ja lisää siihen palkan sivukulut sekä yleiskulun. | K30: Tämä vain esimerkinomaisesti.
B32: Esimerkki ja apulaskupohja (tämä vain tarvittaessa esimerkkinä, täytä yritysvaikutusarvioinnin tiedot välilehdelle 2B_Työkustannus)
E34: Työntekijä 1 | G34: Työntekijä 2 | I34: Työntekijä 3 | M34: Tehtävään käytetty työaika yhteensä
C35: Tehtävä | D35: Tehtävän kuvaus (välilehdeltä '1_Tehtäväluettelo') | E35: Tyypillisesti tehtävän hoitaa (Työntekijä 1) | F35: Työntekijän 1 tehtävään käyttämä aika (h) | G35: Tyypillisesti tehtävässä avustaa (Työntekijä 2) | H35: Työntekijän 2 tehtävään käyttämä aika (h) | I35: Tyypillisesti tehtävää ohjaa/tarkistaa (Työntekijä 3) | J35: Työntekijän 2 tehtävään käyttämä aika (h) | K35: Lisää tarvittaessa työntekijöitä | L35: Kuinka monta kertaa vuodessa tehtävä suoritetaan (frekvenssi) | M35: Työntekijä 1 | N35: Työntekijä 2 | O35: Työntekijä 3
B36: Esimerkki | C36: Tehtävä1 | D36: Kaivoskartan laatiminen ja toimittaminen TUKESille | E36: Asiantuntija | F36: 15.16 | G36: Avustaja | H36: 0.5 | I36: Johtaja | J36: 0.25 | L36: 2 | M36: =$L$36*F36 -> 30.32 | N36: =$L$36*H36 -> 1 | O36: =$L$36*J36 -> 0.5

Sheet Apu3_Laite tms kustannuksista
A1: Aputaulukko 3 - Lain edellyttämien hankintojen kustannuslaskennasta
A3: Edellyttääkö laki jonkin järjestelmän, ohjelmiston tai laitteen hankkimista tai päivittämistä? | E3: Kysy kohdejoukolta (yritykset, toimialajärjestö) miten näkevät nämä kustannuserät ja miten voisi tarvittaessa saada tarkempaa tietoa/arviota näistä.
A4: Jos kyllä, niin käytä apuna lain aiheuttamien kustannusten arvioinnissa seuraavaa:
A6: Jonkin järjestelmän, laitteen tms. (esim. maksupääte) hankkiminen voi aiheuttaa myös muita kustannuksia kuin itse laitteen. Kokonaiskustannusten arvioinnissa voi soveltaa ICT-hankinnoissa vakiintunutta omistamisen kokonaiskustannuksen laskentamallia - Total Cost of Ownership (TCO). | E6: Sovella tarvittaessa muihinkin kuin IT-hankintoihin
A8: Kokonaiskustannuksiin lasketaan mukaan lähtökohtaisesti seuraavat: | E8: Esimerkki | F8: eur/vuosi/yritys | G8: Kustannuserän toistuvuus
A9: 1 | B9: Laitteen (hardware) hankinta | E9: Laite | F9: 250 | G9: kertaluonteinen
A10: 2 | B10: Ohjelmiston (software) hankinta | E10: Ohjelmisto | F10: 100 | G10: kertaluonteinen
A11: 3 | B11: Asennus | E11: Asennus | F11: 1000 | G11: kertaluonteinen
A12: 4 | B12: Johtaminen ja tuki | E12: Johtaminen ja tuki | F12: 6000 | G12: toistuva yhteensä vuodessa
A13: 5 | B13: Tietoliikenneyhteydet | E13: Tietoliikenneyhteydet | F13: =20*12 -> 240 | G13: toistuva yhteensä vuodessa
A14: 6 | B14: Käyttäjäkustannukset | E14: Käyttäjäkustannukset | F14: 0 | G14: toistuva yhteensä vuodessa
B15: Vaihtoehtoiskustannukset
A16: 7 | C16: järjestelmän alhaallaoloajalle (downtime) | E16: Alhaallaoloaika | F16: 520 | G16: Toistuva
A17: 8 | C17: koulutukselle | E17: Koulutus | F17: 140 | G17: Kertaluonteinen
A18: 9 | C18: muulle resurssille, joka on pois tuotannosta | E18: Muu | F18: 0
E19: Yhteensä 1. vuosi | F19: =SUM(F9:F18) -> 8250 | G19: Kertaluonteiset + toistuvat 1. vuodelta
A20: Toisaalta laite tai järjestelmä (esim. maksupääte) voi olla käytössä joka tapauksessa (business as usual). Tällöin hankinnasta tulee kohdistaa kustannuksiin vain se osa, joka arvioidaan johtuvan nimenomaan lain velvoitteista, esimerkiksi 1 % kokonaisuudesta tai 10 %, 20 %, ... jne. tilanteen edellyttämällä tavalla. | E20: Yhteensä seuraavat vuodet | F20: =F12+F13+F16 -> 6760 | G20: Toistuvat yhteensä
E21: Huomion kiinnittäminen laitehankinnasta henkilöstökuluihin. Huom. esimerkkilaskelmassa on valittu tarkoituksella tilanne, jossa itse laite- tms. hankinta on pieni, mutta henkilöstökuluina syntyy vuosittain merkittävä kustannus.

Sheet Apu4_Yksinkert. esim. laskelma
A1: Yksinkertaistettu esimerkkilaskelma - VAIN ESIMERKINLUONTEINEN LASKELMA KOKONAISUUDEN HAHMOTTAMISEKSI
A2: Perustuu standardikustannusmallin (SCM) mukaiseen arviointiin (ks. OM 2007:6 ja SCM Network)
B4: Oletuksena velvoite, jonka hoitaa Asiantuntija (kuukausipalkka 3600 eur/kk)
B5: Esim. jokin ilmoitus kvartaaleittain, johon kuluu á 2 tuntia
B6: Toimialalla 400 yritystä
B7: Lisäksi ensimmäisenä vuonna jokaiselle yritykselle aiheutuu kertaluontoinen 1000 euron koulutuskustannus.
B9: Laskentatekijä | C9: Arvo | D9: Yksikkö | E9: Selite, huomautus
B10: Vuodessa velvoitteeseen käytetyt tunnit | C10: 8 | D10: tuntia | E10: Tehtävä 4 x á 2h = 8h. Ts. Frekvenssi = 4 ja asiantuntijan työtunnit 2,0h per kerta. Nämä syötetään välilehdelle 2.
B11: Tuntipalkkakustannus sivu- ja yleiskuluineen | C11: 34.46 | D11: euroa | E11: Saat tämän taulukon välilehden 2 avulla, kun syötät asiantuntijan kohdalle 2 tuntia (muut 0)
B12: Työntekijäkustannus vuodessa | C12: 275.7071907 | D12: euroa | E12: Tämä näkyy välilehden 2 alaosassa. Laskee automaattisesti heti, kun olet syöttänyt em. tuntimäärän välilehdelle 2
B14: Koulutuskustannus | C14: 1000 | D14: euroa
B16: Yritysten lukumäärä, kohdejoukko | C16: 400 | D16: kappaletta | E16: Lain kohteena olevien yritysten määrä. Tämä syötetään välilehdellä 2.
B18: Toistuva kustannus yhteensä koko toimialalle | C18: =C16*C12 -> 110282.8763 | E18: =275,71 euroa x 400 yritystä
B19: Kertaluontoinen kustannus koko toimialalle | C19: =C16*C14 -> 400000 | E19: =1000,00 euroa x 400 yritystä
B21: Kokonaiskustannus toimialalle ensimmäisenä vuotena | C21: =C18+C19 -> 510282.8763 | D21: euroa | E21: 1. vuoden kokonaiskustannus (kertaluonteinen + toistuva ensimmäisen vuoden osalta)
B22: Kokonaiskustannus toimialalle seuraavina vuosina | C22: =C12*C16 -> 110282.8763 | D22: euroa | E22: Vuotuinen kokonaiskustannus
B24: Vastaavasti laskettaisiin yrityksille kohdistuva säästö, jos esimerkin mukainen velvoite poistettaisiin.
B26: Nettonykyarvo
B27: Alla on esitetty myös nettonykyarvon laskenta yllä olevasta esimerkistä. Tätä lain valmistelijan ei tarvitse laskea, vaan taulukkolaskentapohja laskee sen automaattisesti. Tämä vain informaatiotarkoituksessa, jotta tulee esille lain vaikutus yli ajan (10 vuoden vaikutusjakso).
B29: Oletetaan seuraavat
B30: Palkat nousevat vuosittain reaalisesti (ei inflaatiota) | C30: 0.017 | F30: Vuosi
B31: Käytetään diskonttauskorkona reaalista sosiaalista diskonttokorkoa | C31: 0.04 | F31: 1 | G31: 2 | H31: 3 | I31: 4 | J31: 5 | K31: 6 | L31: 7 | M31: 8 | N31: 9 | O31: 10
B32: (ks. TEM:n Yksi yhdestä -loppuraportti (19.12.2017), jossa nämä perusteltu) | E32: Kustannus | F32: =C21 -> 510282.8763 | G32: =$C$18*(1+$C$30)^G31 -> 114064.3658 | H32: =$C$18*(1+$C$30)^H31 -> 116003.46 | I32: 117975.5189 | J32: 119981.1027 | K32: 122020.7814 | L32: 124095.1347 | M32: =$C$18*(1+$C$30)^M31 -> 126204.752 | N32: 128350.2328 | O32: =$C$18*(1+$C$30)^O31 -> 130532.1867 | P32: Huomioitu palkkojen reaalikasvu
E33: Nykyarvo | F33: =F32/(1+$C$31)^$F$31 -> 490656.6118 | G33: =G32/(1+$C$31)^F31 -> 109677.2748 | H33: =H32/(1+$C$31)^G31 -> 107251.7197 | I33: 104879.8067 | J33: 102560.3494 | K33: 100292.1878 | L33: 98074.18753 | M33: 95905.23915 | N33: 93784.2579 | O33: 91710.18296
E34: Yhteensä 10 v | F34: =SUM(F33:O33) -> 1394791.818
E36: Nykyarvo on | F36: =F34 -> 1394791.818
B38: Ja vielä aivan yksinkertainen esimerkki nykyarvon laskemisesta
B39: Kustannus euroa joka vuosi. | C39: 100
B40: Diskonttauskorko | C40: 0.1
F41: Vuosi
F42: 1 | G42: 2 | H42: 3
E43: Kustannus | F43: 100 | G43: 100 | H43: 100
E44: Nykyarvo | F44: =F43/(1+$C$40)^F31 -> 90.90909091 | G44: =G43/(1+$C$40)^G31 -> 82.6446281 | H44: =H43/(1+$C$40)^H31 -> 75.13148009
E45: Yhteensä | F45: =SUM(F44:O44) -> 248.6851991
E47: Nykyarvo on | F47: =F45 -> 248.6851991 | H47: Toisin sanoen, on samanarvoista saada tänään 248,7 euroa kuin saada vuoden, kahden ja kolmen kuluttua 100 euroa.
H48: Tämän voi ajatella myös niin, että jos tänään aiheutetaan yrityksille n. 250 euron kustannus, niin vuosittain toistuvana säästönä
H49: pitäisi olla 100 euroa seuraavan 3 vuoden aikana, jotta aiheutettu kustannus ja säästö olisivat nykyarvoltaan samansuuruisia.
B50: Annualisoidulla nettonykyarvolla tarkoitetaan puolestaan seuraavaa (esimerkki):
F52: Vuosittain
B53: Tarkastellaan 10 vuoden ajanjaksoa kahdessa eri tapauksessa A ja B. | D53: Kertaluonteinen kustannus | F53: toistuva kustannus | I53: Kesto (n)
B54: Tapauksessa A aiheutuu vuosittain toistuva 100 euron kustannussäästö 10 vuodelle. | D54: 0 | E54: euroa | F54: -100 | G54: euroa | H54: 10 | I54: vuotta
B55: Tapauksessa B aiheutuu 500 euron kertaluontein kustannus ensimmäisenä vuonna ja 74 euron toistuva kustannus 5 vuoden ajan, jonka jälkeen ei kustannuksia. | D55: 500 | E55: euroa | F55: 74 | G55: euroa | H55: 10 | I55: vuotta
B56: Oletetaan diskonttauskoroksi (r) | C56: 0.04
B58: Tapauksen A ja B kustannuserät kohdentuvat hyvin eri tavalla 10 vuoden ajanjaksolle. Tapauksen B toistuva erä on tapausta A itseisarvoltaan pienempi ja tapauksessa B ei aiheudu kustannuksia enää viidennen vuoden jälkeen. Tapauksessa B on merkittävämpi kertaluonteinen erä ensimmäiselle vuoden. Tapausten nykyarvot ovat itseisarvoltaan samansuuruiset (811, pyöristys huomioiden). Annualisoidun nettonykyarvon avulla myös Tapauksen B kustannuserät voidaan jakaa tasaisesti 10 vuoden ajanjaksolle, jolloin vuosittaisista eristä saadaan vertailukelpoiset. Tässä esimerkissä Tapauksen B kustannuserät on tarkoituksella valittu siten, että ne muodostavat Tapauksen A kanssa itseisarvoltaan yhtäsuuren 100 euron vuosittaisen kustannuserän 10 vuodelle. Annualisoidun nykyarvon avulla voidaan vertailla 10 vuoden ajanjaksolta vuositason kustannuseriä lakiehdotuksista, jotka lähtökohtaisesti aiheuttavat kustannuksia eri aikaan ja eri tavalla jaksottuneina. | D58: Tapaus A | F58: 1 | G58: 2 | H58: 3 | I58: 4 | J58: 5 | K58: 6 | L58: 7 | M58: 8 | N58: 9 | O58: 10
E59: Kustannus | F59: =$F$54 -> -100 | G59: =$F$54 -> -100 | H59: -100 | I59: -100 | J59: -100 | K59: -100 | L59: -100 | M59: -100 | N59: -100 | O59: -100
E60: Nykyarvo | F60: =F59/(1+$C$56)^F58 -> -96.15384615 | G60: =G59/(1+$C$56)^G58 -> -92.4556213 | H60: =H59/(1+$C$56)^H58 -> -88.89963587 | I60: =I59/(1+$C$56)^I58 -> -85.4804191 | J60: =J59/(1+$C$56)^J58 -> -82.19271068 | K60: -79.03145257 | L60: -75.99178132 | M60: -73.0690205 | N60: -70.25867356 | O60: -67.55641688
E61: Yhteensä 10 vuodelta | F61: =SUM(F60:O60) -> -811.0895779
D63: Tapaus B | F63: 1 | G63: 2 | H63: 3 | I63: 4 | J63: 5 | K63: 6 | L63: 7 | M63: 8 | N63: 9 | O63: 10
E64: Kustannus | F64: =D55+F55 -> 574 | G64: =$F$55 -> 74 | H64: =$F$55 -> 74 | I64: 74 | J64: 74 | K64: 0 | L64: 0 | M64: 0 | N64: 0 | O64: 0
E65: Nykyarvo | F65: =F64/(1+$C$56)^F63 -> 551.9230769 | G65: =G64/(1+$C$56)^G63 -> 68.41715976 | H65: 65.78573054 | I65: 63.25551014 | J65: 60.8226059 | K65: 0 | L65: 0 | M65: 0 | N65: 0 | O65: 0
E66: Yhteensä 10 vuodelta | F66: =SUM(F65:O65) -> 810.2040833
D68: Annualisoidut nykyarvot
E69: Tapaus A | F69: =($C$56*$F$61)/(1-(1+$C$56)^(-H54)) -> -100
E70: Tapaus B | F70: =($C$56*$F$66)/(1-(1+$C$56)^(-H55)) -> 99.89082653
I75: =($F$61*$C$56)/(1-(1+$C$56)^-$H$54) -> -100
I81: =($F$66*$C$56)/(1-(1+$C$56)^-$H$55) -> 99.89082653 | K81: Jossa | L81: PV | M81: Nykyarvo
L82: A | M82: Vuotuinen vakioerä
L83: r | M83: korko
L84: n | M84: Aika vuosina
B90: Huom. nykyarvon laskemisesta aiheutuu seuraava:
B92: Jos nykytilanteessa yrityksille aiheutuu 100 euron kustannus seuraavalle 4 vuodelle, | E92: Vuosi | F92: 2017 | G92: 2018 | H92: 2019 | I92: 2020 | J92: 2021 | K92: 2022
B93: täytyy se korvata vuosittaisella 108 euron säästöllä, jos säästö tulee voimaan vasta | F93: 0 | G93: 1 | H93: 2 | I93: 3 | J93: 4 | K93: 5
B94: 2 vuotta nykytilanteen jälkeen. | E94: Kustannuslisäys | F94: 100 | G94: 100 | H94: 100 | I94: 100
E95: Nykyarvo | F95: =F94/(1+$F$107)^F93 -> 100 | G95: =G94/(1+$F$107)^G93 -> 96.15384615 | H95: =H94/(1+$F$107)^H93 -> 92.4556213 | I95: =I94/(1+$F$107)^I93 -> 88.89963587
B96: Laskennassa huomioitu Annualisoitu NPV -välilehdellä myös inflaatio, mutta tässä | E96: Yhteensä | F96: =SUM(F95:N95) -> 377.5091033
B97: yksinkertaisessa esimerkissä ei ole deflatoitu elinkustannusindeksillä siten kuin
B98: varsinaisessa laskennassa tehdään deflatointi vuoden 2019 hinnoista perusvuoden | E98: Kustannussäästö_A | H98: -100 | I98: -100 | J98: -100 | K98: -100
B99: 2017 hintoihin. | E99: Nykyarvo | H99: =H98/(1+$F$107)^H93 -> -92.4556213 | I99: =I98/(1+$F$107)^I93 -> -88.89963587 | J99: =J98/(1+$F$107)^J93 -> -85.4804191 | K99: =K98/(1+$F$107)^K93 -> -82.19271068
E100: Yhteensä | F100: =SUM(F99:K99) -> -349.0283869
E102: Kustannussäästö_B | H102: -108.3006466 | I102: =H102 -> -108.3006466 | J102: =I102 -> -108.3006466 | K102: -108.3006466
E103: Nykyarvo | H103: =H102/(1+$F$107)^H93 -> -100.1300357 | I103: =I102/(1+$F$107)^I93 -> -96.2788805 | J103: =J102/(1+$F$107)^J93 -> -92.57584663 | K103: =K102/(1+$F$107)^K93 -> -89.01523715
E104: Yhteensä | F104: =SUM(F103:K103) -> -378
E107: Korko | F107: 0.04

Sheet Apu5_Tietolähteitä
A1: Tietolähteitä
A4: Tietokannat
O5: Palaa takaisin tai siirry
B6: Tilastokeskus | P6: Ohjeisiin
C7: Tilastotietokannat | P7: Tarkistuslistaan | Q7: Ohjeet ja tarkistuslista
C8: Tilastot | P8: Välilehdelle 1 | Q8: Velvoiteluettelo
D9: Esim. Yritykset | P9: Välilehdelle 2 | Q9: Työkustannukset
D10: Esim. Kauppa | P10: Välilehdelle 3 | Q10: Muut kustannuksen ja kustannukset yhteensä
D11: Esim. Rakentaminen | P11: Välilehdelle 4 | Q11: Vuosittaiset poikkeukset kustannuserissä
D12: Esim. Teollisuus | P12: Välilehdelle 5 | Q12: Yhteenveto
D13: Esim. Työmarkkinat | P13: Apu2 | Q13: Tehtäväkohtainen aika - apu hahmottamiseen
D14: Esim. Palkat ja työvoimakustannukset | P14: Apu3 | Q14: Laite tms kustannuksista
B15: Tulli - ULJAS - Tavaroiden ulkomaankauppatilastot | P15: Apu4 | Q15: Yksinkertainen esimerkkilaskelma
P16: Apu5 | Q16: Tietolähteitä
A18: Muut lähteet
B19: Toimialavirastot
B20: Yritykset
C21: Suorat yhteydet yrityksiin
C22: Kyselytutkimuksen teettäminen
D23: Käytettävissä oleva aika ja raha?
B24: Toimialaliitot ja -yhdistykset
C25: EK
C26: Suomen yrittäjät
C27: Toimialayhdistykset
B28: Aiemmat selvitykset ja lakihankkeet
B29: Kansainväliset esimerkit

Sheet Annualisoitu NPV
A1: Annualisoidun nettonykyarvon (AENPV) laskenta
A2: AENPV = Annual Equivalent Net Present Value
D4: ="Velvoite"&D18+1 -> Velvoite1 | E4: ="Velvoite"&E18+1 -> Velvoite2 | F4: Velvoite3 | G4: Velvoite4 | H4: Velvoite5 | J4: Yhteensä
C5: Sääntelyn luonne | D5: =OFFSET('1_Velvoiteluettelo'!$G$17,D18,0) -> Kansallisen tai EU-minimin ylittävän sääntelyn keventämistä | E5: =OFFSET('1_Velvoiteluettelo'!$G$17,E18,0) -> Kansallisen tai EU-minimin ylittävän sääntelyn keventämistä | F5: =OFFSET('1_Velvoiteluettelo'!$G$17,F18,0) -> Kansallisen tai EU-minimin ylittävän sääntelyn keventämistä | G5: =OFFSET('1_Velvoiteluettelo'!$G$17,G18,0) -> Kansallisen tai EU-minimin ylittävän sääntelyn keventämistä | H5: =OFFSET('1_Velvoiteluettelo'!$G$17,H18,0) -> 0
C6: Frekvenssi | D6: =OFFSET('2B_Työkustannus'!$F13,0,D18) -> 0.33 | E6: =OFFSET('2B_Työkustannus'!$F13,0,E18) -> 0.2 | F6: =OFFSET('2B_Työkustannus'!$F13,0,F18) -> 0.2 | G6: =OFFSET('2B_Työkustannus'!$F13,0,G18) -> 0.2 | H6: =OFFSET('2B_Työkustannus'!$F13,0,H18) -> 0
C7: Yritysjoukon suuruus | D7: =OFFSET('2B_Työkustannus'!$F11,0,D18) -> 258 | E7: =OFFSET('2B_Työkustannus'!$F11,0,E18) -> 168 | F7: =OFFSET('2B_Työkustannus'!$F11,0,F18) -> 240 | G7: =OFFSET('2B_Työkustannus'!$F11,0,G18) -> 411 | H7: =OFFSET('2B_Työkustannus'!$F11,0,H18) -> 0
C8: Toistuvat henkilöstömenot | D8: =IF(ISNUMBER(OFFSET('1_Velvoiteluettelo'!$F$17,D18,0)),'3_Muut kustannukset'!I21,0) -> -2397.578679 | E8: =IF(ISNUMBER(OFFSET('1_Velvoiteluettelo'!$F$17,E18,0)),'3_Muut kustannukset'!J21,0) -> -1182.737897 | F8: =IF(ISNUMBER(OFFSET('1_Velvoiteluettelo'!$F$17,F18,0)),'3_Muut kustannukset'!K21,0) -> -1351.700453 | G8: =IF(ISNUMBER(OFFSET('1_Velvoiteluettelo'!$F$17,G18,0)),'3_Muut kustannukset'!L21,0) -> -2893.483783 | H8: =IF(ISNUMBER(OFFSET('1_Velvoiteluettelo'!$F$17,H18,0)),'3_Muut kustannukset'!M21,0) -> 0 | J8: =SUM(D8:I8) -> -7825.500813
C9: josta palkat | D9: =IF(ISNUMBER(OFFSET('1_Velvoiteluettelo'!$F$17,D18,0)),D8/(1+'2B_Työkustannus'!$E$70),0) -> -1502.24228 | E9: =IF(ISNUMBER(OFFSET('1_Velvoiteluettelo'!$F$17,E18,0)),E8/(1+'2B_Työkustannus'!$E$70),0) -> -741.0638451 | F9: =IF(ISNUMBER(OFFSET('1_Velvoiteluettelo'!$F$17,F18,0)),F8/(1+'2B_Työkustannus'!$E$70),0) -> -846.9301087 | G9: =IF(ISNUMBER(OFFSET('1_Velvoiteluettelo'!$F$17,G18,0)),G8/(1+'2B_Työkustannus'!$E$70),0) -> -1812.959764 | H9: =IF(ISNUMBER(OFFSET('1_Velvoiteluettelo'!$F$17,H18,0)),H8/(1+'2B_Työkustannus'!$E$70),0) -> 0 | J9: -4903.195998
C10: josta sivu- ja yleiskulu | D10: =IF(ISNUMBER(OFFSET('1_Velvoiteluettelo'!$F$17,D18,0)),D8-D9,0) -> -895.336399 | E10: =IF(ISNUMBER(OFFSET('1_Velvoiteluettelo'!$F$17,E18,0)),E8-E9,0) -> -441.6740517 | F10: =IF(ISNUMBER(OFFSET('1_Velvoiteluettelo'!$F$17,F18,0)),F8-F9,0) -> -504.7703448 | G10: =IF(ISNUMBER(OFFSET('1_Velvoiteluettelo'!$F$17,G18,0)),G8-G9,0) -> -1080.524019 | H10: =IF(ISNUMBER(OFFSET('1_Velvoiteluettelo'!$F$17,H18,0)),H8-H9,0) -> 0 | J10: -2922.304815
C11: Toistuvat muut kulut | D11: =IF(ISNUMBER(OFFSET('1_Velvoiteluettelo'!$F$17,D18,0)),'3_Muut kustannukset'!I28,0) -> -4086.72 | E11: =IF(ISNUMBER(OFFSET('1_Velvoiteluettelo'!$F$17,E18,0)),'3_Muut kustannukset'!J28,0) -> -2016 | F11: =IF(ISNUMBER(OFFSET('1_Velvoiteluettelo'!$F$17,F18,0)),'3_Muut kustannukset'!K28,0) -> -2304 | G11: =IF(ISNUMBER(OFFSET('1_Velvoiteluettelo'!$F$17,G18,0)),'3_Muut kustannukset'!L28,0) -> -4932 | H11: =IF(ISNUMBER(OFFSET('1_Velvoiteluettelo'!$F$17,H18,0)),'3_Muut kustannukset'!M28,0) -> 0 | J11: -13338.72
C12: Kertaluontoiset henkilöstökulut | D12: =IF(ISNUMBER(OFFSET('1_Velvoiteluettelo'!$F$17,D18,0)),'3_Muut kustannukset'!I36,0) -> 0 | E12: =IF(ISNUMBER(OFFSET('1_Velvoiteluettelo'!$F$17,E18,0)),'3_Muut kustannukset'!J36,0) -> 0 | F12: =IF(ISNUMBER(OFFSET('1_Velvoiteluettelo'!$F$17,F18,0)),'3_Muut kustannukset'!K36,0) -> 0 | G12: =IF(ISNUMBER(OFFSET('1_Velvoiteluettelo'!$F$17,G18,0)),'3_Muut kustannukset'!L36,0) -> 0 | H12: =IF(ISNUMBER(OFFSET('1_Velvoiteluettelo'!$F$17,H18,0)),'3_Muut kustannukset'!M36,0) -> 0 | J12: 0
C13: josta palkat | D13: =IF(ISNUMBER(OFFSET('1_Velvoiteluettelo'!$F$17,D18,0)),D12/(1+'2B_Työkustannus'!$E$70),0) -> 0 | E13: =IF(ISNUMBER(OFFSET('1_Velvoiteluettelo'!$F$17,E18,0)),E12/(1+'2B_Työkustannus'!$E$70),0) -> 0 | F13: =IF(ISNUMBER(OFFSET('1_Velvoiteluettelo'!$F$17,F18,0)),F12/(1+'2B_Työkustannus'!$E$70),0) -> 0 | G13: =IF(ISNUMBER(OFFSET('1_Velvoiteluettelo'!$F$17,G18,0)),G12/(1+'2B_Työkustannus'!$E$70),0) -> 0 | H13: =IF(ISNUMBER(OFFSET('1_Velvoiteluettelo'!$F$17,H18,0)),H12/(1+'2B_Työkustannus'!$E$70),0) -> 0 | J13: 0
C14: josta sivu- ja yleiskulu | D14: =IF(ISNUMBER(OFFSET('1_Velvoiteluettelo'!$F$17,D18,0)),D12-D13,0) -> 0 | E14: =IF(ISNUMBER(OFFSET('1_Velvoiteluettelo'!$F$17,E18,0)),E12-E13,0) -> 0 | F14: =IF(ISNUMBER(OFFSET('1_Velvoiteluettelo'!$F$17,F18,0)),F12-F13,0) -> 0 | G14: =IF(ISNUMBER(OFFSET('1_Velvoiteluettelo'!$F$17,G18,0)),G12-G13,0) -> 0 | H14: =IF(ISNUMBER(OFFSET('1_Velvoiteluettelo'!$F$17,H18,0)),H12-H13,0) -> 0 | J14: 0
C15: Kertaluontoiset muut kulut | D15: =IF(ISNUMBER(OFFSET('1_Velvoiteluettelo'!$F$17,D18,0)),'3_Muut kustannukset'!I43,0) -> 0 | E15: =IF(ISNUMBER(OFFSET('1_Velvoiteluettelo'!$F$17,E18,0)),'3_Muut kustannukset'!J43,0) -> 0 | F15: =IF(ISNUMBER(OFFSET('1_Velvoiteluettelo'!$F$17,F18,0)),'3_Muut kustannukset'!K43,0) -> 0 | G15: =IF(ISNUMBER(OFFSET('1_Velvoiteluettelo'!$F$17,G18,0)),'3_Muut kustannukset'!L43,0) -> 0 | H15: =IF(ISNUMBER(OFFSET('1_Velvoiteluettelo'!$F$17,H18,0)),'3_Muut kustannukset'!M43,0) -> 0 | J15: 0
C16: Yrityskentän kasvuvauhti | D16: =OFFSET('4_Poikkeukset'!$C8,D18,0) -> 0 | E16: =OFFSET('4_Poikkeukset'!$C8,E18,0) -> 0 | F16: =OFFSET('4_Poikkeukset'!$C8,F18,0) -> 0 | G16: =OFFSET('4_Poikkeukset'!$C8,G18,0) -> 0 | H16: =OFFSET('4_Poikkeukset'!$C8,H18,0) -> 0
C17: apulaskuja | D17: =IF(D16>0,D16,0) -> 0 | E17: =IF(E16>0,E16,0) -> 0 | F17: =IF(F16>0,F16,0) -> 0 | G17: =IF(G16>0,G16,0) -> 0 | H17: =IF(H16>0,H16,0) -> 0
C18: apulaskuja | D18: 0 | E18: =D18+1 -> 1 | F18: =E18+1 -> 2 | G18: =F18+1 -> 3 | H18: =G18+1 -> 4 | I18: =H18+1 -> 5
C19: Perusvuosi | D19: ='1_Velvoiteluettelo'!$B$13 -> 2017 | E19: ='1_Velvoiteluettelo'!$B$13 -> 2017 | F19: ='1_Velvoiteluettelo'!$B$13 -> 2017 | G19: ='1_Velvoiteluettelo'!$B$13 -> 2017 | H19: ='1_Velvoiteluettelo'!$B$13 -> 2017
C20: Voimaantulovuosi | D20: =OFFSET('1_Velvoiteluettelo'!$F$17,D18,0) -> 2024 | E20: =OFFSET('1_Velvoiteluettelo'!$F$17,E18,0) -> 2024 | F20: =OFFSET('1_Velvoiteluettelo'!$F$17,F18,0) -> 2024 | G20: =OFFSET('1_Velvoiteluettelo'!$F$17,G18,0) -> 2024 | H20: =OFFSET('1_Velvoiteluettelo'!$F$17,H18,0) -> 0
C22: Tarkastelujakso vuosina: | D22: =IF(ISNUMBER(OFFSET('1_Velvoiteluettelo'!$E17,D18,0)),OFFSET('1_Velvoiteluettelo'!$E17,D18,0),10) -> 10 | E22: =IF(ISNUMBER(OFFSET('1_Velvoiteluettelo'!$E17,E18,0)),OFFSET('1_Velvoiteluettelo'!$E17,E18,0),10) -> 10 | F22: =IF(ISNUMBER(OFFSET('1_Velvoiteluettelo'!$E17,F18,0)),OFFSET('1_Velvoiteluettelo'!$E17,F18,0),10) -> 10 | G22: =IF(ISNUMBER(OFFSET('1_Velvoiteluettelo'!$E17,G18,0)),OFFSET('1_Velvoiteluettelo'!$E17,G18,0),10) -> 10 | H22: =IF(ISNUMBER(OFFSET('1_Velvoiteluettelo'!$E17,H18,0)),OFFSET('1_Velvoiteluettelo'!$E17,H18,0),10) -> 10
L23: Nettonykyarvon laskentakaavat
C24: Sosiaalinen diskonttokorko (reaalinen): | D24: 0.04 | L24: Toistuvat kustannuserät annuiteettina perusvuoden nykyarvoon, ml. deflatointi
C25: EKI=1951 indeksiluku 2 v. ennen perusvuotta, vka (2015) | D25: 1906
C26: EKI=1951 indeksiluku HE:n valmisteluvuotta ed v. vka | D26: 2017 | E26: vuosi 2021
C27: Kokonaiskasvu (palkkojen nousu ja yrityskentän kasvu) | D27: =(1+'Taustatietoa ATI ja EKI'!$G30)*(1+D16)-1 -> 0.01668210661 | E27: =(1+'Taustatietoa ATI ja EKI'!$G30)*(1+E16)-1 -> 0.01668210661 | F27: =(1+'Taustatietoa ATI ja EKI'!$G30)*(1+F16)-1 -> 0.01668210661 | G27: =(1+'Taustatietoa ATI ja EKI'!$G30)*(1+G16)-1 -> 0.01668210661 | H27: =(1+'Taustatietoa ATI ja EKI'!$G30)*(1+H16)-1 -> 0.01668210661
C28: NPV | D28: =D4 -> Velvoite1 | E28: =E4 -> Velvoite2 | F28: =F4 -> Velvoite3 | G28: =G4 -> Velvoite4 | H28: =H4 -> Velvoite5 | J28: Yhteensä | L28: Kertaluonteiset voimaantulovuodesta perusvuoteen, ml. deflatointi
C29: =C8 -> Toistuvat henkilöstömenot | D29: =IF(ISNUMBER(D$20),IF(D27=$D$24,D8*($D$25/$D$26)*D22*(1+$D$24)^-(D$20-D$19+1),(((D8)*($D$25/$D$26))*((1-((1+D$27)/(1+$D$24))^D$22)/($D$24-D$27))*((1+$D$24)^-(D$20-D$19)))),0) -> -14980.53171 | E29: =IF(ISNUMBER(E$20),IF(E27=$D$24,E8*($D$25/$D$26)*E22*(1+$D$24)^-(E$20-E$19+1),(((E8)*($D$25/$D$26))*((1-((1+E$27)/(1+$D$24))^E$22)/($D$24-E$27))*((1+$D$24)^-(E$20-E$19)))),0) -> -7389.973359 | F29: -8445.683839 | G29: -18079.04197 | H29: 0 | J29: =SUM(D29:I29) -> -48895.23087
C30: josta palkat | D30: =IF(ISNUMBER(D$20),IF(D27=$D$24,D9*($D$25/$D$26)*D22*(1+$D$24)^-(D$20-D$19+1),(((D9)*($D$25/$D$26))*((1-((1+D$27)/(1+$D$24))^D$22)/($D$24-D$27))*((1+$D$24)^-(D$20-D$19)))),0) -> -9386.298063 | E30: =IF(ISNUMBER(E$20),IF(E27=$D$24,E9*($D$25/$D$26)*E22*(1+$D$24)^-(E$20-E$19+1),(((E9)*($D$25/$D$26))*((1-((1+E$27)/(1+$D$24))^E$22)/($D$24-E$27))*((1+$D$24)^-(E$20-E$19)))),0) -> -4630.309122 | F30: -5291.781854 | G30: -11327.72053 | H30: 0 | J30: =SUM(D30:I30) -> -30636.10957
C31: josta sivu- ja yleiskulu | D31: =IF(ISNUMBER(D$20),IF(D27=$D$24,D10*($D$25/$D$26)*D22*(1+$D$24)^-(D$20-D$19+1),(((D10)*($D$25/$D$26))*((1-((1+D$27)/(1+$D$24))^D$22)/($D$24-D$27))*((1+$D$24)^-(D$20-D$19)))),0) -> -5594.233646 | E31: =IF(ISNUMBER(E$20),IF(E27=$D$24,E10*($D$25/$D$26)*E22*(1+$D$24)^-(E$20-E$19+1),(((E10)*($D$25/$D$26))*((1-((1+E$27)/(1+$D$24))^E$22)/($D$24-E$27))*((1+$D$24)^-(E$20-E$19)))),0) -> -2759.664237 | F31: -3153.901985 | G31: -6751.321436 | H31: 0 | J31: -18259.1213
C32: Toistuvat muut kulut | D32: =IF(ISNUMBER(D$20),IF(D16=$D$24,D11*($D$25/$D$26)*D22*(1+$D$24)^-(D$20-D$19+1),(((D11)*($D$25/$D$26))*((1-((1+D$16)/(1+$D$24))^D$22)/($D$24-D$16))*((1+$D$24)^-(D$20-D$19)))),0) -> -23802.76052 | E32: =IF(ISNUMBER(E$20),IF(E16=$D$24,E11*($D$25/$D$26)*E22*(1+$D$24)^-(E$20-E$19+1),(((E11)*($D$25/$D$26))*((1-((1+E$16)/(1+$D$24))^E$22)/($D$24-E$16))*((1+$D$24)^-(E$20-E$19)))),0) -> -11742.02422 | F32: -13419.45625 | G32: -28726.02353 | H32: 0 | J32: -77690.26452 | L32: Kertaluonteiset, jos kasvava yritysjoukko (kertaluonteiset uusille alalle tuleville yrityksille -> annuiteetti tältä osin)
C33: Kertaluontoiset henkilöstökulut | D33: =IF(AND(ISNUMBER(D$20),(D$27>0)),((D12*($D$25/$D$26))*((1+$D$24)^-(D$20-D$19+1))+((D$27*D12)*($D$25/$D$26)*(1-((1+D$27)/(1+$D$24))^D$22)/($D$24-D$27))*((1+$D$24)^-(D$20-D$19))),((D12*($D$25/$D$26))*((1+$D$24)^-(D$20-D$19+1)))) -> 0 | E33: =IF(AND(ISNUMBER(E$20),(E$27>0)),((E12*($D$25/$D$26))*((1+$D$24)^-(E$20-E$19+1))+((E$27*E12)*($D$25/$D$26)*(1-((1+E$27)/(1+$D$24))^E$22)/($D$24-E$27))*((1+$D$24)^-(E$20-E$19))),((E12*($D$25/$D$26))*((1+$D$24)^-(E$20-E$19+1)))) -> 0 | F33: 0 | G33: 0 | H33: 0 | J33: 0
C34: josta palkat | D34: =IF(AND(ISNUMBER(D$20),(D$27>0)),((D13*($D$25/$D$26))*((1+$D$24)^-(D$20-D$19+1))+((D$27*D13)*($D$25/$D$26)*(1-((1+D$27)/(1+$D$24))^D$22)/($D$24-D$27))*((1+$D$24)^-(D$20-D$19))),((D13*($D$25/$D$26))*((1+$D$24)^-(D$20-D$19+1)))) -> 0 | E34: =IF(AND(ISNUMBER(E$20),(E$27>0)),((E13*($D$25/$D$26))*((1+$D$24)^-(E$20-E$19+1))+((E$27*E13)*($D$25/$D$26)*(1-((1+E$27)/(1+$D$24))^E$22)/($D$24-E$27))*((1+$D$24)^-(E$20-E$19))),((E13*($D$25/$D$26))*((1+$D$24)^-(E$20-E$19+1)))) -> 0 | F34: 0 | G34: 0 | H34: 0 | J34: 0
C35: josta sivu- ja yleiskulu | D35: =IF(AND(ISNUMBER(D$20),(D$27>0)),((D14*($D$25/$D$26))*((1+$D$24)^-(D$20-D$19+1))+((D$27*D14)*($D$25/$D$26)*(1-((1+D$27)/(1+$D$24))^D$22)/($D$24-D$27))*((1+$D$24)^-(D$20-D$19))),((D14*($D$25/$D$26))*((1+$D$24)^-(D$20-D$19+1)))) -> 0 | E35: =IF(AND(ISNUMBER(E$20),(E$27>0)),((E14*($D$25/$D$26))*((1+$D$24)^-(E$20-E$19+1))+((E$27*E14)*($D$25/$D$26)*(1-((1+E$27)/(1+$D$24))^E$22)/($D$24-E$27))*((1+$D$24)^-(E$20-E$19))),((E14*($D$25/$D$26))*((1+$D$24)^-(E$20-E$19+1)))) -> 0 | F35: 0 | G35: 0 | H35: 0 | J35: 0
C36: Kertaluontoiset muut kulut | D36: =IF(AND(ISNUMBER(D$20),(D$16>0)),IF(D16=$D$24,(D15*($D$25/$D$26))*((1+$D$24)^-(D$20-D$19+1))+D15*$D$24*($D$25/$D$26)*D22*(1+$D$24)^-(D$20-D$19+1),((D15*($D$25/$D$26))*((1+$D$24)^-(D$20-D$19+1))+((D$16*D15)*($D$25/$D$26)*(1-((1+D$16)/(1+$D$24))^D$22)/($D$24-D$16))*((1+$D$24)^-(D$20-D$19)))),((D15*($D$25/$D$26))*((1+$D$24)^-(D$20-D$19+1)))) -> 0 | E36: =IF(AND(ISNUMBER(E$20),(E$16>0)),IF(E16=$D$24,(E15*($D$25/$D$26))*((1+$D$24)^-(E$20-E$19+1))+E15*$D$24*($D$25/$D$26)*E22*(1+$D$24)^-(E$20-E$19+1),((E15*($D$25/$D$26))*((1+$D$24)^-(E$20-E$19+1))+((E$16*E15)*($D$25/$D$26)*(1-((1+E$16)/(1+$D$24))^E$22)/($D$24-E$16))*((1+$D$24)^-(E$20-E$19)))),((E15*($D$25/$D$26))*((1+$D$24)^-(E$20-E$19+1)))) -> 0 | F36: 0 | G36: 0 | H36: 0 | J36: 0
C38: Yhteensä | D38: =D29+D32+D33+D36 -> -38783.29223 | E38: =E29+E32+E33+E36 -> -19131.99758 | F38: -21865.14009 | G38: -46805.0655 | H38: 0 | J38: =J29+J32+J33+J36 -> -126585.4954
C40: ANNUALISOITU NPV (NPV per vuosi, 1:1 -vertailuluku) | D40: =(D38*($D$24))/(1-(1+$D$24)^(-10)) -> -4781.628723 | E40: =(E38*($D$24))/(1-(1+$D$24)^(-10)) -> -2358.802048 | F40: =(F38*($D$24))/(1-(1+$D$24)^(-10)) -> -2695.773769 | G40: =(G38*($D$24))/(1-(1+$D$24)^(-10)) -> -5770.640725 | H40: =(H38*($D$24))/(1-(1+$D$24)^(-10)) -> 0 | J40: =SUM(D40:I40) -> -15606.84527
L43: PV = nykyarvo, tarkoittaa myös nettonykyarvoa NPV
L44: A = kustannuserä valmisteluvuoden nykyrahassa
L45: r = korko, reaalinen sosiaalinen diskonttokorko
L46: g = kasvutekijä = yritysjoukin %-kasvu vuodessa (jos tarpeen, ks. välilehti 4) ja palkkojen reaalikasvu (jos relevantti)
L47: T = oletettu lain voimassaoloaika, lähtökohtaisesti 10 vuotta.
L48: AENPV-kaavassa T = 10, jotta vuositasolle jyvitetyt kustannuserät ovat vertailukelpoisia.
L49: t0 = perusvuosi (2017)
L50: tf = velvoitteen tai muutoksen voimaantulovuosi
L51: C = kertaluonteinen kustannuserä valmisteluvuoden nykyrahassa

Sheet Listat (älä muuta)
B4: 1 | F4: Rivejä lisätty: | G4: =0 -> 0
B5: 2 | D5: EU-minimisääntelyä
B6: 3 | D6: Kansallista tai EU-minimin ylittävää lisäsääntelyä
B7: 4 | D7: EU:n velvoittamaa sääntelyn keventämistä
B8: 5 | D8: Kansallisen tai EU-minimin ylittävän sääntelyn keventämistä
B9: 6
B10: 7
B11: 8
B12: 9
B13: toistaiseksi

Sheet Taustatietoa ATI ja EKI
A1: Taustatietoa elinkustannusindeksi (EKI) ja ansiotasoindeksi (ATI)
F4: Muutos | G4: Reaalinen muutos
E5: Yksityinen | F5: Yksityinen | G5: Yksityinen | J5: Muutos
E6: ATI 1995=100 | F6: ATI 1995=100 | G6: ATI 1995=100 | I6: EKI 1951=100 | J6: EKI 1951=100 | K6: CAGR 1995-2016
D7: 1995 | E7: 100 | I7: 1390
C8: =D8-$D$7 -> 1 | D8: 1996 | E8: 104.2 | F8: =E8/E7-1 -> 0.042 | G8: =(1+F8)/(1+J8)-1 -> 0.03603719599 | I8: 1398 | J8: =I8/I7-1 -> 0.005755395683 | K8: =$J$30 -> 0.0153242757
C9: =D9-$D$7 -> 2 | D9: 1997 | E9: 107 | F9: 0.02687140115 | G9: 0.01453443025 | I9: 1415 | J9: =I9/I8-1 -> 0.0121602289 | K9: =$J$30 -> 0.0153242757
C10: 3 | D10: 1998 | E10: 110.9 | F10: 0.03644859813 | G10: 0.0220033215 | I10: 1435 | J10: 0.01413427562 | K10: 0.0153242757
C11: 4 | D11: 1999 | E11: 114.1 | F11: 0.02885482417 | G11: 0.01680900322 | I11: 1452 | J11: 0.0118466899 | K11: 0.0153242757
C12: 5 | D12: 2000 | E12: 119.1 | F12: 0.04382120947 | G12: 0.009745766918 | I12: 1501 | J12: 0.03374655647 | K12: 0.0153242757
C13: 6 | D13: 2001 | E13: 124.8 | F13: 0.04785894207 | G13: 0.02198588177 | I13: 1539 | J13: 0.0253164557 | K13: 0.0153242757
C14: 7 | D14: 2002 | E14: 129.3 | F14: 0.03605769231 | G14: 0.02014893696 | I14: 1563 | J14: 0.01559454191 | K14: 0.0153242757
C15: 8 | D15: 2003 | E15: 134.4 | F15: 0.03944315545 | G15: 0.03021537855 | I15: 1577 | J15: 0.008957133717 | K15: 0.0153242757
C16: 9 | D16: 2004 | E16: 139.4 | F16: 0.03720238095 | G16: 0.03523300934 | I16: 1580 | J16: 0.001902346227 | K16: 0.0153242757
C17: 10 | D17: 2005 | E17: 144.8 | F17: 0.0387374462 | G17: 0.02961428168 | I17: 1594 | J17: 0.008860759494 | K17: 0.0153242757
C18: 11 | D18: 2006 | E18: 149.2 | F18: 0.03038674033 | G18: 0.01259954629 | I18: 1622 | J18: 0.01756587202 | K18: 0.0153242757
C19: 12 | D19: 2007 | E19: 154 | F19: 0.03217158177 | G19: 0.007329907118 | I19: 1662 | J19: 0.02466091245 | K19: 0.0153242757
C20: 13 | D20: 2008 | E20: 162.3 | F20: 0.0538961039 | G20: 0.01247128594 | I20: 1730 | J20: 0.04091456077 | K20: 0.0153242757
C21: 14 | D21: 2009 | E21: 168.9 | F21: 0.04066543438 | G21: 0.04066543438 | I21: 1730 | J21: 0 | K21: 0.0153242757
C22: 15 | D22: 2010 | E22: 172.8 | F22: 0.02309058615 | G22: 0.01082051058 | I22: 1751 | J22: 0.01213872832 | K22: 0.0153242757
C23: 16 | D23: 2011 | E23: 177.2 | F23: 0.02546296296 | G23: -0.009058693075 | I23: 1812 | J23: 0.03483723587 | K23: 0.0153242757
C24: 17 | D24: 2012 | E24: 182.5 | F24: 0.02990970655 | G24: 0.001715721021 | I24: 1863 | J24: 0.02814569536 | K24: 0.0153242757
C25: 18 | D25: 2013 | E25: 186.5 | F25: 0.02191780822 | G25: 0.007318982387 | I25: 1890 | J25: 0.01449275362 | K25: 0.0153242757
C26: 19 | D26: 2014 | E26: 189.6 | F26: 0.01662198391 | G26: 0.005976727538 | I26: 1910 | J26: 0.01058201058 | K26: 0.0153242757
C27: 20 | D27: 2015 | E27: 192.5 | F27: 0.01529535865 | G27: 0.01742609393 | I27: 1906 | J27: -0.002094240838 | K27: 0.0153242757
C28: =D28-$D$7 -> 21 | D28: 2016 | E28: 194.8 | F28: =E28/E27-1 -> 0.01194805195 | G28: 0.008245157874 | I28: 1913 | J28: 0.003672612802 | K28: 0.0153242757
C30: CAGR | F30: =(E28/E7)^(1/$C$28)-1 -> 0.03226202351 | G30: =(1+F30)/(1+J30)-1 -> 0.01668210661 | J30: =(I28/I7)^(1/$C$28)-1 -> 0.0153242757
C33: Muuttuja | D33: Arvo | E33: Lähde
C34: Ansiotasoindeksin nimellismuutos keskimäärin 1995 - 2016 | D34: =F30 -> 0.03226202351 | E34: Tilastokeskus, ATI=1995, laatijan laskelmat
C35: Ansiotasoindeksin reaalimuutos keskimäärin 1995 - 2016 | D35: =G30 -> 0.01668210661 | E35: Tilastokeskus, ATI=1995 ja EKI=1951, laatijan laskelmat Fisherin relaatiolla
C36: Inflaatio keskimäärin 1995 - 2016 | D36: =J30 -> 0.0153242757 | E36: Tilastokeskus, EKI=1951, vuosikeskiarvo, laatijan laskelmat
E38: ks. myös esim.
E39: http://stat.fi/til/ati/2017/01/ati_2017_01_2017-05-30_tie_001_fi.html

Sheet Taustatietoa palkat am lk
A1: Yksityisen sektorin kuukausipalkkaisten ansiot ammattiluokituksen (AML 2010) mukaan vuonna 2020
A3: Ammattiluokka | B3: Säännöllisen työajan keskiansio (€)
A4: S Yhteensä | B4: 3832
A5: 1 Johtajat | B5: 7093
A6: 11 Johtajat, ylimmät virkamiehet ja järjestöjen johtajat | B6: 6674
A7: 111 Ylimmät virkamiehet ja järjestöjen johtajat | B7: 5696
A8: 1112 Julkishallinnon ylimmät virkamiehet | B8: .
A9: 11122 Alue- ja paikallishallinnon johtajat ja ylimmät virkamiehet | B9: .
A10: 1114 Järjestöjen johtajat | B10: 5744
A11: 11141 Työmarkkina- ja elinkeinoelämän järjestöjen johtajat | B11: 8444
A12: 11142 Muiden järjestöjen johtajat | B12: 4696
A13: 12 Hallintojohtajat ja kaupalliset johtajat | B13: 7398
A14: 121 Liiketoiminta- ja hallintojohtajat | B14: 7399
A15: 1211 Talousjohtajat | B15: 7429
A16: 1212 Henkilöstöjohtajat | B16: 7345
A17: 1213 Politiikka- ja suunnittelujohtajat | B17: 7675
A18: 1219 Muut hallintojohtajat ja kaupalliset johtajat | B18: 7238
A19: 122 Myynti-, markkinointi- ja kehitysjohtajat | B19: 7399
A20: 1221 Myynti- ja markkinointijohtajat | B20: 7454
A21: 1222 Mainos- ja tiedotusjohtajat | B21: 7319
A22: 1223 Tutkimus- ja kehitysjohtajat | B22: 7328
A23: 13 Tuotantotoiminnan ja yhteiskunnan peruspalvelujen johtajat | B23: 6847
A24: 131 Maa-, metsä- ja kalatalouden johtajat | B24: 4824
A25: 1311 Maa- ja metsätalouden johtajat | B25: 4851
A26: 1312 Vesiviljely- ja kalatalouden johtajat | B26: .
A27: 132 Teollisuuden tuotantojohtajat sekä kaivos-, rakennus- ja jakelujohtajat | B27: 6958
A28: 1321 Teollisuuden tuotantojohtajat | B28: 6857
A29: 1322 Kaivostoiminnan tuotantojohtajat | B29: .
A30: 1323 Rakennustoiminnan tuotantojohtajat | B30: 6921
A31: 1324 Hankinta- ja jakelujohtajat | B31: 7195
A32: 133 Tieto- ja viestintäteknologiajohtajat | B32: 7768
A33: 1330 Tieto- ja viestintäteknologiajohtajat | B33: 7768
A34: 134 Yhteiskunnan peruspalvelujen sekä rahoitus- ja vakuutuspalvelujen johtajat | B34: 6363
A35: 1341 Lastenhoidon johtajat | B35: 3384
A36: 1342 Terveydenhuollon johtajat | B36: 7225
A37: 1343 Vanhustenhuollon johtajat | B37: 3898
A38: 1344 Sosiaalihuollon johtajat | B38: 4382
A39: 1345 Opetusalan johtajat | B39: 6282
A40: 1346 Rahoitus- ja vakuutuspalvelujen johtajat | B40: 8965
A41: 1349 Muut yhteiskunnan palvelujen johtajat | B41: 6176
A42: 14 Hotelli- ja ravintola-alan, vähittäiskaupan ja muiden palvelualojen johtajat | B42: 6068
A43: 141 Hotellin- ja ravintolanjohtajat | B43: 4824
A44: 1411 Hotellinjohtajat | B44: 5043
A45: 1412 Ravintolanjohtajat | B45: 4527
A46: 142 Vähittäis- ja tukkukaupan johtajat | B46: 7146
A47: 1420 Vähittäis- ja tukkukaupan johtajat | B47: 7146
A48: 143 Muiden palvelualojen johtajat | B48: 5188
A49: 1431 Urheilu-, vapaa-aika- ja kulttuurikeskusten johtajat | B49: 5041
A50: 1439 Muut palvelualojen johtajat | B50: 5352
A51: 2 Erityisasiantuntijat | B51: 4677
A52: 21 Luonnontieteiden ja tekniikan erityisasiantuntijat | B52: 4760
A53: 211 Luonnon- ja geotieteen erityisasiantuntijat | B53: 4234
A54: 2111 Fyysikot ja astronomit | B54: 3723
A55: 2112 Meteorologit | B55: .
A56: 2113 Kemistit | B56: 4530
A57: 2114 Geologit ja geofyysikot | B57: 4419
A58: 212 Matematiikan ja tilastotieteen erityisasiantuntijat | B58: 4500
A59: 2120 Matemaatikot, aktuaarit ja tilastotieteilijät | B59: 4500
A60: 213 Biotieteiden erityisasiantuntijat | B60: 3824
A61: 2131 Biologit, kasvi- ja eläintieteilijät ym. erityisasiantuntijat | B61: 3793
A62: 2132 Maa-, metsä- ja kalatalouden erityisasiantuntijat | B62: 3544
A63: 21321 Maa- ja kalatalouden erityisasiantuntijat | B63: 3327
A64: 21322 Metsätalouden erityisasiantuntijat | B64: 3615
A65: 2133 Ympäristön- ja luonnonsuojelun erityisasiantuntijat | B65: 4310
A66: 214 Tekniikan erityisasiantuntijat (pl. sähköteknologia) | B66: 4869
A67: 2141 Teollisen valmistuksen ja tuotantotekniikan erityisasiantuntijat | B67: 4826
A68: 2142 Maa- ja vesirakentamisen erityisasiantuntijat | B68: 4963
A69: 2143 Ympäristötekniikan erityisasiantuntijat | B69: 3566
A70: 2144 Konetekniikan erityisasiantuntijat | B70: 4755
A71: 2145 Puunjalostuksen ja kemian prosessitekniikan erityisasiantuntijat | B71: 5056
A72: 2146 Kaivosteollisuuden, metallurgian ym. erityisasiantuntijat | B72: 4771
A73: 2149 Muut tekniikan erityisasiantuntijat | B73: 4835
A74: 215 Sähköteknologian erityisasiantuntijat | B74: 4944
A75: 2151 Sähkötekniikan erityisasiantuntijat | B75: 4845
A76: 2152 Elektroniikan erityisasiantuntijat | B76: 4989
A77: 2153 ICT-alan erityisasiantuntijat | B77: 5073
A78: 21531 Tietoliikenneteknologian tutkijat | B78: 5216
A79: 21532 Tietotekniikka-alan tutkijat | B79: 3637
A80: 216 Arkkitehdit, suunnittelijat ja maanmittaajat | B80: 4416
A81: 2161 Talonrakennuksen arkkitehdit | B81: 4433
A82: 2162 Maisema-arkkitehdit | B82: 4284
A83: 2163 Tuote- ja vaatesuunnittelijat | B83: 4015
A84: 2164 Yhdyskunta- ja liikennesuunnittelijat | B84: 5051
A85: 2165 Kartoituksen ja maanmittauksen erityisasiantuntijat | B85: 4302
A86: 2166 Graafiset ja multimediasuunnittelijat | B86: 3664
A87: 22 Terveydenhuollon erityisasiantuntijat | B87: 5513
A88: 221 Lääkärit | B88: 7370
A89: 2211 Yleislääkärit | B89: 8372
A90: 2212 Ylilääkärit ja erikoislääkärit | B90: 6552
A91: 22121 Ylilääkärit | B91: 8676
A92: 22122 Erikoislääkärit | B92: 6076
A93: 222 Hoitotyön erityisasiantuntijat | B93: 3658
A94: 2221 Ylihoitajat ja osastonhoitajat | B94: 3658
A95: 22211 Ylihoitajat | B95: 4453
A96: 22212 Osastonhoitajat | B96: 3585
A97: 225 Eläinlääkärit | B97: 4782
A98: 2250 Eläinlääkärit | B98: 4782
A99: 226 Muut terveydenhuollon erityisasiantuntijat | B99: 4946
A100: 2261 Hammaslääkärit | B100: 7766
A101: 2262 Proviisorit | B101: 4660
A102: 2263 Ympäristöterveyden ja työsuojelun erityisasiantuntijat | B102: 5406
A103: 2265 Ravitsemusalan erityisasiantuntijat | B103: 3501
A104: 2266 Kuulontutkijat ja puheterapeutit | B104: 3814
A105: 2269 Muut muualla luokittelemattomat terveydenhuollon erityisasiantuntijat | B105: 4164
A106: 23 Opettajat ja muut opetusalan erityisasiantuntijat | B106: 4028
A107: 231 Yliopisto- ja korkeakouluopettajat | B107: 4692
A108: 2310 Yliopistojen ja ammattikorkeakoulujen opettajat | B108: 4692
A109: 23101 Professorit | B109: 6735
A110: 23102 Lehtorit ja yliassistentit (yliopisto) | B110: 4271
A111: 23103 Assistentit ja tuntiopettajat (yliopisto) | B111: 3099
A112: 23104 Yliopettajat (AMK) | B112: 5724
A113: 23105 Lehtorit (AMK) | B113: 4738
A114: 23106 Tuntiopettajat ym. (AMK) | B114: 3951
A115: 232 Ammatillisen koulutuksen opettajat | B115: 3880
A116: 2320 Ammatillisen koulutuksen opettajat | B116: 3880
A117: 233 Lukion ja peruskoulun yläluokkien opettajat | B117: 4287
A118: 2330 Lukion ja peruskoulun yläluokkien opettajat | B118: 4287
A119: 23304 Muut peruskoulun yläluokkien ja lukion opettajat | B119: 4287
A120: 234 Peruskoulun alaluokkien opettajat ja lastentarhanopettajat | B120: 2818
A121: 2341 Peruskoulun alaluokkien opettajat | B121: 3675
A122: 23411 Luokanopettajat | B122: 3332
A123: 23412 Aineenopettajat (peruskoulun alaluokat) | B123: 3947
A124: 2342 Lastentarhanopettajat | B124: 2530
A125: 235 Muut opetusalan erityisasiantuntijat | B125: 3346
A126: 2351 Opetusmenetelmien erityisasiantuntijat | B126: 3670
A127: 2352 Erityisopettajat | B127: 3902
A128: 2353 Muut kieltenopettajat | B128: 3336
A129: 2354 Muut musiikin opettajat | B129: 3018
A130: 2355 Muut taideaineiden opettajat | B130: 2835
A131: 2356 Muut tietotekniikan opettajat ja kouluttajat | B131: 3389
A132: 2359 Opinto-ohjaajat ja muut opetuksen erityisasiantuntijat | B132: 3160
A133: 23591 Opinto-ohjaajat | B133: 2756
A134: 23592 Muut opetuksen erityisasiantuntijat | B134: 3589
A135: 24 Liike-elämän ja hallinnon erityisasiantuntijat | B135: 4913
A136: 241 Rahoitusalan erityisasiantuntijat | B136: 4995
A137: 2411 Laskentatoimen erityisasiantuntijat ja tilintarkastajat | B137: 4914
A138: 2412 Rahoitus- ja sijoitusneuvojat | B138: 5124
A139: 2413 Rahoitusanalyytikot | B139: 5556
A140: 242 Hallinnon erityisasiantuntijat | B140: 4675
A141: 2421 Johtamisen ja organisaatioiden erityisasiantuntijat | B141: 5077
A142: 2422 Hallinnon ja elinkeinojen kehittämisen erityisasiantuntijat | B142: 4411
A143: 2423 Henkilöstöhallinnon erityisasiantuntijat ja urasuunnittelijat | B143: 4506
A144: 2424 Henkilöstön kehittämisen erityisasiantuntijat ja kouluttajat | B144: 4221
A145: 243 Myynnin, markkinoinnin ja tiedotuksen erityisasiantuntijat | B145: 5008
A146: 2431 Mainonnan ja markkinoinnin erityisasiantuntijat | B146: 4793
A147: 2432 Tiedottajat | B147: 4172
A148: 2433 Myynti-insinöörit ja lääke-esittelijät (pl. tieto- ja viestintätekniikka) | B148: 5289
A149: 2434 Tieto- ja viestintätekniikan myynnin erityisasiantuntijat | B149: 6095
A150: 25 Tieto- ja viestintäteknologian erityisasiantuntijat | B150: 4765
A151: 251 Systeemityön erityisasiantuntijat | B151: 4799
A152: 2511 Sovellusarkkitehdit | B152: 5130
A153: 2512 Sovellussuunnittelijat | B153: 4496
A154: 2513 Web- ja multimediakehittäjät | B154: 4500
A155: 2514 Sovellusohjelmoijat | B155: 3910
A156: 2519 Muut ohjelmisto- ja sovelluskehittäjät | B156: 5058
A157: 252 Tietokantojen,- verkkojen ja järjestelmäohjelmistojen erityisasiantuntijat | B157: 4573
A158: 2521 Tietokantasuunnittelijat ja -vastaavat | B158: 3551
A159: 2522 Tietojärjestelmien ylläpitäjät | B159: 4712
A160: 2523 Tietoverkkojen erityisasiantuntijat | B160: 5203
A161: 2529 Muut tietokanta- ja tietoverkkojen erityisasiantuntijat | B161: 4938
A162: 26 Lainopilliset, sosiaalialan ja kulttuurialan erityisasiantuntijat | B162: 4272
A163: 261 Lainopilliset erityisasiantuntijat | B163: 6194
A164: 2611 Asianajajat | B164: 6329
A165: 2619 Muut lainopilliset erityisasiantuntijat | B165: 5748
A166: 262 Kirjaston- ja arkistonhoitajat sekä museoalan erityisasiantuntijat | B166: 3582
A167: 2621 Arkistonhoitajat ja museoalan erityisasiantuntijat | B167: 3296
A168: 26211 Arkistonhoitajat | B168: 3287
A169: 26212 Museoalan erityisasiantuntijat | B169: 3305
A170: 2622 Kirjastonhoitajat, informaatikot ym. | B170: 3763
A171: 263 Yhteiskunta- ja sosiaalialan sekä uskonnollisen elämän erityisasiantuntijat | B171: 3763
A172: 2631 Ekonomistit | B172: 4911
A173: 2632 Yhteiskunta- ja kulttuuritutkijat | B173: 3672
A174: 2633 Historioitsijat, politiikan tutkijat ja filosofit | B174: 3358
A175: 2634 Psykologit | B175: 4034
A176: 2635 Sosiaalityön erityisasiantuntijat | B176: 3348
A177: 26351 Sosiaalityöntekijät ym. | B177: 3357
A178: 26352 Sosiaalialan suunnittelijat ym. | B178: 3337
A179: 2636 Papit ym. uskonnollisen elämän erityisasiantuntijat | B179: 3878
A180: 264 Toimittajat, kirjailijat ja kielitieteilijät | B180: 4015
A181: 2641 Kirjailijat ym. | B181: 3756
A182: 2642 Toimittajat | B182: 4090
A183: 26421 Toimituspäälliköt ja -sihteerit, ohjelmapäälliköt | B183: 4382
A184: 26422 Lehtien yms. toimittajat | B184: 3938
A185: 2643 Kääntäjät, tulkit ja muut kielitieteilijät | B185: 3386
A186: 265 Taiteilijat | B186: 3443
A187: 2651 Kuvataiteilijat | B187: 3367
A188: 2652 Muusikot, laulajat ja säveltäjät | B188: 3127
A189: 2653 Tanssitaiteilijat ja koreografit | B189: 2754
A190: 2654 Ohjaajat ja tuottajat | B190: 4084
A191: 2655 Näyttelijät | B191: 3321
A192: 2659 Muut taiteilijat | B192: .
A193: 3 Asiantuntijat | B193: 3677
A194: 31 Luonnontieteiden ja tekniikan asiantuntijat | B194: 3757
A195: 311 Fysiikan, kemian ja teknisten alojen asiantuntijat | B195: 3759
A196: 3111 Luonnontieteen tekniset asiantuntijat | B196: 2813
A197: 3112 Rakentamisen asiantuntijat | B197: 3686
A198: 31121 Talonrakentamisen asiantuntijat | B198: 3710
A199: 31122 Maa- ja vesirakentamisen asiantuntijat | B199: 3666
A200: 31123 Kartoituksen ja maanmittauksen asiantuntijat | B200: 3708
A201: 3113 Sähkötekniikan asiantuntijat | B201: 3934
... 385 more rows

Sheet Päivityshistoria
A1: Päivityshistoria
A3: Päivitys versiosta 1.17 (2021) versioon 1.18 (2022) / 26.1.2022
A4: • Päivitetty laskuri vastaamaan työ- ja elinkeinoministeriön visuaalista ilmettä ja esteettömyysvaatimuksia
A5: • Korjattu yhteenvetosivun pyöristyssääntöjä
A6: • Päivitetty palkkatilastot 2020
A7: • Päivitetty elinkustannusindeksi v. 2021
A8: • Päivitetty Apu1_Yritystilastot vuoden 2020 tiedoilla
A10: Päivitys versiosta 1.16 (2021) versioon 1.17 (2021) / 5.7.2021
A11: • Korjattu kaavavirhe Yhteenvedon kannustimessa lainvalmistelijalle
A13: Päivitys versiosta 1.15 (2020) versioon 1.16 (2021) / 15.1.2021
A14: • Päivitetty elinkustannusindeksi v. 2020
A16: Päivitys versiosta 1.13 (2019) versioon 1.15 (2020) / 28.2.2020, 4.9.2020 ja 24.9.2020
A17: • Lisätty mahdollisuus muuttaa Business-as-Usual-oletusta
A18: • Päivitetty EKI ja palkkatilastot v. 2019 ja 2018
A19: • Päivitetty ohjeistuksia
A20: • Korjattu kaavavirhe 4.9.2020 ja toinen 24.9.2020
A22: Päivitys versiosta 1.13 (2018) versioon 1.14 (2019) / 17.1.2019
A23: • Päivitetty EKI ja palkkatilastot v. 2018 ja 2017
A24: • Päivitetty välilehti Apu1_Yritystilastot vuoden 2017 tilastoilla. Samalla täydennetty tilastoja liikevaihdolla, henkilöstön määrällä ja yritysten koon jakaumalla
A26: Päivitys versiosta 1.12 versioon 1.13 (2018) / 22.1.2018
A27: • Korjattu rivinlisäysmakro niin, että uusi tyhjä rivi päätyy aina viimeiseksi.
A28: • Laskentavälilehdeltä 1 muutettu esimerkkivuosi (2018->2019) ja perusvuoden taustaväri sekä oheisen selitystekstin fontti
A29: • Lisätty välilehti ”Päivityshistoria”
A31: Päivitys versiosta 1.11 versioon 1.12 / 18.1.2018
A32: • Lisätty apuvälilehti 1, jossa TK:n yritystilastot
A33: • Muokattu välilehtien nimiä
A34: • Päivitetty erillinen käyttöohje
A35: • Päivitetty EKI v. 2017
A37: Päivitys versiosta 1.1 versioon 1.11 / 8.12.2017
A38: • Korjattu epäjohdonmukainen arvo Yhteenveto-välilehdellä kohdassa ”Kustannukset yhteensä per yritys”
A39: • Lisätty Velvoiteluettelo-välilehdelle täydentävä kysymys muutoksen kohteena yritysjoukon koosta
A40: • Korjattu nettonykyarvon annualisointi niin, että annualisointi tehdään AINA 10 vuoden aikajänteellä velvoitteen kestosta riippumatta
A41: • Lisätty ensimmäiselle sivulle otsikko ja laskurin tekijöiden nimet
A42: • Päivitetty Ohjeistus
A43: • Päivitetty lähdeviitteitä, perustelulaattikkoja, otsikoita ja muuta ulkoasua
A45: Päivitys versiosta 1.02 versioon 1.1 / 13.10.2017
A46: • Laskuria on selkiytetty: valmistelijan tarvitsemat keltaiset täyttösolut on pyritty tuomaan paremmin esille ja muita seikkoja on siirretty sivuun. Välilaskutietoja yms. on säilytetty kuitenkin sivujen alaosissa tai oikealla, jotta tiedot ja laskukaavat ovat tarkistettavissa.
A47: • Muutettu inflaation ja kasvun huomioiminen nykyarvon laskennassa. Inflaatio: valmisteluvuoden rahassa lasketut kustannukset deflatoidaan elinkustannusindeksillä perusvuoteen. Perusvuodeksi on valittu 2017. Kaikki kustannuserät vertaillaan tämän perusvuoden rahassa ja arvossa. Diskonttaus tapahtuu vuoden 2017 alkuun. Diskonttaus reaalisella korolla, koska inflaatio puhdistettu edellä esitetysti.
A48: • Yhteenvetotaulukkoon (Välilehti 5_Yhteeveto) on tehty pyöristyskaavat. Tarkemmat arvot ovat edelleen nähtävissä välilehden oikeassa reunassa.
A49: • Muokattu velvoitenimet päivittymään kaikille syöttövälilehdille. Ulkoasua selkiytetty.
